Workbook

Sheet INSERIMENTO DATI
D2: PROSPETTO DI AUTOCALCOLO PER LA DETERMINAZIONE DEL CONTRIBUTO DI COSTRUZIONE | R2: FLAG
B4: Pratica edilizia | R4: =TODAY() -> 2024-03-27 | U4: colore campi editabili
B6: Beneficiario | U6: R | V6: 146
B8: Ubicazione | U8: V | V8: 205
U9: B | V9: 220
B11: Destinazione di P.R.G. | D11: Centro Storico A1 | L11: Norma da N.T.A. | N11: =IF(ISERROR((VLOOKUP(IF(D13="",D11,D11&" "&D13),'Tabella A1'!$J$9:P50,7,FALSE)))=TRUE,"",(VLOOKUP(IF(D13="",D11,D11&" "&D13),'Tabella A1'!$J$9:P50,7,FALSE))) -> Art. 45 | R11: =IF(D11="Rinn. urbano terz./direz. B9","B9","ALTRO") -> ALTRO | S11: =VLOOKUP(D11,Elenchi!A:B,2,FALSE) -> RESIDENZA
B13: Distanza dal Mare
B15: Tipo insediamento | R15: 1 | S15: If (Range("S21") <> "NO STANDARD") Or (Range("R18") = "SI")
B17: Nr. Dipendenti | H17: 45
S18: FLAG CAMBIO D'USO IN DEROGA
R19: 1 | S19: FLAG TIPO DI INTERVENTO
R20: 1 | S20: FLAG TIPO TABELLA ONERI A1 A2
B21: DATI DI PROGETTO | R21: =IF(S21="STANDARD RESIDENZIALI",1,(IF(S21="STANDARD TERZIARIO",2,0))) -> 0 | S21: =IF(AND(R19=5,R34="T"),(IF(AND(SUM(F50:F61)>0,SUM(F69:F76)>0),"ATT",(IF(SUM(F50:F61)>0,"STANDARD RESIDENZIALI","STANDARD TERZIARIO")))),"NO STANDARD") -> NO STANDARD | T21: =IF(O58<>"",O58*V21,"") ->  | V21: 3 | Z21: =IF(R21=1,O58*3.25,(IF(R21=2,SUM(F69:F76)*1,""))) -> 
B22: Volume totale di progetto | C22: = | E22: mc | F22: Senza corpi scala | G22: Volume senza incrementi | K22: =IFERROR("% Tot. incr. Vol. "&ROUND(SUM(K24:K28)*100,2)&"%","") -> % Tot. incr. Vol. 0% | L22: =IF((D22)<>0,D22-L24-L26-L28,"") ->  | M22: mc | N22: Spuntare solo per Sottotetti non frazionati | R22: FALSE | T22: VOLUME O SUPERFICIE DA USARE | V22: ALTEZZA VANO
B24: Volume tot. residenziale | C24: = | E24: mc | F24: =IF(S11="RESIDENZA","",(IF(D22-D24<0,"ATTENZIONE",""))) ->  | G24: Incr. Vol. residenziali | J24: =IF(AND(R19=5,L24<>""),"Per C.Uso"," L.R. 14/09-20/22") -> L.R. 14/09-20/22 | K24: =IFERROR((IF(L24<>"",(IF(D22<>"",(L24)/L22,"")),"")),"") ->  | M24: mc | N24: L.R.33/07 | P24: mc | R24: =SUM(L24:L26)+O24+O26+O30 -> 0 | S24: FLAG VOLUME INCREMENTI
B26: Volume tot. comm./terz. direz. | C26: = | D26: =IF(S11=0,(IF(D24="","",(IF(D22-D24=0,0,IF(D22-D24<0,"",D22-D24))))),"") ->  | E26: mc | G26: Incr. Vol. com./terz. direz. | J26: L.R. 14/09-20/22 | K26: =IFERROR((IF(L26<>"",IF(D22<>"",(L26)/L22,""),"")),"") ->  | M26: mc | N26: L.R.33/07 | P26: mc | R26: FALSE | S26: FLAG ACCERTAMENTO DI CONFORMITA'
B28: Nr. Unità immobiliari | C28: = | E28: n. | G28: Incr. Vol. da | J28: L.R. 13/08 - D.L. 28/11 | K28: =IFERROR((IF(L28<>"",(IF(L22<>"",L28/L22,0)),"")),"") ->  | M28: mc | N28: Ampl. I.Z. | P28: mc | R28: TRUE | S28: INSERITO FLAG MANUALE DI CONTROLLO PER SOLO RESIDENZIALE
W29: RES | X29: =IF(X32<>0,X32,(IF(D11="Centro Storico A1",0,(IF(OR(R19=1,R19=2),ROUND((D24)/10,2),(IF(R19=3,(IF(R28=TRUE,(ROUND(L28/10,2)),0)),(IF(OR(R19=4,R19=6),IF(R22=TRUE,(ROUND((L24+L26+L28)/10,2)),(ROUND((L24+L26+L28+O24)/10,2))),(IF(OR(R19=5,R19=7,R19=8),0))))))))))) -> 0 | Y29: FLAG DETRAZIONE PARK C.C.
B30: Sup. lorda comm./terz./direz. | C30: = | E30: =IF((OR(R19=1,R19=2,R19=3)),(IF(SUM(F69,F70)>0,(IF(AND(SUM(F69:F70)<>D30,S11<>"RESIDENZA"),"ATT","mq")),"mq")),"mq") -> mq | G30: Incr. Sup.lorda comm./terz./direz. | M30: =IF((OR(R19=4,R19=6)),(IF(SUM(F69,F76)>0,IF(L30="","mq",(IF(SUM(F69:F76)<>(L30+O30),"ATT","mq"))),"mq")),"mq") -> mq | N30: Sup. lorda | P30: =IF((OR(R19=4,R19=6)),(IF(SUM(F69,F76)>0,IF(O30="","mq",(IF(SUM(F69:F76)<>(O30+L30),"ATT","mq"))),"mq")),"mq") -> mq | W30: TER | X30: =(IF(ISERROR(IF(D11="Centro Storico A1",0,(IF(OR(R19=1,R19=2),ROUND((D26)/10,2),(IF(R19=3,(IF(R28=TRUE,(ROUND(L28/10,2)),0)),(IF(OR(R19=4,R19=6),IF(R22=TRUE,(ROUND((L24+L26+L28)/10,2)),(ROUND((L24+L26+L28+O24)/10,2))),(IF(OR(R19=5,R19=7),0))))))))))=TRUE,0,(IF(D11="Centro Storico A1",0,(IF(OR(R19=1,R19=2),ROUND((D26)/10,2),(IF(R19=3,(IF(R28=TRUE,(ROUND(L28/10,2)),0)),(IF(OR(R19=4,R19=6),IF(R22=TRUE,(ROUND((L24+L26+L28)/10,2)),(ROUND((L24+L26+L28+O24)/10,2))),(IF(OR(R19=5,R19=7,R19=8),0)))))))))))) -> 0 | Y30: CONTROLLO PER DTERAZIONE PARK C.C.
B31: PARCHEGGI MINIMI DI LEGGE DA VINCOLARE | G31: PARCHEGGI PREVISTI A PROGETTO (coperti e scoperti) | T31: P. DI NORMA | V31: INCR,/DECR. | X31: TOT.
B32: Sup. a parcheggio min. (Lg. 122/89) | C32: = | D32: =X32 -> 0 | E32: mq | F32: =IF(F24<>"","",(IF(D24="","",(W29&" "&X29&" + "&W30&" "&X30)))) ->  | G32: Superfici totali parcheggi di progetto | N32: = | P32: =IF(O32<>"",(IF(AND((OR(R19=1,R19=6)),(AND(O24="",O26=""))),(IF(O32<D32,"ATT","mq")),"mq")),"mq") -> mq | S32: RES+TER | T32: =IF(D11="Centro Storico A1",0,(IF(OR(R19=1,R19=2),ROUND((D22)/10,2),(IF(R19=3,(IF(R28=TRUE,(ROUND(L28/10,2)),0)),(IF(OR(R19=4,R19=6),IF(R22=TRUE,(ROUND((L24+L26+L28+O28)/10,2)),(ROUND((L24+L26+L28+O24+O28)/10,2))),(IF(OR(R19=5,R19=7,R19=8),0))))))))) -> 0 | U32: + | W32: = | X32: =T32+V32 -> 0
B34: Sup. parcheggi min. comm./terz. direz. | C34: = | D34: =X34 -> 0 | E34: mq | F34: DM 1444/68 - NTA art.39-50 | G34: Superficie totale parcheggi comm./terz. direz. di progetto | N34: = | P34: =IF(O34<>"",(IF(AND((OR(R19=1,R19=6)),(AND(O24="",O26=""))),(IF(O34<D34,"ATT","mq")),"mq")),"mq") -> mq | R34: =IF(OR(D11="Rinn. urbano terz./direz. B9",D11="Terziario Direzionale TD"),"T","R") -> R | S34: FLAG ZONA RES O TER. | T34: =IF(D11="Centro Storico A1",0,(IF(R11<>"B9",(IF(OR(R19=1,R19=2),(ROUND((D30/100)*80*50%,2)),(IF(R19=3,(ROUND((O30/100)*80*50%,2)),(IF(R19=4,(ROUND(((L30+O30)/100)*80*50%,2)),(IF(R19=5,(ROUND((L30/100)*80*50%,2)),(IF(R19=6,(ROUND(((L30+O30)/100)*80*50%,2)),0)))))))))),(IF(OR(R19=1,R19=2),(ROUND((D30/100)*80*50%*50%,2)),(IF(R19=3,(ROUND((O30/100)*80*50%*50%,2)),(IF(R19=4,(ROUND(((L30+O30)/100)*80*50%*50%,2)),IF(R19=5,(ROUND((L30/100)*80*50%*50%,2)),(IF(R19=6,(ROUND(((L30+O30)/100)*80*50%*50%,2)),0)))))))))))) -> 0 | U34: + | W34: = | X34: =T34+V34 -> 0
B36: Sup autorimesse minime | C36: = | D36: =X36 -> 0 | E36: mq | F36: NTA | G36: Superficie totale autorimesse di progetto | N36: = | P36: =IF(O36<>"",(IF(AND((OR(R19=1,R19=6)),(AND(O24="",O26=""))),(IF(O36<D36,"ATT","mq")),"mq")),"mq") -> mq | T36: =IF(OR(D11="Centro Storico A1",D11="Interesse Ambientale A2",D11="Servizi alla residenza",D11="Verde ed attrezz. carattere urbano e regionale"),0,(IF(R19=1,(IF(R34<>"R",(CEILING(D24/500,1)*15),ROUND(D28*15,2))),IF(R19=2,(CEILING((L28+O28)/500,1)*15),(CEILING((L28+O28)/500,1)*15))))) -> 0 | U36: + | W36: = | X36: =T36+V36 -> 0
B40: Protocollo Itaca previsto | C40: = | J40: Rif. Lg. 13/08 e delibera CC 2019/00073 del 21/10/2019
B42: Abbatt. del 20% per edilizia residenziale inserita in piani e programmi di iniziativa pubblica e mista e ristrutturazione urbanistica con realizz. in classe 3 del protocollo itaca
B43: Abbatt. del 20% al fine di agevolare gli interventi di rigen. urbana, di ristrutt. e di recupero e riuso degli immobili dismessi o in dismissione - art.17 c.4bis DPR 380/01 | R43: FALSE
B44: Abbattimento del 50% delle tariffe delle zone B3 per aree servizi ed a verde per servizi culturali, sportivi e di recupero del disagio sociale
B47: SUPERFICI RESIDENZIALI E RELATIVI SERVIZI ED ACCESSORI (Rif. DM 801 del 10 maggio 1977)
B49: Su (Sup. Utile Abitabile) | D49: Dimensioni (mq) | F49: ="Su di progetto "&TEXT(SUM(F50:F54),"#.##0,00")&" mq" -> Su di progetto 1,00 mq | I49: ="Su esistente "&TEXT(SUM(I50:I54),"#.##0,00")&" mq" -> Su esistente 0,00 mq | T49: 146-205-220
B50: A. Unità immobiliari | D50: <=95 | E50: = | F50: 1 | G50: mq | J50: mq
D51: >95 -> 110 | E51: = | G51: mq | J51: mq
D52: >110 -> 130 | E52: = | G52: mq | J52: mq
D53: >130 -> 160 | E53: = | G53: mq | J53: mq
D54: >160 | E54: = | G54: mq | J54: mq
B56: Snr (Superficie non residenziale) | F56: ="Snr di progetto "&TEXT(SUM(F57:F61),"#.##0,00")&" mq" -> Snr di progetto 0,00 mq | I56: ="Snr esistente "&TEXT(SUM(I57:I61),"#.##0,00")&" mq" -> Snr esistente 0,00 mq
B57: A. Cantinole, soffitte , sala macchine ascensori, cabine idriche, lavatoi comuni, centrali termiche, ed altri locali a stretto servizio delle residenze | E57: = | G57: mq | J57: mq
B58: B. Parcheggi coperti totali (q.tà totali senza decurtazioni) | E58: = | G58: mq | J58: mq | L58: Ins. Sup. Lorda Unità Immobiliare totale | P58: =IF(O58<>"",(IF(SUM(F50:F54)*1.1>=O58,"ATT","mq")),"mq") -> mq
B59: C. Autorimesse coperte totali (q.tà totali senza decurtazioni) | E59: = | G59: mq | J59: mq
B60: D. Androni ingresso e porticati liberi | E60: = | G60: mq | J60: mq
B61: E. Logge e balconi | E61: = | G61: mq | J61: mq
B63: Seleziona nr. incrementi particolari caratteristiche | E63: = | I63: Tipo di opere necessarie in caso di cambio di destinazione d'uso | R63: =IF(ISERROR(VLOOKUP(O63,Elenchi!$AF$2:$AG$4,2,FALSE))=TRUE,"",(VLOOKUP(O63,Elenchi!$AF$2:$AG$4,2,FALSE))) ->  | S63: FLAG PER CAMBIO D'USO - CERCA LA TIPOLOGIA DI OPERA ED ASSEGNA IL COSTO CORRISPONDENTE
B66: SUPERFICI PER ATTIVITÀ TURISTICHE, COMMERCIALI, TERZIARIO DIREZIONALE, PRODUTTIVO E RELATIVI ACCESSORI (Rif. DM 801 del 10 maggio 1977)
B68: Sl (Superficie Lorda non Residenziale) | F68: ="Sl di progetto "&TEXT(SUM(F69:F70),"#.##0,00")&" mq" -> Sl di progetto 0,00 mq | I68: ="Sl esistente "&TEXT(SUM(I69:I70),"#.##0,00")&" mq" -> Sl esistente 0,00 mq
B69: A. Fuori terra | E69: = | G69: mq | J69: mq | R69: =SUM(F69:I76) -> 0
B70: B. Interrata | E70: = | G70: mq | J70: mq
B72: Sa (Superficie Accessoria) | F72: ="Sa di progetto "&TEXT(SUM(F73:F76),"#.##0,00")&" mq" -> Sa di progetto 0,00 mq | I72: ="Sa esistente "&TEXT(SUM(I73:I75),"#.##0,00")&" mq" -> Sa esistente 0,00 mq
B73: A. Fuori terra | E73: = | G73: mq | J73: mq
B74: B. Interrata | E74: = | G74: mq | J74: mq
B75: C. Parch. cop. totali - Fuori terra (q.tà totali senza decurtazioni) | E75: = | G75: mq | J75: mq
B76: D. Parch. cop. totali - Interrati (q.tà totali senza decurtazioni) | E76: = | G76: mq | J76: mq
S77: =(IF(R9="Terziario Direzionale TD",0,20)) -> 20
B78: Indicare tipologia attività | F78: Tipo di attività/zona coeff. | P78: =IF(J78<>"",IF(D78="Attività turistiche",VLOOKUP(J78,Elenchi!$K$2:$L$10,2,FALSE),(IF(D78="Attività commerciali",VLOOKUP(J78,Elenchi!$N$2:$O$8,2,FALSE),(IF(D78="Attività terziario-direzionale",VLOOKUP(J78,Elenchi!$Q$2:$R$5,2,FALSE),0))))),0) -> 0
R79: =IF(AND(R17<>5,R87<>3),(IF(D11="Rinn. urbano terz./direz. B9","7",(IF(D11="Terziario Direzionale TD",0,"20")))),"20") -> 20 | S79: MQ DI STANDARD DA APPLICARE R19=ALTRI CASI PER CAMIO DEST. USO STANDARD
B81: SUPERFICI A STANDARD DOVUTE PER INCREMENTO VOLUMETRICO E/O CARICO URBANISTICO | R81: =IF(AND(R19=5,R87<>3),(IF(D11="Rinn. urbano terz./direz. B9","7",0)),"20") -> 20 | S81: MQ DI STANDARD DA APPLICARE SOLO R19=5
B83: Tipizzazzione zona Standard | O83: indice | P83: =IF(ISERROR(VLOOKUP(D83,'Tabella Standard'!A:F,5,FALSE))=TRUE,"-",(VLOOKUP(D83,'Tabella Standard'!A:F,5,FALSE))) -> - | R83: =IF(ISERROR(VLOOKUP(D83,'Tabella Standard'!A:B,2,FALSE)),"-",(VLOOKUP(D83,'Tabella Standard'!A:B,2,FALSE))) -> - | S83: FLAG PER ZONA A VERDE O A SERVIZI
J84: Rif. Delibera Consiglio Comunale nr.9 del 11/02/2020 - Solo per zone art. 31 e 52 delle NTA
B85: Inser. manuale tariffa per standard urbanistici | E85: = | G85: €/mq | J85: Ins. la superficie zona di pertinenza edificio | N85: = | P85: mq
B87: Cambio di Destinazione d'uso del fabbricato o di parte | K87: Vol. esist. oggetto di cambio dest. | N87: = | P87: =IF(AND(R87=1,O87="",OR(R19="2",R19="4")),"ATT","mc") -> mc | R87: 2
B89: Destinazione Residenziale - (DM.1444/68 - LG. 122/89) | I89: TOTALE | L89: Da cedere / Da vincolare | O89: Da monetizzare
B90: Superficie per Standard non coperta da previsione di PRG da cedere o monetizzare | H90: = | I90: =IF(OR(R19=2,R19=4,R19=5,R19=6),(ROUND(IF(OR(R87=1,R87=3),((O87)/100*R79+(L24+O24)/100*R81)+O85,((L24+O24)/100*R81)+O85),2)),"") ->  | J90: mq | K90: di cui | L90: =IF(I90<>"",(I90-O90),"") ->  | M90: mq | N90: e | P90: mq | R90: =IF(O90<>"",2,1) -> 1 | S90: FLAG = 1 cessione; 2 monetizzazione
B92: Superficie per Parcheggi totale da reperire e vincolare o monetizzare | H92: = | I92: =IF(OR(R19=2,R19=4,R19=5,R19=6),D32,"") ->  | J92: mq | K92: di cui | L92: =IF(I92<>"",O32,"") ->  | M92: mq | N92: e | O92: =IF(I92>L92,(IF(OR(R19=2,R19=4,R19=5,R19=6),(I92-L92),"")),"") ->  | P92: mq | R92: =IF(O92<>"",2,1) -> 1 | S92: FLAG = 1 cessione; 2 monetizzazione
B94: Destinazione Commerciale, Terziario Direzionale - (DM.1444/68-NTA art.39-50) | I94: TOTALE | L94: Da prevedere / Da vincolare | O94: Da monetizzare
B95: Superficie per Standard non coperta da previsione di PRG da prevedere o monetizzare | H95: = | I95: =IF(OR(R19=2,R19=4,R19=5,R19=6),(IF(R87=2,(IF(AND(R19=2,R11<>"B9"),(ROUND((D30/100)*80*50%,2)),(IF(AND((OR(R19=4,R19=5,R19=6)),R11<>"B9"),(ROUND(((L30+O30)/100)*80*50%,2)),(IF(AND(R19=2,R11="B9"),(ROUND((D30/100)*80*50%*50%,2)),(IF(AND((OR(R19=4,R19=5,R19=6)),R11="B9"),(ROUND(((L30+O30)/100)*80*50%*50%,2)),0)))))))),(IF(AND(OR(R19=2,R19=4,R19=5,R19=6),R11<>"B9"),(ROUND((D30/100)*80*50%,2)),(ROUND((D30/100)*80*50%*50%,2)))))),"") ->  | J95: mq | K95: di cui | L95: =IF(I95<>"",(I95-O95),"") ->  | M95: mq | N95: e | P95: mq | R95: 250 | S95: verde min. 15%
B97: Superficie per Standard per Parcheggi da reperire e vincolare o monetizzare | H97: = | I97: =IF(OR(R19=2,R19=4,R19=5,R19=6),D34,"") ->  | J97: mq | K97: di cui | L97: =IF(I97<>"",O34,"") ->  | M97: mq | N97: e | O97: =(IF(OR(R19=2,R19=4,R19=5,R19=6),(IF(I97>L97,I97-L97,0)),"")) ->  | P97: mq | R97: =IF(O97<>"",2,1) -> 1 | S97: parcheggio min 50%

Sheet TAB. per calcolo magg. CC
B2: TABELLE PER IL CALCOLO DELLA MAGGIORAZIONE DEL COSTO DI COSTRUZIONE
I3: Rif. DM 801 del 10 maggio 1977
B4: Pratica edilizia | C4: =IF('INSERIMENTO DATI'!D4="","",'INSERIMENTO DATI'!D4) ->  | H4: Campi a compilazione automatica
B6: TAB. 1 - Incremento per superficie utile abitabile
B7: Classe di superficie (mq) | C7: Alloggi (n.ro) | D7: Superficie utile abitabile (mq) | E7: Rapporto Su tot/Su | F7: Incremento (%) | I7: Incr.to per classi di superficie (%)
B8: <=95 | C8: - | D8: ='INSERIMENTO DATI'!F50 -> 1 | E8: =IF(D8<>0,ROUNDDOWN(D8/$D$13,2),0) -> 1 | F8: 0 | I8: =ROUNDUP(E8*F8,2) -> 0
B9: >95 -> 110 | C9: - | D9: ='INSERIMENTO DATI'!F51 -> 0 | E9: =IF(D9<>0,ROUNDDOWN(D9/$D$13,2),0) -> 0 | F9: 5 | I9: =ROUNDUP(E9*F9,2) -> 0
B10: >110 -> 130 | C10: - | D10: ='INSERIMENTO DATI'!F52 -> 0 | E10: =IF(D10<>0,ROUNDDOWN(D10/$D$13,2),0) -> 0 | F10: 15 | I10: =ROUNDUP(E10*F10,2) -> 0
B11: >130 -> 160 | C11: - | D11: ='INSERIMENTO DATI'!F53 -> 0 | E11: =IF(D11<>0,ROUNDDOWN(D11/$D$13,2),0) -> 0 | F11: 30 | I11: =ROUNDUP(E11*F11,2) -> 0
B12: >160 | C12: - | D12: ='INSERIMENTO DATI'!F54 -> 0 | E12: =IF(D12<>0,ROUNDDOWN(D12/$D$13,2),0) -> 0 | F12: 50 | I12: =ROUNDUP(E12*F12,2) -> 0
C13: TOTALE Su | D13: =SUM(D8:D12) -> 1 | H13: l.1 | I13: =SUM(I8:I12) -> 0
B15: TAB. 2 - Sup. per servizi ed access. parte residenziale
B16: Destinazioni | D16: Sup. netta servizi e accessori TOTALE (mq)
B17: A. Cantinole, soffitte , sala macchine ascensori, cabine idriche, lavatoi comuni, centrali termiche, ed altri locali a stretto servizio delle residenze | D17: ='INSERIMENTO DATI'!F57 -> 0
B18: B. Autorimesse collettive | D18: ='INSERIMENTO DATI'!F58 -> 0
B19: C. Autorimesse private | D19: ='INSERIMENTO DATI'!F59 -> 0
B20: D. Androni ingresso e porticati liberi | D20: ='INSERIMENTO DATI'!F60 -> 0
B21: E. Logge e balconi | D21: ='INSERIMENTO DATI'!F61 -> 0
C22: TOTALE Snr | D22: =SUM(D17:D21) -> 0
B24: TAB. 3 - Incr. per servizi ed access. parte residenzale
B25: Intervalli di variabilità del rapporto percentuale Snr/Su (%) | C25: Min (%) | D25: Max (%) | I25: Incremento (%)
B26: 0-50 | C26: 0 | D26: 50 | I26: 0
B27: 50-75 | C27: 50.01 | D27: 75 | I27: 10
B28: 75-100 | C28: 75.01 | D28: 100 | I28: 20
B29: >100 | C29: 100.01 | D29: 99999 | I29: 30
H30: l.2 | I30: =IF(ISERROR(D22/D13)=TRUE,0,(IF(D22<>0,(IF(AND((D22/D13)*100>=0,(D22/D13)*100<=50),0,IF(AND((D22/D13)*100>50,(D22/D13)*100<=75),10,IF(AND((D22/D13)*100>75,(D22/D13)*100<=100),20,IF(AND((D22/D13)*100>100,(D22/D13)*100<99999),30))))),0))) -> 0
B31: TAB. 4 - Incr. per part. caratteristiche
B32: Numero di caratteristiche | C32: Ipotesi che ricorre | I32: Incremento (%) | K32: Indicare con l'ipotesi che ricorre (es. 0, oppure 1, oppure 2, oppure 3, oppure 4, oppure 5.).
B33: =C33 -> 0 | C33: ='INSERIMENTO DATI'!F63 -> 0 | I33: =C33*10 -> 0
H34: l.3 | I34: =I33 -> 0
B35: TAB. 5 - Superfici residenziali e relativi servizi ed accessori
B36: SUPERFICIE | E36: Totale (mq)
B37: Superficie utile abitabile (Su) | E37: =D13 -> 1 | K37: Per superficie utile abitabile (Su), si intende la superficie di pavimento degli alloggi, misurata al netto delle murature, pilastri, tramezzi, sguinci, vani di porte e finestre, di eventuali scale interne, di logge e di balconi.
B38: Superficie netta non residenziale (Snr) | E38: =D22 -> 0
B39: Superficie ragguagliata (60% Snr) | E39: =ROUNDDOWN(0.6*E38,2) -> 0
B40: Superficie complessiva (Sc) | E40: =ROUNDDOWN((0.6*E38)+E37,2) -> 1
B42: TAB. 6 - Superfici per attività turistiche, commerciali e direzionali e ralativi accessori
B43: SUPERFICIE | E43: TOTALE (mq) fuori terra | F43: TOTALE (mq) interrata | K43: Per superficie netta non residenziale (Sn), si intende la superficie di pavimento, misurata al netto delle sole murature perimetrali.
B44: Superficie lorda non residenziale (Sl) | E44: ='INSERIMENTO DATI'!F69 -> 0 | F44: ='INSERIMENTO DATI'!F70 -> 0
B45: Superficie accessori (Sa) | E45: ='INSERIMENTO DATI'!F73+'INSERIMENTO DATI'!F75 -> 0 | F45: ='INSERIMENTO DATI'!F74+'INSERIMENTO DATI'!F76 -> 0
B46: Superficie ragguagliata (60% Sa) | E46: =ROUNDDOWN(0.6*(E45),2) -> 0 | F46: =ROUNDDOWN(0.6*(F45),2) -> 0
B47: Superficie totale non residenziale (St) | E47: =ROUNDDOWN((0.6*E45)+E44,2) -> 0 | F47: =ROUNDDOWN((0.6*F45)+F44,2) -> 0 | K47: =IF(B48="ALERT, Condizione Art. 9 non verificata. [Sl+(60% Sa) < 25% Su]","TER","RES") -> RES | L47: FLAG VERIFICA INCIDENZA TERZIARI PER APPL. COSTO COSTR.
B48: =IF((E47+F47)>(D13*0.25),"ALERT, Condizione Art. 9 non verificata. [Sl+(60% Sa) < 25% Su]","Condizione art.9 verificata. [Sl+(60% Sa) < 25% Su]") -> Condizione art.9 verificata. [Sl+(60% Sa) < 25% Su] | E48: =IF(E47+F47=0,"","------------>") ->  | F48: =IF('INSERIMENTO DATI'!R19=5,"Att. - Essendo un cambio d'uso il calcolo non è fatto con rif. al DM 801/77",(IF(E47+F47=0,"",(IF(K47="RES", "Usare Costo Costr. residenziale anche per parte non residenziale","Usare Costo Costr. Comm./Terz. Direz. per la parte non residenziale"))))) -> 
B49: TABELLA 7 - Tabella con classe dell'edificio | I49: Incremento Totale
B50: Totale degli incrementi | F50: l.1+l.2+l.3 | I50: =IF(AND((D13)=0,(D22)=0),0,(I13+I30+I34)) -> 0
B51: Maggiorazione in % da applicare al Costo di Costruzione (arrotondata per difetto) | I51: =IF(AND((I50)=0),0,IF(AND((I50)>0,(I50)<50),FLOOR(I50-0.1,5),50)) -> 0
B53: RIEPILOGO | I53: Importi
B54: A) Costo al metro quadro delle costruzioni RESIDENZIALI (€/mq) - Superficie complessiva (Sc) | I54: ='Tabella A1'!AM10 -> 697.62
B55: A.1) Costo al metro quadro delle costruzioni COMM./TERZ. DIREZ. (€/mq) - Superficie totale non residenziale (St) - parte fuori terra | I55: ='Tabella A1'!AM19 -> 1220.82
B56: A.2) Costo al metro quadro delle costruzioni COMM./TERZ. DIREZ. (€/mq) - Superficie totale non residenziale (St) - parte interrata | I56: ='Tabella A1'!AM18 -> 813.18
B57: B) Costo al metro quadro delle costruzioni RESIDENZIALI maggiorato (€/mq) | I57: =I54*(1+I51/100) -> 697.62
B58: C.1) Costo di costruzione della parte RESIDENZIALE (€) | I58: =IF('INSERIMENTO DATI'!R19<>5,(IF((E44+F44)+(E46+F46)<0.25*D13,(E40)*I57,(E40*I57))),0) -> 697.62 | K58: =IF((E44+F44)+(E46+F46)<0.25*D13,(E40+E47+F47)*I57,(E40*I57)+(E47*I55)+(F47*I56)) -> 697.62 | M58: =E44+F44+E46+F46 -> 0 | N58: =0.25*D13 -> 0.25
B59: C.2) Costo di costruzione della parte COMM./TERZ. DIREZ. (€) | E59: =IF(E47+F47=0,"",(IF(K47="RES","--> applicato stesso Costo al mq della costruzione RESIDENZIALE maggiorato",""))) ->  | I59: =IF('INSERIMENTO DATI'!R19<>5,(IF((E44+F44)+(E46+F46)<0.25*D13,(E47+F47)*I57,(E47*I55)+(F47*I56))),0) -> 0
B60: D.1) Aliquota Costo di Costruzione RESIDENZIALE (%) | I60: 5
B61: D.2) Aliquota Costo di Costruzione COMM./TERZ. DIREZ. (%) | E61: =IF(E47+F47=0,"",(IF(K47="RES","--> applicata stessa Aliquota del Costo di Costruzione RESIDENZIALE",""))) ->  | I61: =IF(K47="RES",I60,('INSERIMENTO DATI'!P78*100)) -> 5
B62: CONTRIBUTO DEL COSTO DI COSTRUZIONE | H62: TOTALE | I62: =ROUND(I60*(I58/100)+I59*(I61/100),0) -> 35
B74: TABELLA 8 : Allegata alla "Mappa per l'individuazione della percentuale del contributo del costo costruzione"
B76: TABELLA 9: Tipologie di intervento.
K78: NOTA: Il "Costo al metro quadro delle costruzioni" preimpostato, nonchè la "Aliquota del Costo di Costruzione" preimpostata del 5% (di cui alla lett.D)), restano invariati qualora rispetti la seguente condizione: Sn + (60% Sa) < 25% Su. Allorquando non si verifichi questa condizione, il "Costo al metro quadro delle costruzioni" dovrà desumersi dalla TABELLA 9, mentre la "Aliquota del Costo di Costruzione" da considerare per il calcolo dovrà essere desunta dalla TABELLA 8.

Sheet PROSPETTO DI RIEPILOGO
E2: PROSPETTO DI AUTOCALCOLO PER LA DETERMINAZIONE DEL CONTRIBUTO DI COSTRUZIONE
B4: Pratica edilizia | E4: =IF('INSERIMENTO DATI'!D4=0,"",'INSERIMENTO DATI'!D4) -> 
B6: Beneficiario | E6: =IF('INSERIMENTO DATI'!D6=0,"",'INSERIMENTO DATI'!D6) -> 
B8: Ubicazione | E8: =IF('INSERIMENTO DATI'!D8=0,"",'INSERIMENTO DATI'!D8) -> 
B10: Destinazione di P.R.G. | E10: =IF('INSERIMENTO DATI'!D11=0,"-",(IF((AND('INSERIMENTO DATI'!D11="Aree ferroviarie destinazione da PRG",(OR('INSERIMENTO DATI'!N15="",'INSERIMENTO DATI'!D17=""))))=TRUE,"",'INSERIMENTO DATI'!D11))) -> Centro Storico A1 | L10: Norma da N.T.A. | P10: ='INSERIMENTO DATI'!N11 -> Art. 45
B12: =IF(E12<>"",'INSERIMENTO DATI'!B13,"") ->  | E12: =IF('INSERIMENTO DATI'!D13=0,"",'INSERIMENTO DATI'!D13) ->  | G12: =IF('INSERIMENTO DATI'!R26=FALSE,"","ACCERTAMENTO DI CONFORMITA'") ->  | L12: =IF(U16<>0,"ATT. MODIF. ALIQUOTE","") -> 
B14: =IF(E14<>" - ",'INSERIMENTO DATI'!B15,"") ->  | E14: =IF(E10<>"",'INSERIMENTO DATI'!D15&" - "&'INSERIMENTO DATI'!N15,"") -> -
B16: =IF(E16<>"",'INSERIMENTO DATI'!B17,"") ->  | E16: =IF('INSERIMENTO DATI'!D17=0,"",'INSERIMENTO DATI'!D17) ->  | U16: =IF((AVERAGE((U22:U31)*1,(U41:U50)*1,(U61:U70)*1,(U80:U81)*1))<>0,"ATT",0) -> 0 | V16: FLAG DI VERIFICA MODIFICA ALIQUOTE
B18: =IF(E18<>"","Tipizz. zona standard","") ->  | E18: =IF('INSERIMENTO DATI'!D83=0,"",'INSERIMENTO DATI'!D83) ->  | R18: 2
B21: A - urbanizzazioni primarie | F21: Tipo intervento edilizio | G21: % Appl. | H21: Superficie (mq) | J21: Aliquota (€/mq) | P21: Totale ( € ) | S21: NUOVE ALIQUOTE | U21: ALIQUOTE INS. MANUALE | W21: VERIFICA DETRAZIONI PARK.
B22: Su/Sl (Superficie Utile/Lorda) | F22: =IF('INSERIMENTO DATI'!D11="Aree ferroviarie destinazione da PRG",'INSERIMENTO DATI'!N15,(IF(E10<>"Zone ASI","Nuova Costruzione",'INSERIMENTO DATI'!N15))) -> Nuova Costruzione | G22: 1 | H22: =IF((IF((AND('INSERIMENTO DATI'!R19<>5,'INSERIMENTO DATI'!R19<>8)),(SUM('INSERIMENTO DATI'!$F$50:$F$54)-SUM('INSERIMENTO DATI'!I50:I54)+SUM('INSERIMENTO DATI'!$F$69:$F$70)-SUM('INSERIMENTO DATI'!$I$69:$I$70)),0))<0,0,(IF(AND('INSERIMENTO DATI'!R19<>5,'INSERIMENTO DATI'!R19<>8),(SUM('INSERIMENTO DATI'!$F$50:$F$54)-SUM('INSERIMENTO DATI'!I50:I54)+SUM('INSERIMENTO DATI'!$F$69:$F$70)-SUM('INSERIMENTO DATI'!$I$69:$I$70)),0))) -> 1 | I22: x | J22: =IF(H22=0,0,(IF(U22<>0,U22,S22))) -> 22.06 | O22: = | P22: =(IF(H22<>"",(G22*H22*J22),0)) -> 22.06 | S22: =IF(H22<>0,IF(E10="Zone ASI",0,(IF(E10="Aree ferroviarie destinazione da PRG",(IF(E16="da 1 a 10",(VLOOKUP(E14,'Tabella B1 -B2 - B3'!$M$16:$AN$23,10,FALSE)),(IF(E16="da 11 a 50",(VLOOKUP(E14,'Tabella B1 -B2 - B3'!$M$16:$AN$23,15,FALSE)),(IF(E16="da 51 a 200",(VLOOKUP(E14,'Tabella B1 -B2 - B3'!$M$16:$AN$23,20,FALSE)),(IF(E16="da 201 a 1000",(VLOOKUP(E14,'Tabella B1 -B2 - B3'!$M$16:$AN$23,25,FALSE)),2)))))))),(IF('INSERIMENTO DATI'!R20=1,(IF(H22<>"",VLOOKUP(IF($E$12="",$E$10,$E$10&" "&$E$12),'Tabella A1'!$J$9:$AG$51,11,FALSE),"")),(IF(H22<>"",VLOOKUP(IF($E$12="",$E$10,$E$10&" "&$E$12),'Tabella A2'!$J$9:$AG$51,11,FALSE),""))))))),0) -> 22.06 | U22: 0 | W22: P. RES | X22: =(IF(('INSERIMENTO DATI'!F58)<=('INSERIMENTO DATI'!X29),(IF(('INSERIMENTO DATI'!I58)>('INSERIMENTO DATI'!F58),0,((('INSERIMENTO DATI'!F58)-('INSERIMENTO DATI'!I58))*-1))),(IF(('INSERIMENTO DATI'!X29)<('INSERIMENTO DATI'!F58),(IF(('INSERIMENTO DATI'!X29)<('INSERIMENTO DATI'!I58),0,((('INSERIMENTO DATI'!X29)-('INSERIMENTO DATI'!I58))*-1))),(('INSERIMENTO DATI'!F58)*-1))))) -> 0
B23: Snr/Sa (Superficie non residenziale/Accessoria) | G23: 0.5 | H23: =IF((IF(AND('INSERIMENTO DATI'!R19<>5,'INSERIMENTO DATI'!R19<>8),(SUM('INSERIMENTO DATI'!$F$57:$F$61)-SUM('INSERIMENTO DATI'!I57:I61)+SUM('INSERIMENTO DATI'!$F$73:$F$76)-SUM('INSERIMENTO DATI'!$I$73:$I$76)),0))<0,0,(IF(AND('INSERIMENTO DATI'!R19<>5,'INSERIMENTO DATI'!R19<>8),(SUM('INSERIMENTO DATI'!$F$57:$F$61)-SUM('INSERIMENTO DATI'!I57:I61)+SUM('INSERIMENTO DATI'!$F$73:$F$76)-SUM('INSERIMENTO DATI'!$I$73:$I$76)),0))) -> 0 | I23: x | J23: =IF(H23=0,0,(IF(U23<>0,U23,S23))) -> 0 | O23: = | P23: =(IF(H23<>"",(G23*H23*J23),0)) -> 0 | S23: =IF(H23<>0,IF(E10="Zone ASI",0,(IF(E10="Aree ferroviarie destinazione da PRG",(IF(E16="da 1 a 10",(VLOOKUP(E14,'Tabella B1 -B2 - B3'!$M$16:$AN$23,10,FALSE)),(IF(E16="da 11 a 50",(VLOOKUP(E14,'Tabella B1 -B2 - B3'!$M$16:$AN$23,15,FALSE)),(IF(E16="da 51 a 200",(VLOOKUP(E14,'Tabella B1 -B2 - B3'!$M$16:$AN$23,20,FALSE)),(IF(E16="da 201 a 1000",(VLOOKUP(E14,'Tabella B1 -B2 - B3'!$M$16:$AN$23,25,FALSE)),2)))))))),(IF('INSERIMENTO DATI'!R20=1,(IF(H23<>"",VLOOKUP(IF($E$12="",$E$10,$E$10&" "&$E$12),'Tabella A1'!$J$9:$AG$51,11,FALSE),"")),(IF(H23<>"",VLOOKUP(IF($E$12="",$E$10,$E$10&" "&$E$12),'Tabella A2'!$J$9:$AG$51,11,FALSE),""))))))),0) -> 0 | U23: =IF(S23<>0,U22,0) -> 0 | W23: P. TER | X23: =+(IF(('INSERIMENTO DATI'!F75+'INSERIMENTO DATI'!F76)<=('INSERIMENTO DATI'!X30+'INSERIMENTO DATI'!D34),(IF(('INSERIMENTO DATI'!I75+'INSERIMENTO DATI'!I76)>=('INSERIMENTO DATI'!F75+'INSERIMENTO DATI'!F76),0,(((('INSERIMENTO DATI'!F75)+('INSERIMENTO DATI'!F76))-(('INSERIMENTO DATI'!I75)+('INSERIMENTO DATI'!I76)))*-1))),(IF(('INSERIMENTO DATI'!X30+'INSERIMENTO DATI'!D34)<('INSERIMENTO DATI'!F75+'INSERIMENTO DATI'!F76),(IF(('INSERIMENTO DATI'!X30+'INSERIMENTO DATI'!D34)<('INSERIMENTO DATI'!I75+'INSERIMENTO DATI'!I76),0,((('INSERIMENTO DATI'!X30+'INSERIMENTO DATI'!D34)-('INSERIMENTO DATI'!I75+'INSERIMENTO DATI'!I76))*-1))),(('INSERIMENTO DATI'!F75+'INSERIMENTO DATI'!F76)*-1))))) -> 0
B24: Snr/Sa (Parch. minimo di legge a detrarre) | G24: 0.5 | H24: =(IF(('INSERIMENTO DATI'!F58)<=('INSERIMENTO DATI'!X29),(IF(('INSERIMENTO DATI'!I58)>('INSERIMENTO DATI'!F58),0,((('INSERIMENTO DATI'!F58)-('INSERIMENTO DATI'!I58))*-1))),(IF(('INSERIMENTO DATI'!X29)<('INSERIMENTO DATI'!F58),(IF(('INSERIMENTO DATI'!X29)<('INSERIMENTO DATI'!I58),0,((('INSERIMENTO DATI'!X29)-('INSERIMENTO DATI'!I58))*-1))),(('INSERIMENTO DATI'!F58)*-1)))))+(IF(('INSERIMENTO DATI'!F75+'INSERIMENTO DATI'!F76)<=('INSERIMENTO DATI'!X30+'INSERIMENTO DATI'!D34),(IF(('INSERIMENTO DATI'!I75+'INSERIMENTO DATI'!I76)>=('INSERIMENTO DATI'!F75+'INSERIMENTO DATI'!F76),0,(((('INSERIMENTO DATI'!F75)+('INSERIMENTO DATI'!F76))-(('INSERIMENTO DATI'!I75)+('INSERIMENTO DATI'!I76)))*-1))),(IF(('INSERIMENTO DATI'!X30+'INSERIMENTO DATI'!D34)<('INSERIMENTO DATI'!F75+'INSERIMENTO DATI'!F76),(IF(('INSERIMENTO DATI'!X30+'INSERIMENTO DATI'!D34)<('INSERIMENTO DATI'!I75+'INSERIMENTO DATI'!I76),0,((('INSERIMENTO DATI'!X30+'INSERIMENTO DATI'!D34)-('INSERIMENTO DATI'!I75+'INSERIMENTO DATI'!I76))*-1))),(('INSERIMENTO DATI'!F75+'INSERIMENTO DATI'!F76)*-1))))) -> 0 | I24: x | J24: 0 | O24: = | P24: 0 | S24: =IF(H24<>0,IF(E10="Zone ASI",0,(IF(E10="Aree ferroviarie destinazione da PRG",(IF(E16="da 1 a 10",(VLOOKUP(E14,'Tabella B1 -B2 - B3'!$M$16:$AN$23,10,FALSE)),(IF(E16="da 11 a 50",(VLOOKUP(E14,'Tabella B1 -B2 - B3'!$M$16:$AN$23,15,FALSE)),(IF(E16="da 51 a 200",(VLOOKUP(E14,'Tabella B1 -B2 - B3'!$M$16:$AN$23,20,FALSE)),(IF(E16="da 201 a 1000",(VLOOKUP(E14,'Tabella B1 -B2 - B3'!$M$16:$AN$23,25,FALSE)),2)))))))),(IF('INSERIMENTO DATI'!R20=1,(IF(H24<>"",VLOOKUP(IF($E$12="",$E$10,$E$10&" "&$E$12),'Tabella A1'!$J$9:$AG$51,11,FALSE),"")),(IF(H24<>"",VLOOKUP(IF($E$12="",$E$10,$E$10&" "&$E$12),'Tabella A2'!$J$9:$AG$51,11,FALSE),""))))))),0) -> 0 | U24: =IF(S24<>0,U22,0) -> 0 | W24: URB - NC | X24: =SUM(X22:X23) -> 0 | Y24: =(IF(('INSERIMENTO DATI'!F58)<=('INSERIMENTO DATI'!X29),(IF(('INSERIMENTO DATI'!I58)>('INSERIMENTO DATI'!F58),0,((('INSERIMENTO DATI'!F58)-('INSERIMENTO DATI'!I58))*-1))),(IF(('INSERIMENTO DATI'!X29)<('INSERIMENTO DATI'!F58),(IF(('INSERIMENTO DATI'!X29)<('INSERIMENTO DATI'!I58),0,((('INSERIMENTO DATI'!X29)-('INSERIMENTO DATI'!I58))*-1))),(('INSERIMENTO DATI'!F58)*-1)))))+(IF(('INSERIMENTO DATI'!F75+'INSERIMENTO DATI'!F76)<=('INSERIMENTO DATI'!X30+'INSERIMENTO DATI'!D34),(IF(('INSERIMENTO DATI'!I75+'INSERIMENTO DATI'!I76)>=('INSERIMENTO DATI'!F75+'INSERIMENTO DATI'!F76),0,((('INSERIMENTO DATI'!F75)+('INSERIMENTO DATI'!F76)-('INSERIMENTO DATI'!I75)+('INSERIMENTO DATI'!I76))*-1))),(IF(('INSERIMENTO DATI'!X30+'INSERIMENTO DATI'!D34)<('INSERIMENTO DATI'!F75+'INSERIMENTO DATI'!F76),(IF(('INSERIMENTO DATI'!X30+'INSERIMENTO DATI'!D34)<('INSERIMENTO DATI'!I75+'INSERIMENTO DATI'!I76),0,((('INSERIMENTO DATI'!X30+'INSERIMENTO DATI'!D34)-('INSERIMENTO DATI'!I75+'INSERIMENTO DATI'!I76))*-1))),(('INSERIMENTO DATI'!F75+'INSERIMENTO DATI'!F76)*-1))))) -> 0 | Z24: OLD
B25: Snr/Sa (Autorimessa minimo di legge a detrarre) | G25: 0.5 | H25: =IF('INSERIMENTO DATI'!F59<=('INSERIMENTO DATI'!D36),(IF('INSERIMENTO DATI'!I59>'INSERIMENTO DATI'!F59,0,(('INSERIMENTO DATI'!F59-'INSERIMENTO DATI'!I59)*-1))),(IF(('INSERIMENTO DATI'!D36)<'INSERIMENTO DATI'!F59,(IF(('INSERIMENTO DATI'!D36)<'INSERIMENTO DATI'!I59,0,(('INSERIMENTO DATI'!D36-'INSERIMENTO DATI'!I59)*-1))),(('INSERIMENTO DATI'!F59)*-1)))) -> 0 | I25: x | J25: 0 | O25: = | P25: 0 | S25: =IF(H25<>0,IF(E10="Zone ASI",0,(IF(E10="Aree ferroviarie destinazione da PRG",(IF(E16="da 1 a 10",(VLOOKUP(E14,'Tabella B1 -B2 - B3'!$M$16:$AN$23,10,FALSE)),(IF(E16="da 11 a 50",(VLOOKUP(E14,'Tabella B1 -B2 - B3'!$M$16:$AN$23,15,FALSE)),(IF(E16="da 51 a 200",(VLOOKUP(E14,'Tabella B1 -B2 - B3'!$M$16:$AN$23,20,FALSE)),(IF(E16="da 201 a 1000",(VLOOKUP(E14,'Tabella B1 -B2 - B3'!$M$16:$AN$23,25,FALSE)),2)))))))),(IF('INSERIMENTO DATI'!R20=1,(IF(H25<>"",VLOOKUP(IF($E$12="",$E$10,$E$10&" "&$E$12),'Tabella A1'!$J$9:$AG$51,11,FALSE),"")),(IF(H25<>"",VLOOKUP(IF($E$12="",$E$10,$E$10&" "&$E$12),'Tabella A2'!$J$9:$AG$51,11,FALSE),""))))))),0) -> 0 | U25: =IF(S25<>0,U22,0) -> 0
B26: Su/Sl (Superficie Utile/Lorda) | F26: =IF('INSERIMENTO DATI'!D11="Aree ferroviarie destinazione da PRG","",(IF(E10<>"Zone ASI","Demol. e Ricostruzione",'INSERIMENTO DATI'!N15))) -> Demol. e Ricostruzione | G26: 1 | H26: =IF(('INSERIMENTO DATI'!R19=5),0,(IF(AND(('INSERIMENTO DATI'!R19<>5),(SUM('INSERIMENTO DATI'!$I$50:$I$54))+(SUM('INSERIMENTO DATI'!$I$69:$I$70))<(SUM('INSERIMENTO DATI'!$F$50:$F$54))+(SUM('INSERIMENTO DATI'!$F$69:$F$70))),(SUM('INSERIMENTO DATI'!$I$50:$I$54))+(SUM('INSERIMENTO DATI'!$I$69:$I$70)),(SUM('INSERIMENTO DATI'!$F$50:$F$54))+(SUM('INSERIMENTO DATI'!$F$69:$F$70))))) -> 0 | I26: x | J26: 0 | P26: 0 | R26: =(IF(AND(('INSERIMENTO DATI'!R19<>5),(SUM('INSERIMENTO DATI'!$I$50:$I$54))+(SUM('INSERIMENTO DATI'!$I$69:$I$70))<(SUM('INSERIMENTO DATI'!$F$50:$F$54))+(SUM('INSERIMENTO DATI'!$F$69:$F$70))),(SUM('INSERIMENTO DATI'!$I$50:$I$54))+(SUM('INSERIMENTO DATI'!$I$69:$I$70)),(SUM('INSERIMENTO DATI'!$F$50:$F$54))+(SUM('INSERIMENTO DATI'!$F$69:$F$70)))) -> 0 | S26: =IF(H26<>0,IF(E10="Zone ASI",0,(IF('INSERIMENTO DATI'!R20=1,(IF(H26<>"",VLOOKUP(IF($E$12="",$E$10,$E$10&" "&$E$12),'Tabella A1'!$J$9:$AG$51,16,FALSE),"")),(IF(H26<>"",VLOOKUP(IF($E$12="",$E$10,$E$10&" "&$E$12),'Tabella A2'!$J$9:$AG$51,16,FALSE),""))))),0) -> 0 | U26: 0 | W26: P. RES | X26: =(IF(('INSERIMENTO DATI'!I58>'INSERIMENTO DATI'!X29),(IF(('INSERIMENTO DATI'!F58<'INSERIMENTO DATI'!X29),'INSERIMENTO DATI'!F58*-1,'INSERIMENTO DATI'!X29*-1)),'INSERIMENTO DATI'!I58*-1)) -> 0
B27: Snr/Sa (Superficie non residenziale/Accessoria) | G27: 0.5 | H27: =IF('INSERIMENTO DATI'!R19=5,0,(IF(AND(('INSERIMENTO DATI'!R19<>5),((SUM('INSERIMENTO DATI'!$I$57:$I$61)+(SUM('INSERIMENTO DATI'!$I$73:$I$76)))<(SUM('INSERIMENTO DATI'!$F$57:$F$61)+(SUM('INSERIMENTO DATI'!$F$73:$F$76))))),(SUM('INSERIMENTO DATI'!$I$57:$I$61)+(SUM('INSERIMENTO DATI'!$I$73:$I$76))),(SUM('INSERIMENTO DATI'!$F$57:$F$61)+(SUM('INSERIMENTO DATI'!$F$73:$F$76)))))) -> 0 | I27: x | J27: 0 | O27: = | P27: 0 | R27: =(SUM('INSERIMENTO DATI'!$I$50:$I$54))+(SUM('INSERIMENTO DATI'!$I$69:$I$70))<(SUM('INSERIMENTO DATI'!$F$50:$F$54))+(SUM('INSERIMENTO DATI'!$F$69:$F$70)) -> TRUE | S27: =IF(H27<>0,IF(E10="Zone ASI",0,(IF('INSERIMENTO DATI'!R20=1,(IF(H27<>"",VLOOKUP(IF($E$12="",$E$10,$E$10&" "&$E$12),'Tabella A1'!$J$9:$AG$51,16,FALSE),"")),(IF(H27<>"",VLOOKUP(IF($E$12="",$E$10,$E$10&" "&$E$12),'Tabella A2'!$J$9:$AG$51,16,FALSE),""))))),0) -> 0 | U27: =IF(S27<>0,U26,0) -> 0 | W27: P. TER | X27: =(IF(('INSERIMENTO DATI'!I75+'INSERIMENTO DATI'!I76>='INSERIMENTO DATI'!X30+'INSERIMENTO DATI'!D34),(IF((('INSERIMENTO DATI'!F75+'INSERIMENTO DATI'!F76)<('INSERIMENTO DATI'!X30+'INSERIMENTO DATI'!D34)),('INSERIMENTO DATI'!F75+'INSERIMENTO DATI'!F76)*-1,('INSERIMENTO DATI'!X30+'INSERIMENTO DATI'!D34)*-1)),('INSERIMENTO DATI'!I75+'INSERIMENTO DATI'!I76)*-1)) -> 0
B28: Snr/Sa (Parch. minimo di legge a detrarre) | G28: 0.5 | H28: =(IF(('INSERIMENTO DATI'!I58>'INSERIMENTO DATI'!X29),(IF(('INSERIMENTO DATI'!F58<'INSERIMENTO DATI'!X29),'INSERIMENTO DATI'!F58*-1,'INSERIMENTO DATI'!X29*-1)),'INSERIMENTO DATI'!I58*-1))+(IF(('INSERIMENTO DATI'!I75+'INSERIMENTO DATI'!I76>='INSERIMENTO DATI'!X30+'INSERIMENTO DATI'!D34),(IF((('INSERIMENTO DATI'!F75+'INSERIMENTO DATI'!F76)<('INSERIMENTO DATI'!X30+'INSERIMENTO DATI'!D34)),('INSERIMENTO DATI'!F75+'INSERIMENTO DATI'!F76)*-1,('INSERIMENTO DATI'!X30+'INSERIMENTO DATI'!D34)*-1)),('INSERIMENTO DATI'!I75+'INSERIMENTO DATI'!I76)*-1)) -> 0 | I28: x | J28: 0 | O28: = | P28: 0 | R28: =((SUM('INSERIMENTO DATI'!$I$57:$I$61)+(SUM('INSERIMENTO DATI'!$I$73:$I$76)))<(SUM('INSERIMENTO DATI'!$F$57:$F$61)+(SUM('INSERIMENTO DATI'!$F$73:$F$76)))) -> FALSE | S28: =IF(H28<>0,IF(E10="Zone ASI",0,(IF('INSERIMENTO DATI'!R20=1,(IF(H28<>"",VLOOKUP(IF($E$12="",$E$10,$E$10&" "&$E$12),'Tabella A1'!$J$9:$AG$51,16,FALSE),"")),(IF(H28<>"",VLOOKUP(IF($E$12="",$E$10,$E$10&" "&$E$12),'Tabella A2'!$J$9:$AG$51,16,FALSE),""))))),0) -> 0 | U28: =IF(S28<>0,U26,0) -> 0 | W28: URB - DR | X28: =SUM(X26:X27) -> 0 | Y28: =(IF(('INSERIMENTO DATI'!F58+'INSERIMENTO DATI'!F75+'INSERIMENTO DATI'!F76)<('INSERIMENTO DATI'!D32+'INSERIMENTO DATI'!D34),(IF(('INSERIMENTO DATI'!I58+'INSERIMENTO DATI'!I75+'INSERIMENTO DATI'!I76)>('INSERIMENTO DATI'!F58+'INSERIMENTO DATI'!F75+'INSERIMENTO DATI'!F76),(('INSERIMENTO DATI'!F58+'INSERIMENTO DATI'!F75+'INSERIMENTO DATI'!F76)*-1),(('INSERIMENTO DATI'!I58+'INSERIMENTO DATI'!I75+'INSERIMENTO DATI'!I76)*-1))),(IF(('INSERIMENTO DATI'!D32+'INSERIMENTO DATI'!D34)<('INSERIMENTO DATI'!I58+'INSERIMENTO DATI'!I75+'INSERIMENTO DATI'!I76),(('INSERIMENTO DATI'!D32+'INSERIMENTO DATI'!D34)*-1),((('INSERIMENTO DATI'!F58+'INSERIMENTO DATI'!F75+'INSERIMENTO DATI'!F76)-(('INSERIMENTO DATI'!F58+'INSERIMENTO DATI'!F75+'INSERIMENTO DATI'!F76)-('INSERIMENTO DATI'!I58+'INSERIMENTO DATI'!I75+'INSERIMENTO DATI'!I76)))*-1))))) -> 0 | Z28: OLD
B29: Snr/Sa (Autorimessa minimo di legge a detrarre) | G29: 0.5 | H29: =(IF('INSERIMENTO DATI'!F59<('INSERIMENTO DATI'!D36),(IF('INSERIMENTO DATI'!I59>'INSERIMENTO DATI'!F59,('INSERIMENTO DATI'!F59*-1),('INSERIMENTO DATI'!I59*-1))),(IF(('INSERIMENTO DATI'!D36)<'INSERIMENTO DATI'!I59,(('INSERIMENTO DATI'!D36)*-1),(('INSERIMENTO DATI'!F59-('INSERIMENTO DATI'!F59-'INSERIMENTO DATI'!I59))*-1))))) -> 0 | I29: x | J29: 0 | O29: = | P29: 0 | S29: =IF(H29<>0,IF(E10="Zone ASI",0,(IF('INSERIMENTO DATI'!R20=1,(IF(H29<>"",VLOOKUP(IF($E$12="",$E$10,$E$10&" "&$E$12),'Tabella A1'!$J$9:$AG$51,16,FALSE),"")),(IF(H29<>"",VLOOKUP(IF($E$12="",$E$10,$E$10&" "&$E$12),'Tabella A2'!$J$9:$AG$51,16,FALSE),""))))),0) -> 0 | U29: =IF(S29<>0,U26,0) -> 0
B30: Su/Sl (Superficie Utile/Lorda) | F30: =IF('INSERIMENTO DATI'!D11="Aree ferroviarie destinazione da PRG","",(IF(E10<>"Zone ASI","Ristrutturazione",'INSERIMENTO DATI'!N15))) -> Ristrutturazione | G30: 1 | H30: =IF(OR('INSERIMENTO DATI'!R19=5,'INSERIMENTO DATI'!R19=8),(SUM('INSERIMENTO DATI'!$F$50:$F$54)+(SUM('INSERIMENTO DATI'!F69:$F$70))),0) -> 0 | I30: x | J30: 0 | P30: 0 | S30: =IF(H30<>0,IF(E10="Zone ASI",0,(IF('INSERIMENTO DATI'!R20=1,(IF(H30<>"",VLOOKUP(IF($E$12="",$E$10,$E$10&" "&$E$12),'Tabella A1'!$J$9:$AG$51,21,FALSE),"")),(IF(H30<>"",VLOOKUP(IF($E$12="",$E$10,$E$10&" "&$E$12),'Tabella A2'!$J$9:$AG$51,21,FALSE),""))))),0) -> 0 | U30: 0 | W30: P. RES | X30: =H63 -> 0
B31: Snr (Superficie non residenziale) | G31: 0.5 | H31: =IF(OR('INSERIMENTO DATI'!R19=5,'INSERIMENTO DATI'!R19=8),(SUM('INSERIMENTO DATI'!$F$57:$F$61)+(SUM('INSERIMENTO DATI'!F73:$F$76))),0) -> 0 | I31: x | J31: 0 | O31: = | P31: 0 | S31: =IF(H31<>0,IF(E10="Zone ASI",0,(IF('INSERIMENTO DATI'!R20=1,(IF(H31<>"",VLOOKUP(IF($E$12="",$E$10,$E$10&" "&$E$12),'Tabella A1'!$J$9:$AG$51,21,FALSE),"")),(IF(H31<>"",VLOOKUP(IF($E$12="",$E$10,$E$10&" "&$E$12),'Tabella A2'!$J$9:$AG$51,21,FALSE),""))))),0) -> 0 | U31: =IF(S31<>0,U30,0) -> 0 | W31: P. TER | X31: =H67+H70 -> 0
B32: SUBTOTALE A - urbanizzazioni primarie | P32: =ROUND(SUM(P22:P31),0) -> 22 | W32: C.C TOT | X32: =SUM(X30:X31) -> 0
B33: ABBATTIMENTO DEL 20% (edilizia residenziale inserita in piani e progr. di iniziativa pubblica e mista e ristrutturazione urbanistica con realizz. in cl. 3 del prot. itaca) | P33: =IF('INSERIMENTO DATI'!R42=TRUE,ROUND((P32*0.2),0),0) -> 0
B34: ABBATTIMENTO DEL 20% (agev. di interenti di rigen. urbana, di ristrutturazione e di recupero e riuso degli immobili dismessi o in dismissione) art.17 c.4bis DPR 380/01 | P34: =IF(R18=1,0,(IF('INSERIMENTO DATI'!R43=TRUE,ROUND((P32*0.2),0),0))) -> 0
B35: ABBATTIMENTO DEL 50% (delle tariffe delle zone b3 per aree servizi ed a verde per servizi culturali, sportivi e di recupero del disagio sociale) | P35: =IF('INSERIMENTO DATI'!R44=TRUE,ROUND((P32*0.5),0),0) -> 0
B36: EVENTUALI ONERI GIA' VERSATI (Necessario allegare attestazioni di pagamento a comprova)
B37: EVENTUALI SCOMPUTI DA CONVENZIONE
B38: TOTALE URBANIZZAZIONI PRIMARIE DA VERSARE (tariffe da delibera C.C. nr.73/2019) | P38: =ROUND((IF((P32-P33-P34-P35-P36-P37)<0,0,(P32-P33-P34-P35-P36-P37))),0) -> 22
B40: B - urbanizzazioni secondarie | F40: Tipo intervento edilizio | G40: % Appl. | H40: Superficie (mq) | J40: Aliquota (€/mq) | P40: Totale ( € ) | S40: NUOVE ALIQUOTE | U40: ALIQUOTE INS. MANUALE
B41: Su/Sl (Superficie Utile/Lorda) | F41: =IF('INSERIMENTO DATI'!D11="Aree ferroviarie destinazione da PRG",'INSERIMENTO DATI'!N15,(IF(E10<>"Zone ASI","Nuova Costruzione",'INSERIMENTO DATI'!N15))) -> Nuova Costruzione | G41: 1 | H41: =H22 -> 1 | I41: x | J41: =IF(H41=0,0,(IF(U41<>0,U41,S41))) -> 45.31 | O41: = | P41: =(IF(H41<>"",(G41*H41*J41),0)) -> 45.31 | S41: =IF(H41<>0,IF('INSERIMENTO DATI'!D15="Consorzi ASI - Insediamenti commerciali e direzionali",(VLOOKUP(E14,'Tabella B1 -B2 - B3'!$M$28:$AI$37,11,FALSE)),(IF(OR(E10="Zone ASI",E10="Aree ferroviarie destinazione da PRG"),(IF(E16="da 1 a 10",(VLOOKUP(E14,'Tabella B1 -B2 - B3'!M9:W24,11,FALSE)),(IF(E16="da 11 a 50",(VLOOKUP(E14,'Tabella B1 -B2 - B3'!M9:AB24,16,FALSE)),(IF(E16="da 51 a 200",(VLOOKUP(E14,'Tabella B1 -B2 - B3'!M9:AG24,21,FALSE)),(IF(E16="da 201 a 1000",(VLOOKUP(E14,'Tabella B1 -B2 - B3'!M9:AL24,26,FALSE)),"")))))))),(IF('INSERIMENTO DATI'!R20=1,(IF(H41<>"",VLOOKUP(IF($E$12="",$E$10,$E$10&" "&$E$12),'Tabella A1'!$J$9:$AG$51,12,FALSE),"")),(IF(H41<>"",VLOOKUP(IF($E$12="",$E$10,$E$10&" "&$E$12),'Tabella A2'!$J$9:$AG$51,12,FALSE),""))))))),0) -> 45.31 | U41: 0
B42: Snr/Sa (Superficie non residenziale/Accessoria) | G42: 0.5 | H42: 0 | I42: x | J42: 0 | O42: = | P42: =(IF(H42<>"",(G42*H42*J42),0)) -> 0 | S42: =IF(H42<>0,IF('INSERIMENTO DATI'!D15="Consorzi ASI - Insediamenti commerciali e direzionali",(VLOOKUP(E14,'Tabella B1 -B2 - B3'!$M$28:$AI$37,11,FALSE)),(IF(OR(E10="Zone ASI",E10="Aree ferroviarie destinazione da PRG"),(IF(E16="da 1 a 10",(VLOOKUP(E14,'Tabella B1 -B2 - B3'!M9:W24,11,FALSE)),(IF(E16="da 11 a 50",(VLOOKUP(E14,'Tabella B1 -B2 - B3'!M9:AB24,16,FALSE)),(IF(E16="da 51 a 200",(VLOOKUP(E14,'Tabella B1 -B2 - B3'!M9:AG24,21,FALSE)),(IF(E16="da 201 a 1000",(VLOOKUP(E14,'Tabella B1 -B2 - B3'!M9:AL24,26,FALSE)),"")))))))),(IF('INSERIMENTO DATI'!R20=1,(IF(H42<>"",VLOOKUP(IF($E$12="",$E$10,$E$10&" "&$E$12),'Tabella A1'!$J$9:$AG$51,12,FALSE),"")),(IF(H42<>"",VLOOKUP(IF($E$12="",$E$10,$E$10&" "&$E$12),'Tabella A2'!$J$9:$AG$51,12,FALSE),""))))))),0) -> 0 | U42: =IF(S42<>0,U41,0) -> 0
B43: Snr/Sa (Parch. minimo di legge a detrarre) | G43: 0.5 | H43: 0 | I43: x | J43: 0 | O43: = | P43: 0 | S43: =IF(H43<>0,IF('INSERIMENTO DATI'!D15="Consorzi ASI - Insediamenti commerciali e direzionali",(VLOOKUP(E14,'Tabella B1 -B2 - B3'!$M$28:$AI$37,11,FALSE)),(IF(OR(E10="Zone ASI",E10="Aree ferroviarie destinazione da PRG"),(IF(E16="da 1 a 10",(VLOOKUP(E14,'Tabella B1 -B2 - B3'!M9:W24,11,FALSE)),(IF(E16="da 11 a 50",(VLOOKUP(E14,'Tabella B1 -B2 - B3'!M9:AB24,16,FALSE)),(IF(E16="da 51 a 200",(VLOOKUP(E14,'Tabella B1 -B2 - B3'!M9:AG24,21,FALSE)),(IF(E16="da 201 a 1000",(VLOOKUP(E14,'Tabella B1 -B2 - B3'!M9:AL24,26,FALSE)),"")))))))),(IF('INSERIMENTO DATI'!R20=1,(IF(H43<>"",VLOOKUP(IF($E$12="",$E$10,$E$10&" "&$E$12),'Tabella A1'!$J$9:$AG$51,12,FALSE),"")),(IF(H43<>"",VLOOKUP(IF($E$12="",$E$10,$E$10&" "&$E$12),'Tabella A2'!$J$9:$AG$51,12,FALSE),""))))))),0) -> 0 | U43: =IF(S43<>0,U41,0) -> 0
B44: Snr/Sa (Autorimessa minimo di legge a detrarre) | G44: 0.5 | H44: 0 | I44: x | J44: 0 | O44: = | P44: 0 | S44: =IF(H44<>0,IF('INSERIMENTO DATI'!D15="Consorzi ASI - Insediamenti commerciali e direzionali",(VLOOKUP(E14,'Tabella B1 -B2 - B3'!$M$28:$AI$37,11,FALSE)),(IF(OR(E10="Zone ASI",E10="Aree ferroviarie destinazione da PRG"),(IF(E16="da 1 a 10",(VLOOKUP(E14,'Tabella B1 -B2 - B3'!M9:W24,11,FALSE)),(IF(E16="da 11 a 50",(VLOOKUP(E14,'Tabella B1 -B2 - B3'!M9:AB24,16,FALSE)),(IF(E16="da 51 a 200",(VLOOKUP(E14,'Tabella B1 -B2 - B3'!M9:AG24,21,FALSE)),(IF(E16="da 201 a 1000",(VLOOKUP(E14,'Tabella B1 -B2 - B3'!M9:AL24,26,FALSE)),"")))))))),(IF('INSERIMENTO DATI'!R20=1,(IF(H44<>"",VLOOKUP(IF($E$12="",$E$10,$E$10&" "&$E$12),'Tabella A1'!$J$9:$AG$51,12,FALSE),"")),(IF(H44<>"",VLOOKUP(IF($E$12="",$E$10,$E$10&" "&$E$12),'Tabella A2'!$J$9:$AG$51,12,FALSE),""))))))),0) -> 0 | U44: =IF(S44<>0,U41,0) -> 0
B45: Su/Sl (Superficie Utile/Lorda) | F45: =IF('INSERIMENTO DATI'!D11="Aree ferroviarie destinazione da PRG","",(IF(E10<>"Zone ASI","Demol. e Ricostruzione",'INSERIMENTO DATI'!N15))) -> Demol. e Ricostruzione | G45: 1 | H45: 0 | I45: x | J45: 0 | O45: = | P45: 0 | S45: =IF(H45<>0,IF('INSERIMENTO DATI'!D15="Consorzi ASI - Insediamenti commerciali e direzionali",(VLOOKUP(E14,'Tabella B1 -B2 - B3'!$M$28:$AI$37,16,FALSE)),(IF(E10="Zone ASI",(IF(E16="da 1 a 10",(VLOOKUP(E14,'Tabella B1 -B2 - B3'!M9:W24,11,FALSE)),(IF(E16="da 11 a 50",(VLOOKUP(E14,'Tabella B1 -B2 - B3'!M9:AB24,16,FALSE)),(IF(E16="da 51 a 200",(VLOOKUP(E14,'Tabella B1 -B2 - B3'!M9:AG24,21,FALSE)),(IF(E16="da 201 a 1000",(VLOOKUP(E14,'Tabella B1 -B2 - B3'!M9:AL24,26,FALSE)),"")))))))),(IF('INSERIMENTO DATI'!R20=1,(IF(H45<>"",VLOOKUP(IF($E$12="",$E$10,$E$10&" "&$E$12),'Tabella A1'!$J$9:$AG$51,17,FALSE),"")),(IF(H45<>"",VLOOKUP(IF($E$12="",$E$10,$E$10&" "&$E$12),'Tabella A2'!$J$9:$AG$51,17,FALSE),""))))))),0) -> 0 | U45: 0
B46: Snr/Sa (Superficie non residenziale/Accessoria) | G46: 0.5 | H46: 0 | I46: x | J46: 0 | O46: = | P46: 0 | S46: =IF(H46<>0,IF('INSERIMENTO DATI'!D15="Consorzi ASI - Insediamenti commerciali e direzionali",(VLOOKUP(E14,'Tabella B1 -B2 - B3'!$M$28:$AI$37,16,FALSE)),(IF(E10="Zone ASI",(IF(E16="da 1 a 10",(VLOOKUP(E14,'Tabella B1 -B2 - B3'!M9:W24,11,FALSE)),(IF(E16="da 11 a 50",(VLOOKUP(E14,'Tabella B1 -B2 - B3'!M9:AB24,16,FALSE)),(IF(E16="da 51 a 200",(VLOOKUP(E14,'Tabella B1 -B2 - B3'!M9:AG24,21,FALSE)),(IF(E16="da 201 a 1000",(VLOOKUP(E14,'Tabella B1 -B2 - B3'!M9:AL24,26,FALSE)),"")))))))),(IF('INSERIMENTO DATI'!R20=1,(IF(H46<>"",VLOOKUP(IF($E$12="",$E$10,$E$10&" "&$E$12),'Tabella A1'!$J$9:$AG$51,17,FALSE),"")),(IF(H46<>"",VLOOKUP(IF($E$12="",$E$10,$E$10&" "&$E$12),'Tabella A2'!$J$9:$AG$51,17,FALSE),""))))))),0) -> 0 | U46: =IF(S46<>0,U45,0) -> 0
B47: Snr/Sa (Parch. minimo di legge a detrarre) | G47: 0.5 | H47: 0 | I47: x | J47: 0 | O47: = | P47: 0 | S47: =IF(H47<>0,IF('INSERIMENTO DATI'!D15="Consorzi ASI - Insediamenti commerciali e direzionali",(VLOOKUP(E14,'Tabella B1 -B2 - B3'!$M$28:$AI$37,16,FALSE)),(IF(E10="Zone ASI",(IF(E16="da 1 a 10",(VLOOKUP(E14,'Tabella B1 -B2 - B3'!M9:W24,11,FALSE)),(IF(E16="da 11 a 50",(VLOOKUP(E14,'Tabella B1 -B2 - B3'!M9:AB24,16,FALSE)),(IF(E16="da 51 a 200",(VLOOKUP(E14,'Tabella B1 -B2 - B3'!M9:AG24,21,FALSE)),(IF(E16="da 201 a 1000",(VLOOKUP(E14,'Tabella B1 -B2 - B3'!M9:AL24,26,FALSE)),"")))))))),(IF('INSERIMENTO DATI'!R20=1,(IF(H47<>"",VLOOKUP(IF($E$12="",$E$10,$E$10&" "&$E$12),'Tabella A1'!$J$9:$AG$51,17,FALSE),"")),(IF(H47<>"",VLOOKUP(IF($E$12="",$E$10,$E$10&" "&$E$12),'Tabella A2'!$J$9:$AG$51,17,FALSE),""))))))),0) -> 0 | U47: =IF(S47<>0,U45,0) -> 0
B48: Snr/Sa (Autorimessa minimo di legge a detrarre) | G48: 0.5 | H48: 0 | I48: x | J48: 0 | O48: = | P48: 0 | S48: =IF(H48<>0,IF('INSERIMENTO DATI'!D15="Consorzi ASI - Insediamenti commerciali e direzionali",(VLOOKUP(E14,'Tabella B1 -B2 - B3'!$M$28:$AI$37,16,FALSE)),(IF(E10="Zone ASI",(IF(E16="da 1 a 10",(VLOOKUP(E14,'Tabella B1 -B2 - B3'!M9:W24,11,FALSE)),(IF(E16="da 11 a 50",(VLOOKUP(E14,'Tabella B1 -B2 - B3'!M9:AB24,16,FALSE)),(IF(E16="da 51 a 200",(VLOOKUP(E14,'Tabella B1 -B2 - B3'!M9:AG24,21,FALSE)),(IF(E16="da 201 a 1000",(VLOOKUP(E14,'Tabella B1 -B2 - B3'!M9:AL24,26,FALSE)),"")))))))),(IF('INSERIMENTO DATI'!R20=1,(IF(H48<>"",VLOOKUP(IF($E$12="",$E$10,$E$10&" "&$E$12),'Tabella A1'!$J$9:$AG$51,17,FALSE),"")),(IF(H48<>"",VLOOKUP(IF($E$12="",$E$10,$E$10&" "&$E$12),'Tabella A2'!$J$9:$AG$51,17,FALSE),""))))))),0) -> 0 | U48: =IF(S48<>0,U45,0) -> 0
B49: Su/Sl (Superficie Utile/Lorda) | F49: =IF('INSERIMENTO DATI'!D11="Aree ferroviarie destinazione da PRG","",(IF(E10<>"Zone ASI","Ristrutturazione",'INSERIMENTO DATI'!N15))) -> Ristrutturazione | G49: 1 | H49: 0 | I49: x | J49: 0 | O49: = | P49: 0 | S49: =IF(H49<>0,IF('INSERIMENTO DATI'!D15="Consorzi ASI - Insediamenti commerciali e direzionali",(VLOOKUP(E14,'Tabella B1 -B2 - B3'!$M$28:$AI$37,21,FALSE)),(IF(E10="Zone ASI",(IF(E16="da 1 a 10",(VLOOKUP(E14,'Tabella B1 -B2 - B3'!M9:W24,11,FALSE)),(IF(E16="da 11 a 50",(VLOOKUP(E14,'Tabella B1 -B2 - B3'!M9:AB24,16,FALSE)),(IF(E16="da 51 a 200",(VLOOKUP(E14,'Tabella B1 -B2 - B3'!M9:AG24,21,FALSE)),(IF(E16="da 201 a 1000",(VLOOKUP(E14,'Tabella B1 -B2 - B3'!M9:AL24,26,FALSE)),"")))))))),(IF('INSERIMENTO DATI'!R20=1,(IF(H49<>"",VLOOKUP(IF($E$12="",$E$10,$E$10&" "&$E$12),'Tabella A1'!$J$9:$AG$51,22,FALSE),"")),(IF(H49<>"",VLOOKUP(IF($E$12="",$E$10,$E$10&" "&$E$12),'Tabella A1'!$J$9:$AG$51,22,FALSE),""))))))),0) -> 0 | U49: 0
B50: Snr/Sa (Superficie non residenziale/Accessoria) | G50: 0.5 | H50: 0 | I50: x | J50: 0 | O50: = | P50: 0 | S50: =IF(H50<>0,IF('INSERIMENTO DATI'!D15="Consorzi ASI - Insediamenti commerciali e direzionali",(VLOOKUP(E14,'Tabella B1 -B2 - B3'!$M$28:$AI$37,21,FALSE)),(IF(E10="Zone ASI",(IF(E16="da 1 a 10",(VLOOKUP(E14,'Tabella B1 -B2 - B3'!M9:W24,11,FALSE)),(IF(E16="da 11 a 50",(VLOOKUP(E14,'Tabella B1 -B2 - B3'!M9:AB24,16,FALSE)),(IF(E16="da 51 a 200",(VLOOKUP(E14,'Tabella B1 -B2 - B3'!M9:AG24,21,FALSE)),(IF(E16="da 201 a 1000",(VLOOKUP(E14,'Tabella B1 -B2 - B3'!M9:AL24,26,FALSE)),"")))))))),(IF('INSERIMENTO DATI'!R20=1,(IF(H50<>"",VLOOKUP(IF($E$12="",$E$10,$E$10&" "&$E$12),'Tabella A1'!$J$9:$AG$51,22,FALSE),"")),(IF(H50<>"",VLOOKUP(IF($E$12="",$E$10,$E$10&" "&$E$12),'Tabella A1'!$J$9:$AG$51,22,FALSE),""))))))),0) -> 0 | U50: =IF(S50<>0,U49,0) -> 0
B51: SUBTOTALE B - urbanizzazioni secondarie | P51: =ROUND(SUM(P41:P50),0) -> 45
B52: PROTOCOLLO ITACA PER RIDUZIONE ONERI URBANIZZAZIONE | H52: =IF('INSERIMENTO DATI'!D40=0,"",'INSERIMENTO DATI'!D40) ->  | P52: =IF(H52=Elenchi!$G$3,P51*0.1,(IF(H52=Elenchi!$G$4,ROUND((P51*0.2),0),0))) -> 0
B53: ABBATTIMENTO DEL 20% (edilizia residenziale inserita in piani e progr. di iniziativa pubblica e mista e ristrutturazione urbanistica con realizz. in cl. 3 del prot. itaca) | P53: =IF('INSERIMENTO DATI'!R42= TRUE,ROUND((P51*0.2),0),0) -> 0
B54: ABBATTIMENTO DEL 20% (agev. di interenti di rigen. urbana, di ristrutturazione e di recupero e riuso degli immobili dismessi o in dismissione) art.17 c.4bis DPR 380/01 | P54: =IF(R18=1,0,(IF('INSERIMENTO DATI'!R43=TRUE,ROUND((P51*0.2),0),0))) -> 0
B55: ABBATTIMENTO DEL 50% (delle tariffe delle zone b3 per aree servizi ed a verde per servizi culturali, sportivi e di recupero del disagio sociale) | P55: =IF('INSERIMENTO DATI'!R44=TRUE,ROUND((P51*0.5),0),0) -> 0
B56: EVENTUALI ONERI GIA' VERSATI (Necessario allegare attestazioni di pagamento a comprova)
B57: EVENTUALI SCOMPUTI DA CONVENZIONE
B58: TOTALE URBANIZZAZIONI SECONDARIE DA VERSARE (tariffe da delibera C.C. nr.73/2019) | P58: =ROUND((IF((P51-P52-P53-P54-P55-P56-P57)<0,0,(P51-P52-P53-P54-P55-P56-P57))),0) -> 45
B60: C - costo di costruzione | F60: Tipo intervento edilizio | G60: % Appl. | H60: Superficie (mq) | J60: Aliquota (€/mq) | L60: Incr. (da tab.) | N60: Aliquota C.C. | P60: Totale ( € ) | S60: NUOVE ALIQUOTE | U60: ALIQUOTE INS. MANUALE
B61: Su (Superficie Utile) | F61: Residenziale | G61: 1 | H61: =('TAB. per calcolo magg. CC'!E37) -> 1 | I61: x | J61: =IF(H61=0,0,(IF(U61<>0,U61,S61))) -> 697.62 | K61: x | L61: =IF('INSERIMENTO DATI'!R19=5,0,'TAB. per calcolo magg. CC'!I51/100) -> 0 | M61: x | N61: =IF(H61<>0,5%,0) -> 0.05 | O61: = | P61: =(IF(L61>0%,(G61*H61*(J61+(J61*L61))*N61),(G61*H61*J61*N61))) -> 34.881 | S61: =IF(H61<>0,IF(E10="Zone ASI",0,(((IF('INSERIMENTO DATI'!R19=5,(IF('INSERIMENTO DATI'!R63=1,'Tabella A1'!AM41,(IF('INSERIMENTO DATI'!R63=2,'Tabella A1'!AM48,(IF('INSERIMENTO DATI'!R63=3,'Tabella A1'!AM33,0)))))),'Tabella A1'!AM10))))),0) -> 697.62 | U61: 0
B62: Snr (Superficie non residenziale) | G62: 0.6 | H62: =('TAB. per calcolo magg. CC'!E38) -> 0 | I62: x | J62: 0 | K62: x | L62: =L61 -> 0 | M62: x | N62: =IF(H62<>0,5%,0) -> 0 | O62: = | P62: =(IF(L62>0%,(G62*H62*(J62+(J62*L62))*N62),(G62*H62*J62*N62))) -> 0 | S62: =IF(H62<>0,IF(E10="Zone ASI",0,(((IF('INSERIMENTO DATI'!R19=5,(IF('INSERIMENTO DATI'!R63=1,'Tabella A1'!AM41,(IF('INSERIMENTO DATI'!R63=2,'Tabella A1'!AM48,(IF('INSERIMENTO DATI'!R63=3,'Tabella A1'!AM33,0)))))),'Tabella A1'!AM10))))),0) -> 0 | U62: =IF(S62<>0,U61,0) -> 0
B63: Snr (Parch. minimo di legge a detrarre) | G63: 0.6 | H63: =(IF(('INSERIMENTO DATI'!F58)<=('INSERIMENTO DATI'!X29),(IF(('INSERIMENTO DATI'!I58)>('INSERIMENTO DATI'!F58),0,((('INSERIMENTO DATI'!F58)-('INSERIMENTO DATI'!I58))*-1))),(IF(('INSERIMENTO DATI'!X29)<('INSERIMENTO DATI'!F58),(IF(('INSERIMENTO DATI'!X29)<('INSERIMENTO DATI'!I58),0,((('INSERIMENTO DATI'!X29)-('INSERIMENTO DATI'!I58))*-1))),(('INSERIMENTO DATI'!F58)*-1)))))+(IF(('INSERIMENTO DATI'!I58>'INSERIMENTO DATI'!X29),(IF(('INSERIMENTO DATI'!F58<'INSERIMENTO DATI'!X29),'INSERIMENTO DATI'!F58*-1,'INSERIMENTO DATI'!X29*-1)),'INSERIMENTO DATI'!I58*-1)) -> 0 | I63: x | J63: 0 | K63: x | L63: =L62 -> 0 | M63: x | N63: =IF(H63<>0,5%,0) -> 0 | O63: = | P63: 0 | S63: =IF(H63<>0,IF(E10="Zone ASI",0,(((IF('INSERIMENTO DATI'!R19=5,(IF('INSERIMENTO DATI'!R63=1,'Tabella A1'!AM41,(IF('INSERIMENTO DATI'!R63=2,'Tabella A1'!AM48,(IF('INSERIMENTO DATI'!R63=3,'Tabella A1'!AM33,0)))))),'Tabella A1'!AM10))))),0) -> 0 | U63: =IF(S63<>0,U61,0) -> 0
B64: Snr (Autorimessa minimo di legge a detrarre) | G64: 0.6 | H64: =H25+H29 -> 0 | I64: x | J64: 0 | K64: x | L64: =L63 -> 0 | M64: x | N64: =IF(H64<>0,5%,0) -> 0 | O64: = | P64: 0 | S64: =IF(H64<>0,IF(E10="Zone ASI",0,(((IF('INSERIMENTO DATI'!R19=5,(IF('INSERIMENTO DATI'!R63=1,'Tabella A1'!AM41,(IF('INSERIMENTO DATI'!R63=2,'Tabella A1'!AM48,(IF('INSERIMENTO DATI'!R63=3,'Tabella A1'!AM33,0)))))),'Tabella A1'!AM10))))),0) -> 0 | U64: =IF(S64<>0,U61,0) -> 0
B65: Sl (Superficie Lorda) | F65: Comm./Terz./Direz. Fuori Terra | G65: 1 | H65: =('TAB. per calcolo magg. CC'!E44) -> 0 | I65: x | J65: 0 | K65: x | L65: =IF('TAB. per calcolo magg. CC'!K47="TER",0%,L64) -> 0 | M65: x | N65: =IF(H65<>0,(IF(J65=J61,5%,(IF('INSERIMENTO DATI'!R19=0,5%,'INSERIMENTO DATI'!P78)))),0) -> 0 | O65: = | P65: 0 | S65: =(IF(H65<>0,IF(E10="Zone ASI",0,((IF('INSERIMENTO DATI'!R19=5,(IF('INSERIMENTO DATI'!R63=1,'Tabella A1'!AM41,(IF('INSERIMENTO DATI'!R63=2,'Tabella A1'!AM48,(IF('INSERIMENTO DATI'!R63=3,'Tabella A1'!AM33,0)))))),(IF('TAB. per calcolo magg. CC'!K47="TER",'Tabella A1'!AM19,'Tabella A1'!AM10)))))),0)) -> 0 | U65: 0
B66: Sa (Superficie accessoria) | G66: 0.6 | H66: =('TAB. per calcolo magg. CC'!E45) -> 0 | I66: x | J66: 0 | K66: x | L66: =L65 -> 0 | M66: x | N66: =IF(H66<>0,(IF(J66=J61,5%,(IF('INSERIMENTO DATI'!R19=0,5%,'INSERIMENTO DATI'!P78)))),0) -> 0 | O66: = | P66: 0 | S66: =(IF(H66<>0,IF(E10="Zone ASI",0,((IF('INSERIMENTO DATI'!R19=5,(IF('INSERIMENTO DATI'!R63=1,'Tabella A1'!AM41,(IF('INSERIMENTO DATI'!R63=2,'Tabella A1'!AM48,(IF('INSERIMENTO DATI'!R63=3,'Tabella A1'!AM33,0)))))),(IF('TAB. per calcolo magg. CC'!K47="TER",'Tabella A1'!AM19,'Tabella A1'!AM10)))))),0)) -> 0 | U66: =IF(S66<>0,U65,0) -> 0
B67: Sa (Parch. minimo di legge a detrarre) | G67: 0.6 | H67: =IF('INSERIMENTO DATI'!F75>0,(H24+H28-H63)*('INSERIMENTO DATI'!F75/('INSERIMENTO DATI'!F75+'INSERIMENTO DATI'!F76)),0) -> 0 | I67: x | J67: 0 | K67: x | L67: =L66 -> 0 | M67: x | N67: =IF(H67<>0,(IF(J67=J61,5%,(IF('INSERIMENTO DATI'!R19=0,5%,'INSERIMENTO DATI'!P78)))),0) -> 0 | O67: = | P67: 0 | S67: =(IF(H67<>0,IF(E10="Zone ASI",0,((IF('INSERIMENTO DATI'!R19=5,(IF('INSERIMENTO DATI'!R63=1,'Tabella A1'!AM41,(IF('INSERIMENTO DATI'!R63=2,'Tabella A1'!AM48,(IF('INSERIMENTO DATI'!R63=3,'Tabella A1'!AM33,0)))))),(IF('TAB. per calcolo magg. CC'!K47="TER",'Tabella A1'!AM19,'Tabella A1'!AM10)))))),0)) -> 0 | U67: =IF(S67<>0,U65,0) -> 0
B68: Sl (Superficie Lorda) | F68: Comm./Terz./Direz. Interrata | G68: 1 | H68: ='TAB. per calcolo magg. CC'!F44 -> 0 | I68: x | J68: 0 | K68: x | L68: =IF('TAB. per calcolo magg. CC'!K47="TER",0%,L64) -> 0 | M68: x | N68: =IF(H68<>0,(IF(J68=J61,5%,(IF('INSERIMENTO DATI'!R19=0,5%,'INSERIMENTO DATI'!P78)))),0) -> 0 | O68: = | P68: 0 | S68: =(IF(H68<>0,IF(E10="Zone ASI",0,((IF('INSERIMENTO DATI'!R19=5,(IF('INSERIMENTO DATI'!R63=1,'Tabella A1'!AM41,(IF('INSERIMENTO DATI'!R63=2,'Tabella A1'!AM48,(IF('INSERIMENTO DATI'!R63=3,'Tabella A1'!AM33,0)))))),(IF('TAB. per calcolo magg. CC'!K47="TER",'Tabella A1'!AM18,'Tabella A1'!AM10)))))),0)) -> 0 | U68: 0
B69: Sa (Superficie accessoria) | G69: 0.6 | H69: ='TAB. per calcolo magg. CC'!F45 -> 0 | I69: x | J69: 0 | K69: x | L69: =L68 -> 0 | M69: x | N69: =IF(H69<>0,(IF(J69=J61,5%,(IF('INSERIMENTO DATI'!R19=0,5%,'INSERIMENTO DATI'!P78)))),0) -> 0 | O69: = | P69: 0 | S69: =(IF(H69<>0,IF(E10="Zone ASI",0,((IF('INSERIMENTO DATI'!R19=5,(IF('INSERIMENTO DATI'!R63=1,'Tabella A1'!AM41,(IF('INSERIMENTO DATI'!R63=2,'Tabella A1'!AM48,(IF('INSERIMENTO DATI'!R63=3,'Tabella A1'!AM33,0)))))),(IF('TAB. per calcolo magg. CC'!K47="TER",'Tabella A1'!AM18,'Tabella A1'!AM10)))))),0)) -> 0 | U69: =IF(S69<>0,U68,0) -> 0
B70: Sa (Parch. minimo di legge a detrarre) | G70: 0.6 | H70: =(IF('INSERIMENTO DATI'!F76>0,(H24+H47-H63)*('INSERIMENTO DATI'!F76/('INSERIMENTO DATI'!F75+'INSERIMENTO DATI'!F76)),0)) -> 0 | I70: x | J70: 0 | K70: x | L70: =L69 -> 0 | M70: x | N70: =IF(H70<>0,(IF(J70=J61,5%,(IF('INSERIMENTO DATI'!R19=0,5%,'INSERIMENTO DATI'!P78)))),0) -> 0 | O70: = | P70: 0 | S70: =(IF(H70<>0,IF(E10="Zone ASI",0,((IF('INSERIMENTO DATI'!R19=5,(IF('INSERIMENTO DATI'!R63=1,'Tabella A1'!AM41,(IF('INSERIMENTO DATI'!R63=2,'Tabella A1'!AM48,(IF('INSERIMENTO DATI'!R63=3,'Tabella A1'!AM33,0)))))),(IF('TAB. per calcolo magg. CC'!K47="TER",'Tabella A1'!AM18,'Tabella A1'!AM10)))))),0)) -> 0 | U70: =IF(S70<>0,U68,0) -> 0
B71: SUBTOTALE C - costo di costruzione | P71: =ROUND(SUM(P61:P70),0) -> 35
B72: ABBATTIMENTO DEL 20% (agev. di interenti di rigen. urbana, di ristrutturazione e di recupero e riuso degli immobili dismessi o in dismissione) art.17 c.4bis DPR 380/01 | P72: =IF(R18=1,0,(IF('INSERIMENTO DATI'!R43=TRUE,ROUND((P71*0.2),0),0))) -> 0
B73: EVENTUALI ONERI GIA' VERSATI (Necessario allegare attestazioni di pagamento a comprova)
B74: EVENTUALI SCOMPUTI DA CONVENZIONE
B75: TOTALE COSTO DI COSTRUZIONE DA VERSARE (Tariffe da determina dirigenziale nr.10041/17) | P75: =ROUND((IF((P71-P72-P73-P74)<0,0,(P71-P72-P73-P74))),0) -> 35
B77: TOTALE CONTRIBUTO DI COSTRUZIONE (A + B + C) | P77: =P38+P58+P75 -> 102
B78: =IF(AND(R18=1,'INSERIMENTO DATI'!R43=TRUE),"ATT. L'abbattimento del 20% art. 17 c.4bis DPR 380/01 verrà applicato solo sulle superfici aggiuntive rispetto a quelle già assentite. Vedere foglio Prosp. Riep. per variante.","") -> 
B79: D - standard e parcheggi | F79: Tipo | G79: % Appl. | H79: Superficie (mq) | J79: Aliquota (€/mq) | L79: Riduz. | P79: Totale ( € ) | R79: incr. % | S79: NUOVE ALIQUOTE | U79: ALIQUOTE INS. MANUALE
B80: Ss (Superficie a Standard Urbanistici DM 1444/68) | F80: Monetizzazione Standard | G80: 1 | H80: =(IF('INSERIMENTO DATI'!O90<>"",'INSERIMENTO DATI'!O90,0))+(IF('INSERIMENTO DATI'!O95<>"",'INSERIMENTO DATI'!O95,0))+(IF('INSERIMENTO DATI'!O97<>"",'INSERIMENTO DATI'!O97,0)) -> 0 | I80: x | J80: =IF(H80=0,0,(IF(U80<>0,U80,S80))) -> 0 | O80: = | P80: =ROUND((IF(ISERROR(IF(H80<>"",(G80*H80)*J80,0))=TRUE,0,(IF(H80<>"",(G80*H80)*J80,0)))),0) -> 0 | R80: =IF(P80=0,"1",P80/P82) -> 1 | S80: =IF(E18="",0,IF(H80<>0,(VLOOKUP(E18,'Tabella Standard'!A:F,6,FALSE)),0)) -> 0 | U80: 0
B81: Sp (Superficie per Parcheggi L. 122/89) | F81: Monetizzazione Parcheggi | G81: 1 | H81: =(IF(OR('INSERIMENTO DATI'!O92<>"",'INSERIMENTO DATI'!O97<>""),('INSERIMENTO DATI'!O92),0)) -> 0 | I81: x | J81: 0 | K81: x | L81: 0.6 | O81: = | P81: =ROUND((IF(H81<>"",(G81*H81*L81)*J81,0)),0) -> 0 | R81: =IF(P81=0,1,P81/P82) -> 1 | S81: =IF(H81=0,0,('Tabella A1'!AM10)) -> 0 | U81: 0
B82: SUBTOTALE D - standard e parcheggi | P82: =SUM(P80:P81) -> 0
B83: EVENTUALI STANDARD GIA' VERSATI (Necessario allegare attestazioni di pagamento a comprova)
B84: EVENTUALI SCOMPUTI DA MOTIVARE IN RELAZIONE
B85: TOTALE MONETIZZAZIONE STANDARD E PARCHEGGI (D) (Tariffe standard da det. Dir. nr.130/14 tariffe parcheggi da delibera C.C. nr.73/2019) | P85: =ROUND((IF((P82-P83-P84)<0,0,(P82-P83-P84))),0) -> 0
B87: E - contributo straordinario di costruzione | P87: Totale ( € )
B88: EVENTUALI SCOMPUTI DA MOTIVARE IN RELAZIONE
B89: TOTALE CONTRIBUTO STRAORDINARIO DI COSTRUZIONE (Tariffa da delibera C.C. nr.11/2022) | J89: =IF(P89<>0,"("& 'INSERIMENTO DATI'!L24 &" mc x € 55,00) ","") ->  | M89: =IF(P88<>"",("- € " & P88),"") ->  | O89: = | P89: =(IF('INSERIMENTO DATI'!T21<>"",('INSERIMENTO DATI'!T21*55)-P88,0)) -> 0
B91: F - sanzioni | E91: Articolo di riferimento DPR nr.380/2001 | P91: Totale ( € )
B92: Sanzione | O92: =
B93: Sanzione | O93: =
B94: SUBTOTALE E - sanzioni | P94: =SUM(P92:P93) -> 0
B95: EVENTUALI SANZIONI GIA' VERSATE (Necessario allegare attestazioni di pagamento a comprova)
B96: TOTALE SANZIONI | P96: =ROUND((IF((P94-P95)<0,0,(P94-P95))),0) -> 0
B98: TOTALE DA VERSARE - CONTR. DI COSTRUZIONE + STANDARD E PARCHEGGI + CONTR. STRAORDINARIO + SANZIONI | P98: =P77+P85+P89+P96 -> 102
C100: Il tecnico istruttore | G100: La Posizione Organizzativa | N100: Il Direttore della Ripartizione
C101: Nome tecnico | G101: Nome posizione | N101: Nome Direttore

Sheet Tabella A1 (hidden)
J1: 1 | L1: 3 | M1: 4 | N1: 5 | O1: 6 | P1: 7 | Q1: 8 | R1: 9 | S1: 10 | T1: 11 | U1: 12 | V1: 13 | W1: 14 | X1: 15 | Y1: 16 | Z1: 17 | AA1: 18 | AB1: 19 | AC1: 20 | AD1: 21 | AE1: 22 | AF1: 23 | AG1: 24 | AH1: 25
L2: TABELLA CONTRIBUTO DI COSTRUZIONE A1 | S2: ALIQUOTE URBANIZZAZIONI | AJ2: ALIQUOTE COSTO DI COSTRUZIONE | AP2: AGGIORNAMENTO 21/10/2019 | AQ2: Abbattimenti previsti per le urbanizzazioni primarie e secondarie: 1) costruzioni sostenibili prot. ITACA: -classe 3 -10% -classe 4-5 -20% 2) riqulificazioni e rigenerazione urbana edifici inseriti in piani e programmi complessi di edilizia pubblica e mista con destinazione residenziale edifici prot. ITACA classe 3 -20% 3) interventi in area a servizi e verde laddove si tratti di servizi, sportivi e di recupero del disagio sociale -50%
G3: COEFFICIENTE DI INCREMENTO | H3: 1 | S3: Tipologia di intervento edilizio
M4: Destinazione di P.R.G. | P4: Norma NTA | T4: NUOVA COSTRUZIONE | Y4: RISTRUTTURAZIONE con Demolizione e ricostruzione | AD4: RISTRUTTURAZIONE
T5: N.C. | Y5: D.R. | AD5: R.R.
A6: N.C. | D6: D.R. | G6: R.R. | T6: (€/mq) | Y6: (€/mq) | AD6: (€/mq)
A7: UP | B7: US | D7: UP | E7: US | G7: UP | H7: US | J7: Dest. PRG | T7: U.P. | U7: U.S. | W7: TOT. | Y7: U.P. | Z7: U.S. | AB7: TOT. | AD7: U.P. | AE7: U.S. | AG7: TOT. | AK7: NUOVE COSTRUZIONI
A9: 22.06 | B9: 45.31 | D9: 22.06 | E9: 45.31 | G9: 11.03 | H9: 22.66 | J9: =IF(O9<>"",M9&" "&N9&" "&O9,IF(N9<>"",M9&" "&N9,M9)) -> Centro Storico A1 | M9: Centro Storico | N9: A1 | P9: Art. 45 | T9: =ROUND(A9*$H$3,2) -> 22.06 | U9: =ROUND(B9*$H$3,2) -> 45.31 | W9: =T9+U9 -> 67.37 | Y9: =ROUND(D9*$H$3,2) -> 22.06 | Z9: =ROUND(E9*$H$3,2) -> 45.31 | AB9: =Y9+Z9 -> 67.37 | AD9: =ROUND(G9*$H$3,2) -> 11.03 | AE9: =ROUND(H9*$H$3,2) -> 22.66 | AG9: =AD9+AE9 -> 33.69
A10: 22.06 | B10: 45.31 | D10: 22.06 | E10: 45.31 | G10: 11.03 | H10: 22.66 | J10: Interesse Ambientale A2 | M10: Interesse Ambientale | N10: A2 | P10: Art. 46 | T10: 22.06 | U10: 45.31 | W10: 67.37 | Y10: 22.06 | Z10: 45.31 | AB10: 67.37 | AD10: 11.03 | AE10: 22.66 | AG10: 33.69 | AK10: Costruzioni residenziali | AL10: €/mq | AM10: 697.62
A11: 19.86 | B11: 40.78 | D11: 17.65 | E11: 36.25 | G11: 13.24 | H11: 27.19 | J11: Completamento B1 | M11: Completamento | N11: B1 | P11: Art. 47 | T11: 19.86 | U11: 40.78 | W11: 60.64 | Y11: 17.65 | Z11: 36.25 | AB11: 53.9 | AD11: 13.24 | AE11: 27.19 | AG11: 40.43
A12: 22.02 | B12: 40.78 | D12: 19.57 | E12: 36.25 | G12: 14.68 | H12: 27.19 | J12: Completamento B2 | M12: Completamento | N12: B2 | P12: Art. 47 | T12: 22.02 | U12: 40.78 | W12: 62.8 | Y12: 19.57 | Z12: 36.25 | AB12: 55.82 | AD12: 14.68 | AE12: 27.19 | AG12: 41.87 | AK12: Costruzioni a carattere terziario, direzionale e commerciale, quando queste superino il 25% della superficie utile abitabile (art. 9 D.M. 10/05/1977)
A13: 29.57 | B13: 40.78 | D13: 26.28 | E13: 36.25 | G13: 19.71 | H13: 27.19 | J13: Completamento B3 | M13: Completamento | N13: B3 | P13: Art. 48 | T13: 29.57 | U13: 40.78 | W13: 70.35 | Y13: 26.28 | Z13: 36.25 | AB13: 62.53 | AD13: 19.71 | AE13: 27.19 | AG13: 46.9
A14: 34.66 | B14: 40.78 | D14: 30.81 | E14: 36.25 | G14: 23.11 | H14: 27.19 | J14: Completamento B4 | M14: Completamento | N14: B4 | P14: Art. 48 | T14: 34.66 | U14: 40.78 | W14: 75.44 | Y14: 30.81 | Z14: 36.25 | AB14: 67.06 | AD14: 23.11 | AE14: 27.19 | AG14: 50.3
A15: 68.76 | B15: 40.78 | D15: 61.12 | E15: 36.25 | G15: 45.84 | H15: 27.19 | J15: Completamento B5 | M15: Completamento | N15: B5 | P15: Art. 48 | T15: 68.76 | U15: 40.78 | W15: 109.54 | Y15: 61.12 | Z15: 36.25 | AB15: 97.37 | AD15: 45.84 | AE15: 27.19 | AG15: 73.03
A16: 19.86 | B16: 40.78 | D16: 17.65 | E16: 36.25 | G16: 13.24 | H16: 27.19 | J16: Rinnovamento urbano B6 | M16: Rinnovamento urbano | N16: B6 | P16: Art. 49 | T16: 19.86 | U16: 40.78 | W16: 60.64 | Y16: 17.65 | Z16: 36.25 | AB16: 53.9 | AD16: 13.24 | AE16: 27.19 | AG16: 40.43
A17: 19.86 | B17: 40.78 | D17: 17.65 | E17: 36.25 | G17: 13.24 | H17: 27.19 | J17: Rinnovamento urbano B7 | M17: Rinnovamento urbano | N17: B7 | P17: Art. 49 | T17: 19.86 | U17: 40.78 | W17: 60.64 | Y17: 17.65 | Z17: 36.25 | AB17: 53.9 | AD17: 13.24 | AE17: 27.19 | AG17: 40.43
A18: 58.71 | B18: 40.78 | D18: 52.18 | E18: 36.25 | G18: 39.14 | H18: 27.19 | J18: Rinnovamento urbano B8 | M18: Rinnovamento urbano | N18: B8 | P18: Art. 49 | T18: 58.71 | U18: 40.78 | W18: 99.49 | Y18: 52.18 | Z18: 36.25 | AB18: 88.43 | AD18: 39.14 | AE18: 27.19 | AG18: 66.33 | AK18: - Per la parte interrata | AL18: €/mq | AM18: 813.18
A19: 19.86 | B19: 40.78 | D19: 17.65 | E19: 36.25 | G19: 13.24 | H19: 27.19 | J19: Rinn. urbano terz./direz. B9 | M19: Rinn. urbano terz./direz. | N19: B9 | P19: Art. 50 | T19: 19.86 | U19: 40.78 | W19: 60.64 | Y19: 17.65 | Z19: 36.25 | AB19: 53.9 | AD19: 13.24 | AE19: 27.19 | AG19: 40.43 | AK19: - Per la parte fuori terra | AL19: €/mq | AM19: 1220.82
A21: 37.99 | B21: 54.38 | D21: 33.24 | E21: 47.58 | G21: 28.49 | H21: 40.78 | J21: =IF(O21<>"",M21&" "&N21&" "&O21,IF(N21<>"",M21&" "&N21,M21)) -> Area di espansione C1 < 500 m. | M21: Area di espansione | N21: C1 | O21: < 500 m. | P21: Art. 51 | T21: =ROUND(A21*$H$3,2) -> 37.99 | U21: 54.38 | W21: =T21+U21 -> 92.37 | Y21: =ROUND(D21*$H$3,2) -> 33.24 | Z21: 47.58 | AB21: =Y21+Z21 -> 80.82 | AD21: =ROUND(G21*$H$3,2) -> 28.49 | AE21: 40.78 | AG21: =AD21+AE21 -> 69.27
A22: 32.92 | B22: 47.13 | D22: 28.81 | E22: 41.24 | G22: 24.69 | H22: 35.34 | J22: =IF(O22<>"",M22&" "&N22&" "&O22,IF(N22<>"",M22&" "&N22,M22)) -> Area di espansione C1 < 2000 m. | M22: Area di espansione | N22: C1 | O22: < 2000 m. | P22: Art. 51 | T22: 32.92 | U22: 47.13 | W22: =T22+U22 -> 80.05 | Y22: 28.81 | Z22: 41.24 | AB22: =Y22+Z22 -> 70.05 | AD22: 24.69 | AE22: 35.34 | AG22: =AD22+AE22 -> 60.03 | AK22: COSTRUZIONI ESISTENTI
A23: 27.86 | B23: 39.88 | D23: 24.38 | E23: 34.89 | G23: 20.89 | H23: 29.91 | J23: =IF(O23<>"",M23&" "&N23&" "&O23,IF(N23<>"",M23&" "&N23,M23)) -> Area di espansione C1 < 5000 m. | M23: Area di espansione | N23: C1 | O23: < 5000 m. | P23: Art. 51 | T23: 27.86 | U23: 39.88 | W23: =T23+U23 -> 67.74 | Y23: 24.38 | Z23: 34.89 | AB23: =Y23+Z23 -> 59.27 | AD23: 20.89 | AE23: 29.91 | AG23: =AD23+AE23 -> 50.8
A24: 25.33 | B24: 36.25 | D24: 22.16 | E24: 31.72 | G24: 18.99 | H24: 27.19 | J24: =IF(O24<>"",M24&" "&N24&" "&O24,IF(N24<>"",M24&" "&N24,M24)) -> Area di espansione C1 > 5000 m. | M24: Area di espansione | N24: C1 | O24: > 5000 m. | P24: Art. 51 | T24: 25.33 | U24: 36.25 | W24: =T24+U24 -> 61.58 | Y24: 22.16 | Z24: 31.72 | AB24: =Y24+Z24 -> 53.88 | AD24: 18.99 | AE24: 27.19 | AG24: =AD24+AE24 -> 46.18
AK25: Interventi complessi su edifici residenziali o a carattere terziario,direzionale e commerciale che comprendono il rifacimento degli orizzontamenti, dell'impiantistica, delle murature e delle strutture anche in modo parziale
A26: 49.5 | B26: 54.37 | D26: 43.31 | E26: 47.58 | G26: 37.13 | H26: 40.78 | J26: =IF(O26<>"",M26&" "&N26&" "&O26,IF(N26<>"",M26&" "&N26,M26)) -> Area di espansione C2 < 500 m. | M26: Area di espansione | N26: C2 | O26: < 500 m. | P26: Art. 51 | T26: =ROUND(A26*$H$3,2) -> 49.5 | U26: 54.37 | W26: =T26+U26 -> 103.87 | Y26: =ROUND(D26*$H$3,2) -> 43.31 | Z26: 47.58 | AB26: =Y26+Z26 -> 90.89 | AD26: =ROUND(G26*$H$3,2) -> 37.13 | AE26: 40.78 | AG26: =AD26+AE26 -> 77.91
A27: 42.9 | B27: 47.13 | D27: 37.54 | E27: 41.24 | G27: 32.18 | H27: 35.34 | J27: =IF(O27<>"",M27&" "&N27&" "&O27,IF(N27<>"",M27&" "&N27,M27)) -> Area di espansione C2 < 2000 m. | M27: Area di espansione | N27: C2 | O27: < 2000 m. | P27: Art. 51 | T27: 42.9 | U27: 47.13 | W27: 90.03 | Y27: 37.54 | Z27: 41.24 | AB27: =Y27+Z27 -> 78.78 | AD27: 32.18 | AE27: 35.34 | AG27: =AD27+AE27 -> 67.52
A28: 36.3 | B28: 39.88 | D28: 31.76 | E28: 34.89 | G28: 27.23 | H28: 29.91 | J28: =IF(O28<>"",M28&" "&N28&" "&O28,IF(N28<>"",M28&" "&N28,M28)) -> Area di espansione C2 < 5000 m. | M28: Area di espansione | N28: C2 | O28: < 5000 m. | P28: Art. 51 | T28: 36.3 | U28: 39.88 | W28: 76.18 | Y28: 31.76 | Z28: 34.89 | AB28: =Y28+Z28 -> 66.65 | AD28: 27.23 | AE28: 29.91 | AG28: =AD28+AE28 -> 57.14
A29: 33 | B29: 36.25 | D29: 28.87 | E29: 31.72 | G29: 24.75 | H29: 27.19 | J29: =IF(O29<>"",M29&" "&N29&" "&O29,IF(N29<>"",M29&" "&N29,M29)) -> Area di espansione C2 > 5000 m. | M29: Area di espansione | N29: C2 | O29: > 5000 m. | P29: Art. 51 | T29: 33 | U29: 36.25 | W29: 69.25 | Y29: 28.87 | Z29: 31.72 | AB29: =Y29+Z29 -> 60.59 | AD29: 24.75 | AE29: 27.19 | AG29: =AD29+AE29 -> 51.94
W30: 0
A31: 78.28 | B31: 54.38 | D31: 68.49 | E31: 47.58 | G31: 58.71 | H31: 40.78 | J31: =IF(O31<>"",M31&" "&N31&" "&O31,IF(N31<>"",M31&" "&N31,M31)) -> Area di espansione C3 < 500 m. | M31: Area di espansione | N31: C3 | O31: < 500 m. | P31: Art. 51 | T31: =ROUND(A31*$H$3,2) -> 78.28 | U31: 54.38 | W31: 132.66 | Y31: =ROUND(D31*$H$3,2) -> 68.49 | Z31: 47.58 | AB31: =Y31+Z31 -> 116.07 | AD31: =ROUND(G31*$H$3,2) -> 58.71 | AE31: 40.78 | AG31: =AD31+AE31 -> 99.49
A32: 67.84 | B32: 47.13 | D32: 59.36 | E32: 41.24 | G32: 50.88 | H32: 35.34 | J32: =IF(O32<>"",M32&" "&N32&" "&O32,IF(N32<>"",M32&" "&N32,M32)) -> Area di espansione C3 < 2000 m. | M32: Area di espansione | N32: C3 | O32: < 2000 m. | P32: Art. 51 | T32: 67.84 | U32: 47.13 | W32: 114.97 | Y32: 59.36 | Z32: 41.24 | AB32: =Y32+Z32 -> 100.6 | AD32: 50.88 | AE32: 35.34 | AG32: =AD32+AE32 -> 86.22
A33: 57.4 | B33: 39.88 | D33: 50.23 | E33: 34.89 | G33: 43.05 | H33: 29.91 | J33: =IF(O33<>"",M33&" "&N33&" "&O33,IF(N33<>"",M33&" "&N33,M33)) -> Area di espansione C3 < 5000 m. | M33: Area di espansione | N33: C3 | O33: < 5000 m. | P33: Art. 51 | T33: 57.4 | U33: 39.88 | W33: 97.28 | Y33: 50.23 | Z33: 34.89 | AB33: =Y33+Z33 -> 85.12 | AD33: 43.05 | AE33: 29.91 | AG33: =AD33+AE33 -> 72.96 | AL33: €/mq | AM33: 418.1 | AR33: 3
A34: 52.19 | B34: 36.25 | D34: 45.66 | E34: 31.72 | G34: 39.14 | H34: 27.19 | J34: =IF(O34<>"",M34&" "&N34&" "&O34,IF(N34<>"",M34&" "&N34,M34)) -> Area di espansione C3 > 5000 m. | M34: Area di espansione | N34: C3 | O34: > 5000 m. | P34: Art. 51 | T34: 52.19 | U34: 36.25 | W34: 88.44 | Y34: 45.66 | Z34: 31.72 | AB34: =Y34+Z34 -> 77.38 | AD34: 39.14 | AE34: 27.19 | AG34: =AD34+AE34 -> 66.33
A36: 26.48 | B36: 54.38 | D36: 23.17 | E36: 47.58 | G36: 19.86 | H36: 40.78 | J36: =IF(O36<>"",M36&" "&N36&" "&O36,IF(N36<>"",M36&" "&N36,M36)) -> Terziario Direzionale TD < 500 m. | M36: Terziario Direzionale | N36: TD | O36: < 500 m. | P36: Art. 39 | T36: =ROUND(A36*$H$3,2) -> 26.48 | U36: 54.38 | W36: =T36+U36 -> 80.86 | Y36: =ROUND(D36*$H$3,2) -> 23.17 | Z36: 47.58 | AB36: =Y36+Z36 -> 70.75 | AD36: =ROUND(G36*$H$3,2) -> 19.86 | AE36: 40.78 | AG36: =AD36+AE36 -> 60.64 | AK36: ristrutturazione con variazioni distributive, impiantistiche, oltre ad interventi riguardanti le finiture interne, senza interventi sulle strutture
A37: 22.95 | B37: 47.13 | D37: 20.08 | E37: 41.24 | G37: 17.21 | H37: 35.34 | J37: =IF(O37<>"",M37&" "&N37&" "&O37,IF(N37<>"",M37&" "&N37,M37)) -> Terziario Direzionale TD < 2000 m. | M37: Terziario Direzionale | N37: TD | O37: < 2000 m. | P37: Art. 39 | T37: 22.95 | U37: 47.13 | W37: =T37+U37 -> 70.08 | Y37: 20.08 | Z37: 41.24 | AB37: =Y37+Z37 -> 61.32 | AD37: 17.21 | AE37: 35.34 | AG37: =AD37+AE37 -> 52.55
A38: 19.42 | B38: 39.88 | D38: 16.99 | E38: 34.89 | G38: 14.56 | H38: 29.91 | J38: =IF(O38<>"",M38&" "&N38&" "&O38,IF(N38<>"",M38&" "&N38,M38)) -> Terziario Direzionale TD < 5000 m. | M38: Terziario Direzionale | N38: TD | O38: < 5000 m. | P38: Art. 39 | T38: 19.42 | U38: 39.88 | W38: =T38+U38 -> 59.3 | Y38: 16.99 | Z38: 34.89 | AB38: =Y38+Z38 -> 51.88 | AD38: 14.56 | AE38: 29.91 | AG38: =AD38+AE38 -> 44.47
A39: 17.65 | B39: 36.25 | D39: 15.44 | E39: 31.72 | G39: 13.24 | H39: 27.19 | J39: =IF(O39<>"",M39&" "&N39&" "&O39,IF(N39<>"",M39&" "&N39,M39)) -> Terziario Direzionale TD > 5000 m. | M39: Terziario Direzionale | N39: TD | O39: > 5000 m. | P39: Art. 39 | T39: 17.65 | U39: 36.25 | W39: =T39+U39 -> 53.9 | Y39: 15.44 | Z39: 31.72 | AB39: =Y39+Z39 -> 47.16 | AD39: 13.24 | AE39: 27.19 | AG39: =AD39+AE39 -> 40.43
A41: 96.41 | B41: 45.31 | D41: 96.41 | E41: 45.31 | G41: 48.21 | H41: 22.66 | J41: =IF(O41<>"",M41&" "&N41&" "&O41,IF(N41<>"",M41&" "&N41,M41)) -> Zone attività primarie A e B | M41: Zone attività primarie | N41: A e B | P41: Art. 34-35 | T41: =ROUND(A41*$H$3,2) -> 96.41 | U41: 45.31 | W41: =T41+U41 -> 141.72 | Y41: =ROUND(D41*$H$3,2) -> 96.41 | Z41: 45.31 | AB41: =Y41+Z41 -> 141.72 | AD41: =ROUND(G41*$H$3,2) -> 48.21 | AE41: 22.66 | AG41: =AD41+AE41 -> 70.87 | AL41: €/mq | AM41: 244.28 | AR41: 1
A42: 29.57 | B42: 40.78 | D42: 26.28 | E42: 36.25 | G42: 19.71 | H42: 27.19 | J42: Servizi alla residenza | M42: Servizi alla residenza | P42: Da art. 52 a 57 | T42: 29.57 | U42: 40.78 | W42: =T42+U42 -> 70.35 | Y42: 26.28 | Z42: 36.25 | AB42: =Y42+Z42 -> 62.53 | AD42: 19.71 | AE42: 27.19 | AG42: =AD42+AE42 -> 46.9
A43: 29.57 | B43: 40.78 | D43: 26.28 | E43: 36.25 | G43: 19.71 | H43: 27.19 | J43: Verde ed attrezz. carattere urbano e regionale | M43: Verde ed attrezz. carattere urbano e regionale | P43: Art. 31-32 | T43: 29.57 | U43: 40.78 | W43: =T43+U43 -> 70.35 | Y43: 26.28 | Z43: 36.25 | AB43: =Y43+Z43 -> 62.53 | AD43: 19.71 | AE43: 27.19 | AG43: =AD43+AE43 -> 46.9 | AK43: ristrutturazioni con adeguamento degli impianti, rifacimento degli intonaci e delle pavimentazioni, nonchè interventi riguardanti le finiture interne
A44: 29.57 | B44: 40.78 | D44: 26.28 | E44: 36.25 | G44: 19.71 | H44: 27.19 | J44: Zone produttive | M44: Zone produttive | P44: Art. 33 | T44: 29.57 | U44: 40.78 | W44: =T44+U44 -> 70.35 | Y44: 26.28 | Z44: 36.25 | AB44: =Y44+Z44 -> 62.53 | AD44: 19.71 | AE44: 27.19 | AG44: =AD44+AE44 -> 46.9
A45: 29.57 | B45: 40.78 | D45: 26.28 | E45: 36.25 | G45: 19.71 | H45: 27.19 | J45: Viabilità di piano e rispetto | M45: Viabilità di piano e rispetto | P45: Art. 27-28 | T45: 29.57 | U45: 40.78 | W45: =T45+U45 -> 70.35 | Y45: 26.28 | Z45: 36.25 | AB45: =Y45+Z45 -> 62.53 | AD45: 19.71 | AE45: 27.19 | AG45: =AD45+AE45 -> 46.9
J46: Aree ferroviarie destinazione da PRG | M46: Aree ferroviarie destinazione da PRG | P46: Art. 29 | T46: VEDI TAB. CONTRIBUTO DI COSTRUZIONE B2
A47: 29.57 | B47: 40.78 | D47: 26.28 | E47: 36.25 | G47: 19.71 | H47: 27.19 | J47: Aree ferroviarie altre destinazioni | M47: Aree ferroviarie altre destinazioni | P47: Art. 29 | T47: =ROUND(A47*$H$3,2) -> 29.57 | U47: =ROUND(B47*$H$3,2) -> 40.78 | W47: =T47+U47 -> 70.35 | Y47: =ROUND(D47*$H$3,2) -> 26.28 | Z47: =ROUND(E47*$H$3,2) -> 36.25 | AB47: =Y47+Z47 -> 62.53 | AD47: =ROUND(G47*$H$3,2) -> 19.71 | AE47: =ROUND(H47*$H$3,2) -> 27.19 | AG47: =AD47+AE47 -> 46.9
A48: 29.57 | B48: 40.78 | D48: 26.28 | E48: 36.25 | G48: 19.71 | H48: 27.19 | J48: Arenili e coste | M48: Arenili e coste | P48: Art. 30 | T48: =ROUND(A48*$H$3,2) -> 29.57 | U48: =ROUND(B48*$H$3,2) -> 40.78 | W48: =T48+U48 -> 70.35 | Y48: =ROUND(D48*$H$3,2) -> 26.28 | Z48: =ROUND(E48*$H$3,2) -> 36.25 | AB48: =Y48+Z48 -> 62.53 | AD48: =ROUND(G48*$H$3,2) -> 19.71 | AE48: =ROUND(H48*$H$3,2) -> 27.19 | AG48: =AD48+AE48 -> 46.9 | AL48: €/mq | AM48: 122.97 | AR48: 2
J49: Zone ASI | M49: Zone ASI | T49: VEDI TAB. CONTRIBUTO DI COSTRUZIONE B1- B2 - B3 (SOLO URB. SECONDARIE)
J50: Area di rispetto | M50: Area di rispetto | P50: Art. 25 | T50: CALCOLATA IN FUNZIONE DELLE AREE CONTERMINI
M53: ONERI URBANIZZAZIONE | N53: aggiornati con determina dirigenziale n. 00039 del 10/09/2019 | W53: e | X53: deliberazione consiglio comunale n. 00073 del 21/10/2019
M54: COSTO DI COSTRUZIONE | N54: aggiornato con determina dirigenziale n. 10041 del 08/09/2017

Sheet Tabella A2 (hidden)
J1: 1 | L1: 3 | M1: 4 | N1: 5 | O1: 6 | P1: 7 | Q1: 8 | R1: 9 | S1: 10 | T1: 11 | U1: 12 | V1: 13 | W1: 14 | X1: 15 | Y1: 16 | Z1: 17 | AA1: 18 | AB1: 19 | AC1: 20 | AD1: 21 | AE1: 22 | AF1: 23 | AG1: 24 | AH1: 25
L2: TABELLA CONTRIBUTO DI COSTRUZIONE A2 | S2: ALIQUOTE URBANIZZAZIONI PEEP | AJ2: ALIQUOTE COSTO DI COSTRUZIONE PEEP | AP2: AGGIORNAMENTO 21/10/2019 | AQ2: Abbattimenti previsti per le urbanizzazioni primarie e secondarie: 1) costruzioni sostenibili prot. ITACA: -classe 3 -10% -classe 4-5 -20% 2) riqulificazioni e rigenerazione urbana edifici inseriti in piani e programmi complessi di edilizia pubblica e mista con destinazione residenziale edifici prot. ITACA classe 3 -20% 3) interventi in area a servizi e verde laddove si tratti di servizi, sportivi e di recupero del disagio sociale -50%
G3: COEFFICIENTE DI INCREMENTO | H3: 1 | S3: Tipologia di intervento edilizio
M4: Destinazione di P.R.G. | P4: Norma NTA | T4: NUOVA COSTRUZIONE | Y4: RISTRUTTURAZIONE con Demolizione e ricostruzione | AD4: RISTRUTTURAZIONE
T5: N.C. | Y5: D.R. | AD5: R.R.
A6: N.C. | D6: D.R. | G6: R.R. | T6: (€/mq) | Y6: (€/mq) | AD6: (€/mq)
A7: UP | B7: US | D7: UP | E7: US | G7: UP | H7: US | J7: Dest. PRG | T7: U.P. | U7: U.S. | W7: TOT. | Y7: U.P. | Z7: U.S. | AB7: TOT. | AD7: U.P. | AE7: U.S. | AG7: TOT. | AK7: NUOVE COSTRUZIONI
A9: 16.55 | B9: 33.99 | D9: 16.55 | E9: 33.99 | G9: 8.27 | H9: 16.99 | J9: =IF(O9<>"",M9&" "&N9&" "&O9,IF(N9<>"",M9&" "&N9,M9)) -> Centro Storico A1 | M9: Centro Storico | N9: A1 | P9: Art. 45 | T9: =ROUND(A9*$H$3,2) -> 16.55 | U9: =ROUND(B9*$H$3,2) -> 33.99 | W9: =T9+U9 -> 50.54 | Y9: =ROUND(D9*$H$3,2) -> 16.55 | Z9: =ROUND(E9*$H$3,2) -> 33.99 | AB9: =Y9+Z9 -> 50.54 | AD9: =ROUND(G9*$H$3,2) -> 8.27 | AE9: =ROUND(H9*$H$3,2) -> 16.99 | AG9: =AD9+AE9 -> 25.26
A10: 16.55 | B10: 33.9 | D10: 16.55 | E10: 33.99 | G10: 8.27 | H10: 16.99 | J10: Interesse Ambientale A2 | M10: Interesse Ambientale | N10: A2 | P10: Art. 46 | T10: 16.55 | U10: 33.9 | W10: 50.45 | Y10: 16.55 | Z10: 33.99 | AB10: 50.54 | AD10: 8.27 | AE10: 16.99 | AG10: 25.26 | AK10: Costruzioni residenziali | AL10: €/mq | AM10: 0
A11: 14.89 | B11: 30.59 | D11: 13.24 | E11: 27.19 | G11: 9.93 | H11: 20.39 | J11: Completamento B1 | M11: Completamento | N11: B1 | P11: Art. 47 | T11: 14.89 | U11: 30.59 | W11: 45.48 | Y11: 13.24 | Z11: 27.19 | AB11: 40.43 | AD11: 9.93 | AE11: 20.39 | AG11: 30.32
A12: 16.51 | B12: 30.59 | D12: 14.68 | E12: 27.19 | G12: 11.01 | H12: 20.39 | J12: Completamento B2 | M12: Completamento | N12: B2 | P12: Art. 47 | T12: 16.51 | U12: 30.59 | W12: 47.1 | Y12: 14.68 | Z12: 27.19 | AB12: 41.87 | AD12: 11.01 | AE12: 20.39 | AG12: 31.4 | AK12: Costruzioni a carattere terziario, direzionale e commerciale, quando queste superino il 25% della superficie utile abitabile (art. 9 D.M. 10/05/1977)
A13: 22.18 | B13: 30.59 | D13: 19.71 | E13: 27.19 | G13: 14.79 | H13: 20.39 | J13: Completamento B3 | M13: Completamento | N13: B3 | P13: Art. 48 | T13: 22.18 | U13: 30.59 | W13: 52.77 | Y13: 19.71 | Z13: 27.19 | AB13: 46.9 | AD13: 14.79 | AE13: 20.39 | AG13: 35.18
A14: 25.99 | B14: 30.59 | D14: 23.11 | E14: 27.19 | G14: 17.33 | H14: 20.39 | J14: Completamento B4 | M14: Completamento | N14: B4 | P14: Art. 48 | T14: 25.99 | U14: 30.59 | W14: 56.58 | Y14: 23.11 | Z14: 27.19 | AB14: 50.3 | AD14: 17.33 | AE14: 20.39 | AG14: 37.72
A15: 51.57 | B15: 30.59 | D15: 45.84 | E15: 27.19 | G15: 34.38 | H15: 20.39 | J15: Completamento B5 | M15: Completamento | N15: B5 | P15: Art. 48 | T15: 51.57 | U15: 30.59 | W15: 82.16 | Y15: 45.84 | Z15: 27.19 | AB15: 73.03 | AD15: 34.38 | AE15: 20.39 | AG15: 54.77
A16: 14.89 | B16: 30.59 | D16: 13.24 | E16: 27.19 | G16: 9.93 | H16: 20.39 | J16: Rinnovamento urbano B6 | M16: Rinnovamento urbano | N16: B6 | P16: Art. 49 | T16: 14.89 | U16: 30.59 | W16: 45.48 | Y16: 13.24 | Z16: 27.19 | AB16: 40.43 | AD16: 9.93 | AE16: 20.39 | AG16: 30.32
A17: 14.89 | B17: 30.59 | D17: 13.24 | E17: 27.19 | G17: 9.93 | H17: 20.39 | J17: Rinnovamento urbano B7 | M17: Rinnovamento urbano | N17: B7 | P17: Art. 49 | T17: 14.89 | U17: 30.59 | W17: 45.48 | Y17: 13.24 | Z17: 27.19 | AB17: 40.43 | AD17: 9.93 | AE17: 20.39 | AG17: 30.32
A18: 44.03 | B18: 30.59 | D18: 39.14 | E18: 27.19 | G18: 29.35 | H18: 20.39 | J18: Rinnovamento urbano B8 | M18: Rinnovamento urbano | N18: B8 | P18: Art. 49 | T18: 44.03 | U18: 30.59 | W18: 74.62 | Y18: 39.14 | Z18: 27.19 | AB18: 66.33 | AD18: 29.35 | AE18: 20.39 | AG18: 49.74 | AK18: - Per la parte interrata | AL18: €/mq | AM18: 0
A19: 14.89 | B19: 30.59 | D19: 13.24 | E19: 27.19 | G19: 9.93 | H19: 20.39 | J19: Rinn. urbano terz./direz. B9 | M19: Rinn. urbano terz./direz. | N19: B9 | P19: Art. 50 | T19: 14.89 | U19: 30.59 | W19: 45.48 | Y19: 13.24 | Z19: 27.19 | AB19: 40.43 | AD19: 9.93 | AE19: 20.39 | AG19: 30.32 | AK19: - Per la parte fuori terra | AL19: €/mq | AM19: 0
A21: 28.49 | B21: 40.78 | D21: 24.93 | E21: 35.68 | G21: 21.37 | H21: 30.59 | J21: =IF(O21<>"",M21&" "&N21&" "&O21,IF(N21<>"",M21&" "&N21,M21)) -> Area di espansione C1 < 500 m. | M21: Area di espansione | N21: C1 | O21: < 500 m. | P21: Art. 51 | T21: =ROUND(A21*$H$3,2) -> 28.49 | U21: 40.78 | W21: =T21+U21 -> 69.27 | Y21: =ROUND(D21*$H$3,2) -> 24.93 | Z21: 35.68 | AB21: =Y21+Z21 -> 60.61 | AD21: =ROUND(G21*$H$3,2) -> 21.37 | AE21: 30.59 | AG21: =AD21+AE21 -> 51.96
A22: 24.69 | B22: 35.34 | D22: 21.61 | E22: 30.93 | G22: 18.52 | H22: 26.51 | J22: =IF(O22<>"",M22&" "&N22&" "&O22,IF(N22<>"",M22&" "&N22,M22)) -> Area di espansione C1 < 2000 m. | M22: Area di espansione | N22: C1 | O22: < 2000 m. | P22: Art. 51 | T22: 24.69 | U22: 35.34 | W22: =T22+U22 -> 60.03 | Y22: 21.61 | Z22: 30.93 | AB22: =Y22+Z22 -> 52.54 | AD22: 18.52 | AE22: 26.51 | AG22: =AD22+AE22 -> 45.03 | AK22: COSTRUZIONI ESISTENTI
A23: 20.89 | B23: 29.91 | D23: 18.28 | E23: 26.17 | G23: 15.67 | H23: 22.43 | J23: =IF(O23<>"",M23&" "&N23&" "&O23,IF(N23<>"",M23&" "&N23,M23)) -> Area di espansione C1 < 5000 m. | M23: Area di espansione | N23: C1 | O23: < 5000 m. | P23: Art. 51 | T23: 20.89 | U23: 29.91 | W23: =T23+U23 -> 50.8 | Y23: 18.28 | Z23: 26.17 | AB23: =Y23+Z23 -> 44.45 | AD23: 15.67 | AE23: 22.43 | AG23: =AD23+AE23 -> 38.1
A24: 18.99 | B24: 27.19 | D24: 16.62 | E24: 23.79 | G24: 14.25 | H24: 20.39 | J24: =IF(O24<>"",M24&" "&N24&" "&O24,IF(N24<>"",M24&" "&N24,M24)) -> Area di espansione C1 > 5000 m. | M24: Area di espansione | N24: C1 | O24: > 5000 m. | P24: Art. 51 | T24: 18.99 | U24: 27.19 | W24: =T24+U24 -> 46.18 | Y24: 16.62 | Z24: 23.79 | AB24: =Y24+Z24 -> 40.41 | AD24: 14.25 | AE24: 20.39 | AG24: =AD24+AE24 -> 34.64
AK25: Interventi complessi su edifici residenziali o a carattere terziario,direzionale e commerciale che comprendono il rifacimento degli orizzontamenti, dell'impiantistica, delle murature e delle strutture anche in modo parziale
A26: 37.13 | B26: 40.78 | D26: 32.48 | E26: 35.68 | G26: 27.84 | H26: 30.59 | J26: =IF(O26<>"",M26&" "&N26&" "&O26,IF(N26<>"",M26&" "&N26,M26)) -> Area di espansione C2 < 500 m. | M26: Area di espansione | N26: C2 | O26: < 500 m. | P26: Art. 51 | T26: =ROUND(A26*$H$3,2) -> 37.13 | U26: 40.78 | W26: =T26+U26 -> 77.91 | Y26: =ROUND(D26*$H$3,2) -> 32.48 | Z26: 35.68 | AB26: =Y26+Z26 -> 68.16 | AD26: =ROUND(G26*$H$3,2) -> 27.84 | AE26: 30.59 | AG26: =AD26+AE26 -> 58.43
A27: 32.18 | B27: 35.34 | D27: 28.15 | E27: 30.93 | G27: 24.13 | H27: 26.51 | J27: =IF(O27<>"",M27&" "&N27&" "&O27,IF(N27<>"",M27&" "&N27,M27)) -> Area di espansione C2 < 2000 m. | M27: Area di espansione | N27: C2 | O27: < 2000 m. | P27: Art. 51 | T27: 32.18 | U27: 35.34 | W27: 67.52 | Y27: 28.15 | Z27: 30.93 | AB27: =Y27+Z27 -> 59.08 | AD27: 24.13 | AE27: 26.51 | AG27: =AD27+AE27 -> 50.64
A28: 27.23 | B28: 29.91 | D28: 23.82 | E28: 26.17 | G28: 20.42 | H28: 22.43 | J28: =IF(O28<>"",M28&" "&N28&" "&O28,IF(N28<>"",M28&" "&N28,M28)) -> Area di espansione C2 < 5000 m. | M28: Area di espansione | N28: C2 | O28: < 5000 m. | P28: Art. 51 | T28: 27.23 | U28: 29.91 | W28: 57.14 | Y28: 23.82 | Z28: 26.17 | AB28: =Y28+Z28 -> 49.99 | AD28: 20.42 | AE28: 22.43 | AG28: =AD28+AE28 -> 42.85
A29: 24.75 | B29: 27.19 | D29: 21.66 | E29: 23.79 | G29: 18.56 | H29: 20.39 | J29: =IF(O29<>"",M29&" "&N29&" "&O29,IF(N29<>"",M29&" "&N29,M29)) -> Area di espansione C2 > 5000 m. | M29: Area di espansione | N29: C2 | O29: > 5000 m. | P29: Art. 51 | T29: 24.75 | U29: 27.19 | W29: 51.94 | Y29: 21.66 | Z29: 23.79 | AB29: =Y29+Z29 -> 45.45 | AD29: 18.56 | AE29: 20.39 | AG29: =AD29+AE29 -> 38.95
W30: 0
A31: 58.71 | B31: 40.78 | D31: 51.37 | E31: 35.68 | G31: 44.03 | H31: 30.59 | J31: =IF(O31<>"",M31&" "&N31&" "&O31,IF(N31<>"",M31&" "&N31,M31)) -> Area di espansione C3 < 500 m. | M31: Area di espansione | N31: C3 | O31: < 500 m. | P31: Art. 51 | T31: =ROUND(A31*$H$3,2) -> 58.71 | U31: 40.78 | W31: 99.49 | Y31: =ROUND(D31*$H$3,2) -> 51.37 | Z31: 35.68 | AB31: =Y31+Z31 -> 87.05 | AD31: =ROUND(G31*$H$3,2) -> 44.03 | AE31: 30.59 | AG31: =AD31+AE31 -> 74.62
A32: 50.88 | B32: 35.34 | D32: 44.52 | E32: 30.93 | G32: 38.16 | H32: 26.51 | J32: =IF(O32<>"",M32&" "&N32&" "&O32,IF(N32<>"",M32&" "&N32,M32)) -> Area di espansione C3 < 2000 m. | M32: Area di espansione | N32: C3 | O32: < 2000 m. | P32: Art. 51 | T32: 50.88 | U32: 35.34 | W32: 86.22 | Y32: 44.52 | Z32: 30.93 | AB32: =Y32+Z32 -> 75.45 | AD32: 38.16 | AE32: 26.51 | AG32: =AD32+AE32 -> 64.67
A33: 43.05 | B33: 29.91 | D33: 37.67 | E33: 26.17 | G33: 32.29 | H33: 22.43 | J33: =IF(O33<>"",M33&" "&N33&" "&O33,IF(N33<>"",M33&" "&N33,M33)) -> Area di espansione C3 < 5000 m. | M33: Area di espansione | N33: C3 | O33: < 5000 m. | P33: Art. 51 | T33: 43.05 | U33: 29.91 | W33: 72.96 | Y33: 37.67 | Z33: 26.17 | AB33: =Y33+Z33 -> 63.84 | AD33: 32.29 | AE33: 22.43 | AG33: =AD33+AE33 -> 54.72 | AL33: €/mq | AM33: 0
A34: 39.14 | B34: 27.19 | D34: 34.25 | E34: 23.79 | G34: 29.35 | H34: 20.39 | J34: =IF(O34<>"",M34&" "&N34&" "&O34,IF(N34<>"",M34&" "&N34,M34)) -> Area di espansione C3 > 5000 m. | M34: Area di espansione | N34: C3 | O34: > 5000 m. | P34: Art. 51 | T34: 39.14 | U34: 27.19 | W34: 66.33 | Y34: 34.25 | Z34: 23.79 | AB34: =Y34+Z34 -> 58.04 | AD34: 29.35 | AE34: 20.39 | AG34: =AD34+AE34 -> 49.74
A36: 19.86 | B36: 40.78 | D36: 17.38 | E36: 35.68 | G36: 14.89 | H36: 30.59 | J36: =IF(O36<>"",M36&" "&N36&" "&O36,IF(N36<>"",M36&" "&N36,M36)) -> Terziario Direzionale TD < 500 m. | M36: Terziario Direzionale | N36: TD | O36: < 500 m. | P36: Art. 39 | T36: =ROUND(A36*$H$3,2) -> 19.86 | U36: 40.78 | W36: =T36+U36 -> 60.64 | Y36: =ROUND(D36*$H$3,2) -> 17.38 | Z36: 35.68 | AB36: =Y36+Z36 -> 53.06 | AD36: =ROUND(G36*$H$3,2) -> 14.89 | AE36: 30.59 | AG36: =AD36+AE36 -> 45.48 | AK36: ristrutturazione con variazioni distributive, impiantistiche, oltre ad interventi riguardanti le finiture interne, senza interventi sulle strutture
A37: 17.21 | B37: 35.34 | D37: 15.06 | E37: 30.93 | G37: 12.91 | H37: 26.51 | J37: =IF(O37<>"",M37&" "&N37&" "&O37,IF(N37<>"",M37&" "&N37,M37)) -> Terziario Direzionale TD < 2000 m. | M37: Terziario Direzionale | N37: TD | O37: < 2000 m. | P37: Art. 39 | T37: 17.21 | U37: 35.34 | W37: =T37+U37 -> 52.55 | Y37: 15.06 | Z37: 30.93 | AB37: =Y37+Z37 -> 45.99 | AD37: 12.91 | AE37: 26.51 | AG37: =AD37+AE37 -> 39.42
A38: 14.56 | B38: 29.91 | D38: 12.74 | E38: 26.17 | G38: 10.92 | H38: 22.43 | J38: =IF(O38<>"",M38&" "&N38&" "&O38,IF(N38<>"",M38&" "&N38,M38)) -> Terziario Direzionale TD < 5000 m. | M38: Terziario Direzionale | N38: TD | O38: < 5000 m. | P38: Art. 39 | T38: 14.56 | U38: 29.91 | W38: =T38+U38 -> 44.47 | Y38: 12.74 | Z38: 26.17 | AB38: =Y38+Z38 -> 38.91 | AD38: 10.92 | AE38: 22.43 | AG38: =AD38+AE38 -> 33.35
A39: 13.24 | B39: 27.19 | D39: 11.58 | E39: 23.79 | G39: 9.93 | H39: 20.39 | J39: =IF(O39<>"",M39&" "&N39&" "&O39,IF(N39<>"",M39&" "&N39,M39)) -> Terziario Direzionale TD > 5000 m. | M39: Terziario Direzionale | N39: TD | O39: > 5000 m. | P39: Art. 39 | T39: 13.24 | U39: 27.19 | W39: =T39+U39 -> 40.43 | Y39: 11.58 | Z39: 23.79 | AB39: =Y39+Z39 -> 35.37 | AD39: 9.93 | AE39: 20.39 | AG39: =AD39+AE39 -> 30.32
A41: 0 | B41: 0 | D41: 0 | E41: 0 | G41: 0 | H41: 0 | J41: =IF(O41<>"",M41&" "&N41&" "&O41,IF(N41<>"",M41&" "&N41,M41)) -> Zone attività primarie A e B | M41: Zone attività primarie | N41: A e B | P41: Art. 34-35 | AL41: €/mq | AM41: 0
A42: 0 | B42: 0 | D42: 0 | E42: 0 | G42: 0 | H42: 0 | J42: Servizi alla residenza | M42: Servizi alla residenza | P42: Da art. 52 a 57
A43: 0 | B43: 0 | D43: 0 | E43: 0 | G43: 0 | H43: 0 | J43: Verde ed attrezz. carattere urbano e regionale | M43: Verde ed attrezz. carattere urbano e regionale | P43: Art. 31-32 | AK43: ristrutturazioni con adeguamento degli impianti, rifacimento degli intonaci e delle pavimentazioni, nonchè interventi riguardanti le finiture interne
A44: 0 | B44: 0 | D44: 0 | E44: 0 | G44: 0 | H44: 0 | J44: Zone produttive | M44: Zone produttive | P44: Art. 33
A45: 0 | B45: 0 | D45: 0 | E45: 0 | G45: 0 | H45: 0 | J45: Viabilità di piano e rispetto | M45: Viabilità di piano e rispetto | P45: Art. 27-28
J46: Aree ferroviarie destinazione da PRG | M46: Aree ferroviarie destinazione da PRG | P46: Art. 29 | T46: VEDI TAB. CONTRIBUTO DI COSTRUZIONE B2
A47: 0 | B47: 0 | D47: 0 | E47: 0 | G47: 0 | H47: 0 | J47: Aree ferroviarie altre destinazioni | M47: Aree ferroviarie altre destinazioni | P47: Art. 29
A48: 0 | B48: 0 | D48: 0 | E48: 0 | G48: 0 | H48: 0 | J48: Arenili e coste | M48: Arenili e coste | P48: Art. 30 | AL48: €/mq | AM48: 0
J49: Zone ASI | M49: Zone ASI | T49: VEDI TAB. CONTRIBUTO DI COSTRUZIONE B1- B2 - B3 (SOLO URB. SECONDARIE)
J50: Area di rispetto | M50: Area di rispetto | P50: Art. 25 | T50: CALCOLATA IN FUNZIONE DELLE AREE CONTERMINI
M53: ONERI URBANIZZAZIONE | N53: aggiornati con determina dirigenziale n. 00039 del 10/09/2019 | W53: e | X53: deliberazione consiglio comunale n. 00073 del 21/10/2019
M54: COSTO DI COSTRUZIONE | N54: aggiornato con determina dirigenziale n. 10041 del 08/09/2017

Sheet Tabella B1 -B2 - B3 (hidden)
M1: 1 | N1: 2 | O1: 3 | P1: 4 | Q1: 5 | R1: 6 | S1: 7 | T1: 8 | U1: 9 | V1: 10 | W1: 11 | X1: 12 | Y1: 13 | Z1: 14 | AA1: 15 | AB1: 16 | AC1: 17 | AD1: 18 | AE1: 19 | AF1: 20 | AG1: 21 | AH1: 22 | AI1: 23 | AJ1: 24 | AK1: 25 | AL1: 26 | AM1: 27 | AN1: 28 | AO1: 29
O2: TABELLA CONTRIBUTO DI COSTRUZIONE B1 | U2: ALIQUOTE URBANIZZAZIONI
J3: COEFFICIENTE DI INCREMENTO | K3: 1 | U3: Industrie per il trasferimento di prodotti agricoli, zootecniche, artigianato
M4: RIFERIMENTO | P4: Destinazione di P.R.G. | V4: NR. DIPENDENTI | AA4: NR. DIPENDENTI | AF4: NR. DIPENDENTI | AK4: NR. DIPENDENTI
V5: da 1 a 10 | AA5: da 11 a 50 | AF5: da 51 a 200 | AK5: da 201 a 1000
A6: DA 1 A 10 | D6: DA 11 A 50 | G6: DA 51 A 200 | J6: DA 201 A 1000 | V6: (€/mq) | AA6: (€/mq) | AF6: (€/mq) | AK6: (€/mq)
A7: UP | B7: US | D7: UP | E7: US | G7: UP | H7: US | J7: UP | K7: US | V7: U.P. | W7: U.S. | Y7: TOT. | AA7: U.P. | AB7: U.S. | AD7: TOT. | AF7: U.P. | AG7: U.S. | AI7: TOT. | AK7: U.P. | AL7: U.S. | AN7: TOT.
A9: 2.04 | B9: 1.02 | D9: 2.39 | E9: 1.02 | G9: 2.69 | H9: 1.02 | J9: 2.92 | K9: 1.02 | M9: =$U$3&" - "&P9 -> Industrie per il trasferimento di prodotti agricoli, zootecniche, artigianato - Ampliamenti | P9: Ampliamenti | V9: =ROUND(A9*$K$3,2) -> 2.04 | W9: 1.02 | Y9: =V9+W9 -> 3.06 | AA9: =ROUND(D9*$K$3,2) -> 2.39 | AB9: 1.02 | AD9: =AA9+AB9 -> 3.41 | AF9: =ROUND(G9*$K$3,2) -> 2.69 | AG9: 1.02 | AI9: =AF9+AG9 -> 3.71 | AK9: =ROUND(J9*$K$3,2) -> 2.92 | AL9: 1.02 | AN9: =AK9+AL9 -> 3.94
A10: 3.07 | B10: 1.53 | D10: 3.59 | E10: 1.53 | G10: 4.03 | H10: 1.53 | J10: 4.38 | K10: 1.53 | M10: =$U$3&" - "&P10 -> Industrie per il trasferimento di prodotti agricoli, zootecniche, artigianato - Nuovi insediamenti | P10: Nuovi insediamenti | V10: 3.07 | W10: 1.53 | Y10: =V10+W10 -> 4.6 | AA10: 3.59 | AB10: 1.53 | AD10: =AA10+AB10 -> 5.12 | AF10: 4.03 | AG10: 1.53 | AI10: =AF10+AG10 -> 5.56 | AK10: 4.38 | AL10: 1.53 | AN10: =AK10+AL10 -> 5.91
A11: 2.04 | B11: 1.02 | D11: 2.39 | E11: 1.02 | G11: 2.69 | H11: 1.02 | J11: 2.92 | K11: 1.02 | M11: =$U$3&" - "&P11 -> Industrie per il trasferimento di prodotti agricoli, zootecniche, artigianato - Nuovi insediamenti PP | P11: Nuovi insediamenti PP | V11: 2.04 | W11: 1.02 | Y11: =V11+W11 -> 3.06 | AA11: 2.39 | AB11: 1.02 | AD11: =AA11+AB11 -> 3.41 | AF11: 2.69 | AG11: 1.02 | AI11: =AF11+AG11 -> 3.71 | AK11: 2.92 | AL11: 1.02 | AN11: =AK11+AL11 -> 3.94
O14: TABELLA CONTRIBUTO DI COSTRUZIONE B2 | U14: ALIQUOTE URBANIZZAZIONI
J15: COEFFICIENTE DI INCREMENTO | K15: 1 | U15: Industrie non comprese nella tabella B1 - Aree ferroviarie, portuali, aeroportuali
P16: Destinazione di P.R.G. | V16: NR. DIPENDENTI | AA16: NR. DIPENDENTI | AF16: NR. DIPENDENTI | AK16: NR. DIPENDENTI
V17: da 1 a 10 | AA17: da 11 a 50 | AF17: da 51 a 200 | AK17: da 201 a 1000
A18: DA 1 A 10 | D18: DA 11 A 50 | G18: DA 51 A 200 | J18: DA 201 A 1000 | V18: (€/mq) | AA18: (€/mq) | AF18: (€/mq) | AK18: (€/mq)
A19: UP | B19: US | D19: UP | E19: US | G19: UP | H19: US | J19: UP | K19: US | V19: U.P. | W19: U.S. | Y19: TOT. | AA19: U.P. | AB19: U.S. | AD19: TOT. | AF19: U.P. | AG19: U.S. | AI19: TOT. | AK19: U.P. | AL19: U.S. | AN19: TOT.
A21: 6.13 | B21: 3.07 | D21: 7.18 | E21: 3.07 | G21: 8.06 | H21: 3.07 | J21: 8.76 | K21: 3.07 | M21: =$U$15&" - "&P21 -> Industrie non comprese nella tabella B1 - Aree ferroviarie, portuali, aeroportuali - Ampliamenti | P21: Ampliamenti | V21: =ROUND(A21*$K$3,2) -> 6.13 | W21: 3.07 | Y21: =V21+W21 -> 9.2 | AA21: =ROUND(D21*$K$3,2) -> 7.18 | AB21: 3.07 | AD21: =AA21+AB21 -> 10.25 | AF21: =ROUND(G21*$K$3,2) -> 8.06 | AG21: 3.07 | AI21: =AF21+AG21 -> 11.13 | AK21: =ROUND(J21*$K$3,2) -> 8.76 | AL21: 3.07 | AN21: =AK21+AL21 -> 11.83
A22: 9.2 | B22: 4.6 | D22: 10.78 | E22: 4.6 | G22: 12.09 | H22: 4.6 | J22: 13.14 | K22: 4.06 | M22: =$U$15&" - "&P22 -> Industrie non comprese nella tabella B1 - Aree ferroviarie, portuali, aeroportuali - Nuovi insediamenti | P22: Nuovi insediamenti | V22: 9.2 | W22: 4.6 | Y22: =V22+W22 -> 13.8 | AA22: 10.78 | AB22: 4.6 | AD22: =AA22+AB22 -> 15.38 | AF22: 12.09 | AG22: 4.6 | AI22: =AF22+AG22 -> 16.69 | AK22: 13.14 | AL22: 4.06 | AN22: =AK22+AL22 -> 17.2
A23: 8.18 | B23: 4.09 | D23: 9.58 | E23: 4.09 | G23: 10.75 | H23: 4.09 | J23: 11.68 | K23: 4.09 | M23: =$U$15&" - "&P23 -> Industrie non comprese nella tabella B1 - Aree ferroviarie, portuali, aeroportuali - Nuovi insediamenti PP | P23: Nuovi insediamenti PP | V23: 8.18 | W23: 4.09 | Y23: =V23+W23 -> 12.27 | AA23: 9.58 | AB23: 4.09 | AD23: =AA23+AB23 -> 13.67 | AF23: 10.75 | AG23: 4.09 | AI23: =AF23+AG23 -> 14.84 | AK23: 11.68 | AL23: 4.09 | AN23: =AK23+AL23 -> 15.77
O26: TABELLA CONTRIBUTO DI COSTRUZIONE B3 | U26: ALIQUOTE URBANIZZAZIONI
J27: COEFFICIENTE DI INCREMENTO | K27: 1 | U27: Consorzi ASI - Insediamenti commerciali e direzionali
P28: Articoli NTA PUE ASI | V28: NUOVA COSTRUZIONE | AA28: RISTRUTTURAZIONE con Demolizione e ricostruzione | AF28: RISTRUTTURAZIONE
V29: N.C. | AA29: D.R. | AF29: R.R.
A30: N.C. | D30: N.C. | G30: D.R. | V30: (€/mq) | AA30: (€/mq) | AF30: (€/mq)
A31: UP | B31: US | D31: UP | E31: US | G31: UP | H31: US | V31: U.P. | W31: U.S. | Y31: TOT. | AA31: U.P. | AB31: U.S. | AD31: TOT. | AF31: U.P. | AG31: U.S. | AI31: TOT.
A33: 29.57 | B33: 40.78 | D33: 26.28 | E33: 36.25 | G33: 19.71 | H33: 27.19 | M33: =$U$27&" - "&P33 -> Consorzi ASI - Insediamenti commerciali e direzionali - Articolo 9.1 | P33: Articolo 9.1 | V33: =ROUND(A33*$K$3,2) -> 29.57 | W33: 40.78 | Y33: =V33+W33 -> 70.35 | AA33: =ROUND(D33*$K$3,2) -> 26.28 | AB33: 36.25 | AD33: =AA33+AB33 -> 62.53 | AF33: =ROUND(G33*$K$3,2) -> 19.71 | AG33: 27.19 | AI33: =AF33+AG33 -> 46.9
A34: 29.57 | B34: 40.78 | D34: 26.28 | E34: 36.25 | G34: 19.71 | H34: 27.19 | M34: =$U$27&" - "&P34 -> Consorzi ASI - Insediamenti commerciali e direzionali - Articolo 9.11 | P34: Articolo 9.11 | V34: 29.57 | W34: 40.78 | Y34: =V34+W34 -> 70.35 | AA34: 26.28 | AB34: 36.25 | AD34: =AA34+AB34 -> 62.53 | AF34: 19.71 | AG34: 27.19 | AI34: =AF34+AG34 -> 46.9
A35: 29.57 | B35: 40.78 | D35: 26.28 | E35: 36.25 | G35: 19.71 | H35: 27.19 | M35: =$U$27&" - "&P35 -> Consorzi ASI - Insediamenti commerciali e direzionali - Articolo 9.2 - 9.3 | P35: Articolo 9.2 - 9.3 | V35: 29.57 | W35: 40.78 | Y35: =V35+W35 -> 70.35 | AA35: 26.28 | AB35: 36.25 | AD35: =AA35+AB35 -> 62.53 | AF35: 19.71 | AG35: 27.19 | AI35: =AF35+AG35 -> 46.9
A36: 29.57 | B36: 40.78 | D36: 26.28 | E36: 36.25 | G36: 19.71 | H36: 27.19 | M36: =$U$27&" - "&P36 -> Consorzi ASI - Insediamenti commerciali e direzionali - Articolo 10.3 | P36: Articolo 10.3 | V36: 29.57 | W36: 40.78 | Y36: =V36+W36 -> 70.35 | AA36: 26.28 | AB36: 36.25 | AD36: =AA36+AB36 -> 62.53 | AF36: 19.71 | AG36: 27.19 | AI36: =AF36+AG36 -> 46.9
A37: 29.57 | B37: 40.78 | D37: 26.28 | E37: 36.25 | G37: 19.71 | H37: 27.19 | M37: =$U$27&" - "&P37 -> Consorzi ASI - Insediamenti commerciali e direzionali - Articolo 12 | P37: Articolo 12 | V37: 29.57 | W37: 40.78 | Y37: =V37+W37 -> 70.35 | AA37: 26.28 | AB37: 36.25 | AD37: =AA37+AB37 -> 62.53 | AF37: 19.71 | AG37: 27.19 | AI37: =AF37+AG37 -> 46.9
P40: ONERI URBANIZZAZIONE | Q40: aggiornati con determina dirigenziale n. 00039 del 10/09/2019 | Y40: e | Z40: deliberazione consiglio comunale n. 00073 del 21/10/2019
P41: COSTO DI COSTRUZIONE | Q41: aggiornato con determina dirigenziale n. 10041 del 08/09/2017

Sheet Tabella Standard (hidden)
C2: ZONA | D2: DESCRIZIONE DELLA TIPIZZAZZIONE | E2: Indice di fabbricabilità | F2: Piano casa
F3: valore
E4: mc/mq | F4: € mq
A5: Centro Storico A1 | C5: A1 | D5: Centro storico | F5: =F10 -> 375 | G5: NELLA TABELLA L'IMPORTO NON INSERITO IN DELIBERA E' STATO ASSIMILATO A ZONA B4 (info da J.Pavone il 20/12/2021)
A6: Interesse Ambientale A2 | C6: A2 | D6: Area di interesse ambientale | E6: 3 | F6: =F10 -> 375 | G6: =G5 -> NELLA TABELLA L'IMPORTO NON INSERITO IN DELIBERA E' STATO ASSIMILATO A ZONA B4 (info da J.Pavone il 20/12/2021)
A7: Completamento B1 | C7: B1 | D7: Area di completamento | E7: 7 | F7: 1750
A8: Completamento B2 | C8: B2 | D8: Area di completamento | E8: 5 | F8: 1162.5
A9: Completamento B3 | C9: B3 | D9: Area di completamento | E9: 3 | F9: 562.5
A10: Completamento B4 | C10: B4 | D10: Area di completamento | E10: 2 | F10: 375
A11: Completamento B5 | C11: B5 | D11: Area di completamento | E11: 0.5 | F11: 93.75
A12: Rinnovamento urbano B6 | C12: B6 | D12: Area di rinnovo urbano | E12: 5 | F12: 775
A13: Rinnovamento urbano B7 | C13: B7 | D13: Area di rinnovo urbano | E13: 3 | F13: 465
A15: Rinnovamento urbano B8 | C15: B8 | D15: Area di rinnovamento urbano | E15: 0.5 | F15: 65
A16: Rinn. urbano terz./direz. B9 | C16: B9 | D16: Area di rinnovamento urbano terziario-direzionale | E16: 7 | F16: 1085
A17: Area di espansione C1 | C17: C1 | D17: Area di espansione | E17: 1.75 | F17: 157.5
A18: Area di espansione C2 | C18: C2 | D18: Area di espansione | E18: 1 | F18: 90
A19: Area di espansione C3 | C19: C3 | D19: Area di espansione | E19: 0.5 | F19: 45
A20: =D20&" "&C20 -> Area per attrezzature di servizio pubblico a carattere regionale o urbano - attrezzature sportive D/A | B20: AS | C20: D/A | D20: Area per attrezzature di servizio pubblico a carattere regionale o urbano - attrezzature sportive | E20: 0.5 | F20: 22.5
A21: =D21&" "&C21 -> Area per attrezzature di servizio pubblico a carattere regionale o urbano - attrezzature scolastiche digrado superiore D/B | B21: AS | C21: D/B | D21: Area per attrezzature di servizio pubblico a carattere regionale o urbano - attrezzature scolastiche digrado superiore | E21: 2 | F21: 90
A22: =D22&" "&C22 -> Area per attrezzature di servizio pubblico a carattere regionale o urbano - attrezzature universitarie statali D/C | B22: AS | C22: D/C | D22: Area per attrezzature di servizio pubblico a carattere regionale o urbano - attrezzature universitarie statali | E22: 2 | F22: 90
A24: =D24&" "&C24 -> Area per attrezzature di servizio pubblico a carattere regionale o urbano - attrezzature universitarie sanitarie e ospedaliere D/D | B24: AS | C24: D/D | D24: Area per attrezzature di servizio pubblico a carattere regionale o urbano - attrezzature universitarie sanitarie e ospedaliere | E24: 3 | F24: 135
A25: Area per attrezzature di servizio pubblico a carattere regionale o urbano - attrezzature a carattere fieristico D/E | B25: AS | C25: D/E | D25: Area per attrezzature di servizio pubblico a carattere regionale o urbano - attrezzature a carattere fieristico | E25: 2 | F25: 90
A26: Area per attrezzature di servizio pubblico a carattere regionale o urbano - attrezzature tecnologiche D/F | B26: AS | C26: D/F | D26: Area per attrezzature di servizio pubblico a carattere regionale o urbano - attrezzature tecnologiche | F26: INS. TARIFFA
A27: Area per attrezzature diservizio pubblico a carattere regionale o urbano - aree cimiteriali D/G | B27: AS | C27: D/G | D27: Area per attrezzature diservizio pubblico a carattere regionale o urbano - aree cimiteriali | F27: INS. TARIFFA
A28: Area per attrezzature di servizio pubblico a carattere regionale o urbano - aree di espansione e sviluppo servizi regionali D/H | B28: AS | C28: D/H | D28: Area per attrezzature di servizio pubblico a carattere regionale o urbano - aree di espansione e sviluppo servizi regionali | E28: 2 | F28: 90
A29: Area per attrezzature di servizio pubblico a carattere regionale o urbano - sedi ed attrezzature militari D/I | B29: AS | C29: D/I | D29: Area per attrezzature di servizio pubblico a carattere regionale o urbano - sedi ed attrezzature militari | F29: INS. TARIFFA
A31: =D31&" "&C31 -> Area per attrezzature di servizio pubblico a carattere regionale o urbano - sedi ed attrezzature per il culto D/L | B31: AS | C31: D/L | D31: Area per attrezzature di servizio pubblico a carattere regionale o urbano - sedi ed attrezzature per il culto | E31: 2 | F31: 90
A32: Servizi per la residenza - asili nido, scuole materne e dell'obbligo D/M | B32: AS | C32: D/M | D32: Servizi per la residenza - asili nido, scuole materne e dell'obbligo | E32: 2 | F32: 110
A33: Servizi per la residenza - chiese ed opere parrocchiali - centri civici e sociali - sanitari - amministrativi per pubblici servizi D/N | B33: AS | C33: D/N | D33: Servizi per la residenza - chiese ed opere parrocchiali - centri civici e sociali - sanitari - amministrativi per pubblici servizi | E33: 2 | F33: 110
A34: Attività secondarie tipo "A"- attività produttive industriali E/A | C34: E/A | D34: Attività secondarie tipo "A"- attività produttive industriali | F34: 86.25
A35: Attività secondarie tipo "B" - artigianato, deposito, attività annonarie e simili E/B | C35: E/B | D35: Attività secondarie tipo "B" - artigianato, deposito, attività annonarie e simili | E35: 2.5 | F35: 93.75
A36: Attività secondarie tipo "C" - relative ad attività a carattere annonario E/C | C36: E/C | D36: Attività secondarie tipo "C" - relative ad attività a carattere annonario | E36: 2 | F36: 75
A37: Zone per attività terziarie e livello urbano e metropolitano F | C37: F | D37: Zone per attività terziarie e livello urbano e metropolitano | E37: 5 | F37: 625
A38: Inserimento manuale tariffa (da usare nel caso di media di piu' zone) | B38: AS | F38: ='INSERIMENTO DATI'!F85 -> 0

Sheet PROSP. RIEP. PER VARIANTE (hidden)
E2: PROSPETTO DI AUTOCALCOLO PER LA DETERMINAZIONE DEL CONTRIBUTO DI COSTRUZIONE PER VARIANTE
B4: Pratica edil. attuale in var. | E4: ='PROSPETTO DI RIEPILOGO'!$E$4 ->  | N4: Pratica edilizia precedente
B6: Beneficiario | E6: ='PROSPETTO DI RIEPILOGO'!$E$6 -> 
B8: Ubicazione | E8: ='PROSPETTO DI RIEPILOGO'!$E$8 -> 
B10: Destinazione di P.R.G. | E10: ='PROSPETTO DI RIEPILOGO'!$E$10 -> Centro Storico A1 | S10: Norma da N.T.A. | U10: ='PROSPETTO DI RIEPILOGO'!$P$10 -> Art. 45
B12: ='PROSPETTO DI RIEPILOGO'!$B$12 ->  | E12: ='PROSPETTO DI RIEPILOGO'!$E$12 -> 
B14: ='PROSPETTO DI RIEPILOGO'!$B$14 ->  | E14: ='PROSPETTO DI RIEPILOGO'!$E$14 -> -
B16: ='PROSPETTO DI RIEPILOGO'!$B$16 ->  | E16: ='PROSPETTO DI RIEPILOGO'!$E$16 -> 
B18: ='PROSPETTO DI RIEPILOGO'!$B$18 ->  | E18: ='PROSPETTO DI RIEPILOGO'!$E$18 -> 
B22: SUPERFICI RESIDENZIALI E RELATIVI SERVIZI ED ACCESSORI (ADOPERATI PER IL CALCOLO NEL PREC. TITOLO EDILIZIO) | M22: SUP. URBANIZZAZIONI ADOPERATE PER IL CALCOLO NEL PREC. TITOLO EDILIZIO
B24: Su (Sup. Utile Abitabile) | E24: ="Su di progetto "&TEXT(SUM(E25),"#.##0,00")&" mq" -> Su di progetto 0,00 mq | H24: ="Su esistente "&TEXT(SUM(H25:H25),"#.##0,00")&" mq" -> Su esistente 0,00 mq | M24: Su (Sup. Utile Abitabile) + 50% Snr (Sup. non resid.) + Sl (Sup. Lorda non Resid.) + 50% Sa (Superficie Access.) | S24: ="Sup. di progetto "&TEXT(SUM(S25:S26),"#.##0,00")&" mq" -> Sup. di progetto 0,00 mq
B25: A. Unità immobiliari | D25: = | F25: mq | I25: mq | M25: Sup. di calcolo per Nuova Costruzione | T25: mq | X25: 1
M26: Sup. di calcolo per Demolizione e Ricostruzione | T26: mq
B27: Snr (Sup. non resid.) | E27: ="Snr di progetto "&TEXT(SUM(E28:E28),"#.##0,00")&" mq" -> Snr di progetto 0,00 mq | H27: ="Snr esistente "&TEXT(SUM(H28:H28),"#.##0,00")&" mq" -> Snr esistente 0,00 mq
B28: A. + B. + C. + D. + E. | D28: = | F28: mq | I28: mq
B31: SUPERFICI PER ATTIVITÀ TURISTICHE, COMMERCIALI, TERZIARIO DIREZIONALE, PRODUTTIVO E RELATIVI ACCESSORI (ADOPERATI PER IL CALCOLO NEL PREC. TITOLO EDILIZIO) | M31: SUP. COSTO DI COSTR. ADOPERATE PER IL CALCOLO NEL PREC. TITOLO EDILIZIO
B33: Sl (Sup. Lorda non Resid.) | E33: ="Sl di progetto "&TEXT(SUM(E34:E35),"#.##0,00")&" mq" -> Sl di progetto 0,00 mq | H33: ="Sl esistente "&TEXT(SUM(H34:H35),"#.##0,00")&" mq" -> Sl esistente 0,00 mq | M33: Su (Sup. Utile Abitabile) + 60% Snr (Sup. non resid.) | S33: ="Sup. di progetto "&TEXT(SUM(S34),"#.##0,00")&" mq" -> Sup. di progetto 0,00 mq
B34: A. Fuori terra | D34: = | F34: mq | I34: mq | M34: Superficie di calcolo | T34: mq
B35: B. Interrata | D35: = | F35: mq | I35: mq
B37: Sa (Superficie Access.) | E37: ="Sa di progetto "&TEXT(SUM(E38:E39),"#.##0,00")&" mq" -> Sa di progetto 0,00 mq | H37: ="Sa esistente "&TEXT(SUM(H38:H39),"#.##0,00")&" mq" -> Sa esistente 0,00 mq | M37: Sl (Sup. Lorda non Resid.) + 60% Sa (Superficie Access.) | S37: ="Sup. di progetto "&TEXT(SUM(S38:S39),"#.##0,00")&" mq" -> Sup. di progetto 0,00 mq
B38: A. + C Fuori terra | D38: = | F38: mq | I38: mq | M38: Superficie di calcolo Fuori terra | T38: mq
B39: B. + D. Interrata | D39: = | F39: mq | I39: mq | M39: Superficie di calcolo Interrata | T39: mq
B43: DATI PER IL CALCOLO DEL COSTO DI COSTRUZIONE (DA ULTIMO CALCOLO) | M43: DATI PER IL CALCOLO DELLA MONETIZZAZIONE DEGLI STANDARD URBANISTICI (ADOPERATI NEL PREC. TITOLO EDILIZIO)
B44: Magg. in % per CC ultimo titolo edilizio da applicare | I44: % | M44: Superficie monetizzata degli standard titolo originario | T44: mq
B46: Coeff. Comm/Terz/Direz ultimo titolo ed. da applicare | I46: % | M46: Superficie monetizzata parcheggi titolo originario | T46: mq
E48: Protocollo Itaca del precedente titolo edilizio
E49: Abbatt. del 20% per edilizia residenziale inserita in piani e programmi di iniziativa pubblica e mista e ristrutturazione urbanistica con realizz. in classe 3 del protocollo itaca
E50: Abbatt. del 20% al fine di agevolare gli interenti di rigen. urbana, di ristrutt. e di recupero e riuso degli immobili dismessi o in dismissione - art.17 c.4bis DPR 380/01
E51: Abbattimento del 50% delle tariffe delle zone B3 per aree servizi ed a verde per servizi culturali, sportivi e di recupero del disagio sociale
B54: A - urbanizzazioni primarie | F54: Tipo intervento edilizio | I54: % Appl. | J54: Superficie Precedente (mq) | L54: Aliquota attuale (€/mq) | R54: Totale Precedente attualizzato ( € ) | S54: Totale Attuale ( € ) | U54: Totale sola variante ( € )
B55: Su/Sl (Superficie Utile/Lorda) | F55: ='PROSPETTO DI RIEPILOGO'!$F$22 -> Nuova Costruzione | I55: 1 | J55: =IF(AND(E25=0,S25=0),0,((E25+E34+E35)-(H25+H34+H35))+S25) -> 0 | K55: x | L55: ='PROSPETTO DI RIEPILOGO'!$J$22 -> 22.06 | Q55: = | R55: =(IF(J55<>"",(I55*J55*L55),0)) -> 0 | S55: ='PROSPETTO DI RIEPILOGO'!$P$22 -> 22.06 | U55: =S55-R55 -> 22.06
B56: Snr/Sa (Superficie non residenziale/Accessoria) | I56: 0.5 | J56: =IF(E28=0,0,(E28+E38+E39)-(H28+H38+H39)) -> 0 | K56: x | L56: =IF('PROSPETTO DI RIEPILOGO'!$J$23=0,L55,'PROSPETTO DI RIEPILOGO'!$J$23) -> 22.06 | Q56: = | R56: =(IF(J56<>"",(I56*J56*L56),0)) -> 0 | S56: ='PROSPETTO DI RIEPILOGO'!$P$23+'PROSPETTO DI RIEPILOGO'!$P$24+'PROSPETTO DI RIEPILOGO'!$P$25 -> 0 | U56: =S56-R56 -> 0
B57: Su/Sl (Superficie Utile/Lorda) | F57: ='PROSPETTO DI RIEPILOGO'!$F$26 -> Demol. e Ricostruzione | I57: 1 | J57: =(H25+H34+H35)+S26 -> 0 | K57: x | L57: ='PROSPETTO DI RIEPILOGO'!$J$26 -> 0 | Q57: = | R57: =(IF(J57<>"",(I57*J57*L57),0)) -> 0 | S57: ='PROSPETTO DI RIEPILOGO'!$P$26 -> 0 | U57: 0
B58: Snr/Sa (Superficie non residenziale/Accessoria) | I58: 0.5 | J58: =H28+H38+H39 -> 0 | K58: x | L58: =IF('PROSPETTO DI RIEPILOGO'!$J$27=0,L57,'PROSPETTO DI RIEPILOGO'!$J$27) -> 0 | Q58: = | R58: =(IF(J58<>"",(I58*J58*L58),0)) -> 0 | S58: ='PROSPETTO DI RIEPILOGO'!$P$27+'PROSPETTO DI RIEPILOGO'!$P$28+'PROSPETTO DI RIEPILOGO'!$P$29 -> 0 | U58: 0
B59: SUBTOTALE A - urbanizzazioni primarie | R59: =ROUND(SUM(R55:R58),0) -> 0 | S59: =ROUND(SUM(S55:S58),0) -> 22 | U59: =ROUND(SUM(U55:U58),0) -> 22
B60: ABBATTIMENTO DEL 20% (edilizia residenziale inserita in piani e progr. di iniziativa pubblica e mista e ristrutt. urbanistica con realizz. in cl. 3 del prot. itaca) | S60: ='PROSPETTO DI RIEPILOGO'!P33 -> 0 | U60: =S60-R60 -> 0
B61: ABBATTIMENTO DEL 20% da art.17 c.4bis DPR 380/01 (applicato solo su superfici aggiuntive rispetto a quelle già assentite) | U61: =IF('INSERIMENTO DATI'!R43=TRUE,ROUND((U59*0.2),0),0) -> 0
B62: ABBATTIMENTO DEL 50% (delle tariffe delle zone b3 per aree servizi ed a verde per servizi culturali, sportivi e di recupero del disagio sociale) | S62: ='PROSPETTO DI RIEPILOGO'!P35 -> 0 | U62: =S62-R62 -> 0
B63: EVENTUALI ONERI GIA' VERSATI (Necessario allegare attestazioni di pagamento a comprova) | S63: ='PROSPETTO DI RIEPILOGO'!P36 -> 0 | U63: =S63-R63 -> 0
B64: EVENTUALI SCOMPUTI DA CONVENZIONE | S64: ='PROSPETTO DI RIEPILOGO'!P37 -> 0 | U64: =S64-R64 -> 0
B65: TOTALE URBANIZZAZIONI PRIMARIE DA VERSARE (tariffe da delibera C.C. nr.73/2019) | R65: =ROUND((IF((R59-R60-R61-R62-R63-R64)<0,0,(R59-R60-R61-R62-R63-R64))),0) -> 0 | S65: =ROUND((IF((S59-S60-S61-S62-S63-S64)<0,0,(S59-S60-S61-S62-S63-S64))),0) -> 22 | U65: =ROUND((IF((U59-U60-U61-U62-U63-U64)=0,0,(U59-U60-U61-U62-U63-U64))),0) -> 22
B67: B - urbanizzazioni secondarie | F67: Tipo intervento edilizio | I67: % Appl. | J67: Superficie Precedente (mq) | L67: Aliquota attuale (€/mq) | R67: Totale Precedente attualizzato ( € ) | S67: Totale Attuale ( € ) | U67: Totale sola variante ( € )
B68: Su/Sl (Superficie Utile/Lorda) | F68: ='PROSPETTO DI RIEPILOGO'!$F$41 -> Nuova Costruzione | I68: 1 | J68: =J55 -> 0 | K68: x | L68: ='PROSPETTO DI RIEPILOGO'!$J$41 -> 45.31 | Q68: = | R68: =(IF(J68<>"",(I68*J68*L68),0)) -> 0 | S68: ='PROSPETTO DI RIEPILOGO'!$P$41 -> 45.31 | U68: =S68-R68 -> 45.31
B69: Snr/Sa (Superficie non residenziale/Accessoria) | I69: 0.5 | J69: =J56 -> 0 | K69: x | L69: =IF('PROSPETTO DI RIEPILOGO'!$J$42=0,L68,'PROSPETTO DI RIEPILOGO'!$J$42) -> 45.31 | Q69: = | R69: =(IF(J69<>"",(I69*J69*L69),0)) -> 0 | S69: ='PROSPETTO DI RIEPILOGO'!$P$42+'PROSPETTO DI RIEPILOGO'!$P$43+'PROSPETTO DI RIEPILOGO'!$P$44 -> 0 | U69: 0
B70: Su/Sl (Superficie Utile/Lorda) | F70: ='PROSPETTO DI RIEPILOGO'!$F$45 -> Demol. e Ricostruzione | I70: 1 | J70: =J57 -> 0 | K70: x | L70: ='PROSPETTO DI RIEPILOGO'!$J$45 -> 0 | Q70: = | R70: =(IF(J70<>"",(I70*J70*L70),0)) -> 0 | S70: ='PROSPETTO DI RIEPILOGO'!$P$45 -> 0 | U70: 0
B71: Snr/Sa (Superficie non residenziale/Accessoria) | I71: 0.5 | J71: =J58 -> 0 | K71: x | L71: =IF('PROSPETTO DI RIEPILOGO'!$J$46=0,L70,'PROSPETTO DI RIEPILOGO'!$J$46) -> 0 | Q71: = | R71: =(IF(J71<>"",(I71*J71*L71),0)) -> 0 | S71: ='PROSPETTO DI RIEPILOGO'!$P$46+'PROSPETTO DI RIEPILOGO'!$P$47+'PROSPETTO DI RIEPILOGO'!$P$48 -> 0 | U71: 0
B72: SUBTOTALE B - urbanizzazioni secondarie | R72: =ROUND(SUM(R68:R71),0) -> 0 | S72: =ROUND(SUM(S68:S71),0) -> 45 | U72: =ROUND(SUM(U68:U71),0) -> 45
B73: PROTOCOLLO ITACA PER RIDUZIONE ONERI URBANIZZAZIONE | J73: =IF('PROSP. RIEP. PER VARIANTE'!J48=0,"",'PROSP. RIEP. PER VARIANTE'!J48) ->  | S73: ='PROSPETTO DI RIEPILOGO'!P52 -> 0 | U73: =S73-R73 -> 0
B74: ABBATTIMENTO DEL 20% (edilizia residenziale inserita in piani e progr. di iniziativa pubblica e mista e ristrutt. urbanistica con realizz. in cl. 3 del prot. itaca) | S74: ='PROSPETTO DI RIEPILOGO'!P53 -> 0 | U74: =S74-R74 -> 0
B75: ABBATTIMENTO DEL 20% da art.17 c.4bis DPR 380/01 (applicato solo su superfici aggiuntive rispetto a quelle già assentite) | U75: =IF('INSERIMENTO DATI'!R43=TRUE,ROUND((U72*0.2),0),0) -> 0
B76: ABBATTIMENTO DEL 50% (delle tariffe delle zone b3 per aree servizi ed a verde per servizi culturali, sportivi e di recupero del disagio sociale) | S76: ='PROSPETTO DI RIEPILOGO'!P55 -> 0 | U76: =S76-R76 -> 0
B77: EVENTUALI ONERI GIA' VERSATI (Necessario allegare attestazioni di pagamento a comprova) | S77: ='PROSPETTO DI RIEPILOGO'!P56 -> 0 | U77: =S77-R77 -> 0
B78: EVENTUALI SCOMPUTI DA CONVENZIONE | S78: ='PROSPETTO DI RIEPILOGO'!P57 -> 0 | U78: =S78-R78 -> 0
B79: TOTALE URBANIZZAZIONI SECONDARIE DA VERSARE (tariffe da delibera C.C. nr.73/2019) | R79: =ROUND((IF((R72-R73-R74-R75-R76-R77-R78)<0,0,(R72-R73-R74-R75-R76-R77-R78))),0) -> 0 | S79: =ROUND((IF((S72-S73-S74-S75-S76-S77-S78)<0,0,(S72-S73-S74-S75-S76-S77-S78))),0) -> 45 | U79: =ROUND((IF((U72-U73-U74-U75-U76-U77-U78)=0,0,(U72-U73-U74-U75-U76-U77-U78))),0) -> 45
B81: C - costo di costruzione | F81: Tipo intervento edilizio | I81: % Appl. | J81: Superficie Precedente (mq) | L81: Aliquota attuale (€/mq) | N81: Incr. CC Precedente | P81: Aliquota % Precedente C.C. | R81: Totale Precedente attualizzato ( € ) | S81: Totale Attuale ( € ) | U81: Totale sola variante ( € )
B82: Su (Superficie Utile) | F82: Residenziale | I82: 1 | J82: =IF(E25<>0,E25+S34,H25+S34) -> 0 | K82: x | L82: ='PROSPETTO DI RIEPILOGO'!$J$61 -> 697.62 | M82: x | N82: =H44/100 -> 0 | O82: x | P82: ='PROSPETTO DI RIEPILOGO'!N61 -> 0.05 | Q82: = | R82: =(IF(N82>0%,(I82*J82*(L82+(L82*N82))*P82),(I82*J82*L82*P82))) -> 0 | S82: ='PROSPETTO DI RIEPILOGO'!$P$61 -> 34.881 | U82: =S82-R82 -> 34.881
B83: Snr (Superficie non residenziale) | I83: 0.6 | J83: =IF(E28<>0,E28,H28) -> 0 | K83: x | L83: =IF('PROSPETTO DI RIEPILOGO'!$J$62=0,L82,'PROSPETTO DI RIEPILOGO'!$J$62) -> 697.62 | M83: x | N83: =N82 -> 0 | O83: x | P83: ='PROSPETTO DI RIEPILOGO'!N62 -> 0 | Q83: = | R83: 0 | S83: ='PROSPETTO DI RIEPILOGO'!$P$62+'PROSPETTO DI RIEPILOGO'!$P$63+'PROSPETTO DI RIEPILOGO'!$P$64 -> 0 | U83: 0
B84: Sl (Superficie Lorda) | F84: Comm./Terz./Direz. Fuori Terra | I84: 1 | J84: =IF(E34<>0,E34+S38,H34+S38) -> 0 | K84: x | L84: ='PROSPETTO DI RIEPILOGO'!$J$65 -> 0 | M84: x | N84: 0 | O84: x | P84: =H46/100 -> 0 | Q84: = | R84: 0 | S84: ='PROSPETTO DI RIEPILOGO'!$P$65 -> 0 | U84: 0
B85: Sa (Superficie accessoria) | I85: 0.6 | J85: =IF(E38<>0,E38,H38) -> 0 | K85: x | L85: =IF('PROSPETTO DI RIEPILOGO'!$J$66=0,L84,'PROSPETTO DI RIEPILOGO'!$J$66) -> 0 | M85: x | N85: 0 | O85: x | P85: =P84 -> 0 | Q85: = | R85: 0 | S85: ='PROSPETTO DI RIEPILOGO'!$P$66+'PROSPETTO DI RIEPILOGO'!$P$67 -> 0 | U85: 0
B86: Sl (Superficie Lorda) | F86: Comm./Terz./Direz. Interrata | I86: 1 | J86: =IF(E35<>0,E35+S39,H35+S39) -> 0 | K86: x | L86: ='PROSPETTO DI RIEPILOGO'!$J$68 -> 0 | M86: x | N86: 0 | O86: x | P86: =P84 -> 0 | Q86: = | R86: 0 | S86: ='PROSPETTO DI RIEPILOGO'!$P$68 -> 0 | U86: 0
B87: Sa (Superficie accessoria) | I87: 0.6 | J87: =IF(E39<>0,E39,H39) -> 0 | K87: x | L87: =IF('PROSPETTO DI RIEPILOGO'!$J$69=0,L86,'PROSPETTO DI RIEPILOGO'!$J$69) -> 0 | M87: x | N87: 0 | O87: x | P87: =P84 -> 0 | Q87: = | R87: 0 | S87: ='PROSPETTO DI RIEPILOGO'!$P$69+'PROSPETTO DI RIEPILOGO'!$P$70 -> 0 | U87: 0
B88: SUBTOTALE C - costo di costruzione | R88: =ROUND(SUM(R82:R87),0) -> 0 | S88: =ROUND(SUM(S82:S87),0) -> 35 | U88: =ROUND(SUM(U82:U87),0) -> 35
B89: ABBATTIMENTO DEL 20% da art.17 c.4bis DPR 380/01 (applicato solo su superfici aggiuntive rispetto a quelle già assentite) | U89: =IF('INSERIMENTO DATI'!R43=TRUE,ROUND((U88*0.2),0),0) -> 0
B90: EVENTUALI ONERI GIA' VERSATI (Necessario allegare attestazioni di pagamento a comprova) | S90: ='PROSPETTO DI RIEPILOGO'!P73 -> 0 | U90: =S90-R90 -> 0
B91: EVENTUALI SCOMPUTI DA CONVENZIONE | S91: ='PROSPETTO DI RIEPILOGO'!P74 -> 0 | U91: 0
B92: TOTALE COSTO DI COSTRUZIONE DA VERSARE (Tariffe da determina dirigenziale nr.10041/17) | R92: =ROUND((IF((R88-R89-R90-R91)<0,0,(R88-R89-R90-R91))),0) -> 0 | S92: =ROUND((IF((S88-S89-S90-S91)<0,0,(S88-S89-S90-S91))),0) -> 35 | U92: =ROUND((IF((U88-U89-U90-U91)=0,0,(U88-U89-U90-U91))),0) -> 35
B94: TOTALE CONTRIBUTO DI COSTRUZIONE (A + B + C) | R94: =R65+R79+R92 -> 0 | S94: =S65+S79+S92 -> 102 | U94: =U65+U79+U92 -> 102
B96: D - standard e parcheggi | F96: Tipo | I96: % Appl. | J96: Superficie Precedente (mq) | L96: Aliquota attuale (€/mq) | N96: Riduz. | R96: Totale Precedente attualizzato ( € ) | S96: Totale Attuale ( € ) | U96: Totale sola variante ( € )
B97: Ss (Sup. a Standard Urbanistici DM 1444/68) | F97: Monetizz. Standard | I97: 1 | J97: =S44 -> 0 | K97: x | L97: ='PROSPETTO DI RIEPILOGO'!$J$80 -> 0 | Q97: = | R97: =ROUND(IF(ISERROR(IF(J97<>"",(I97*J97)*L97,0))=TRUE,0,(IF(J97<>"",(I97*J97)*L97,0))),0) -> 0 | S97: ='PROSPETTO DI RIEPILOGO'!$P$80 -> 0 | U97: =S97-R97 -> 0
B98: Sp (Sup. per Parcheggi L. 122/89) | F98: Monetizz. Parcheggi | I98: 1 | J98: =S46 -> 0 | K98: x | L98: ='PROSPETTO DI RIEPILOGO'!$J$81 -> 0 | M98: x | N98: ='PROSPETTO DI RIEPILOGO'!$L$81 -> 0.6 | Q98: = | R98: =ROUND((IF(J98<>"",(I98*J98*N98)*L98,0)),0) -> 0 | S98: ='PROSPETTO DI RIEPILOGO'!$P$81 -> 0 | U98: =S98-R98 -> 0
B99: SUBTOTALE D - standard e parcheggi | R99: =SUM(R97:R98) -> 0 | S99: =SUM(S97:S98) -> 0 | U99: =SUM(U97:U98) -> 0
B100: EVENTUALI STANDARD GIA' VERSATI (Necessario allegare attestazioni di pagamento a comprova) | S100: ='PROSPETTO DI RIEPILOGO'!P83 -> 0 | U100: =S100-R100 -> 0
B101: EV. SCOMPUTI DA MOTIVARE IN RELAZIONE | S101: ='PROSPETTO DI RIEPILOGO'!P84 -> 0 | U101: =S101-R101 -> 0
B102: TOT. MONETIZZAZIONE STANDARD E PARCHEGGI (D) (Tariffe standard da det. Dir. nr.130/14 tariffe parcheggi da delibera C.C. nr.73/2019) | R102: =ROUND((IF((R99-R100-R101)<0,0,(R99-R100-R101))),0) -> 0 | S102: =ROUND((IF((S99-S100-S101)<0,0,(S99-S100-S101))),0) -> 0 | U102: =ROUND((IF((U99-U100-U101)=0,0,(U99-U100-U101))),0) -> 0
B104: TOT. COMPLESSIVO DA VERSARE PER VARIANTE - CONTR. DI COSTRUZIONE + STANDARD E PARCHEGGI | R104: =R94+R102 -> 0 | S104: =S94+S102 -> 102 | U104: =U94+U102 -> 102

Sheet PROSPETTO RATE
C2: PROSPETTO DI CALCOLO IMPORTI DA RATEIZZARE E DA GARANTIRE CON POLIZZE
C4: Titolo abilitativo | E4: ='INSERIMENTO DATI'!D4 -> 0
C6: Beneficiario | E6: =IF('INSERIMENTO DATI'!D6="","",'INSERIMENTO DATI'!D6) -> 
C9: SI VUOLE RATEIZZARE L'IMPORTO | K9: 2
C11: Importo minimo soglia NON rateizzabile | E11: 26000 | F11: Per oneri di urbanizzazione e standard (rif. D.G. 53/2013 e D.G 291/2016) | H11: FALSE
C12: Non rateizzare oneri urbanizzazione | G12: Spuntare se non si vuole applicare la rateizzazione ad una categoria | K12: FALSE
C13: Non rateizzare costo di costruzione | K13: FALSE
C14: Non rateizzare Standard | K14: FALSE
C17: A - B - C - CONTRIBUTO DI COSTRUZIONE | E17: IMPORTO | F17: ANNOTAZIONI
C18: URBANIZZAZIONI PRIMARIE | E18: =IF(K9=1,(IF(ISERROR('PROSPETTO DI RIEPILOGO'!P38)=TRUE,0,'PROSPETTO DI RIEPILOGO'!P38)),0) -> 0 | F18: =IF((E18+E19)=0,"",IF((E18+E19)>E11,"IMPORTO RATEIZZABILE","IMPORTO NON RATEIZZABILE")) -> 
C19: URBANIZZAZIONI SECONDARIE | E19: =IF(K9=1,(IF(ISERROR('PROSPETTO DI RIEPILOGO'!P58)=TRUE,0,'PROSPETTO DI RIEPILOGO'!P58)),0) -> 0 | F19: =IF((E18+E19)=0,"",IF((E18+E19)>E11,"IMPORTO RATEIZZABILE","IMPORTO NON RATEIZZABILE")) -> 
C20: COSTO DI COSTRUZIONE | E20: =IF(K9=1,(IF(ISERROR('PROSPETTO DI RIEPILOGO'!P75)=TRUE,0,'PROSPETTO DI RIEPILOGO'!P75)),0) -> 0 | F20: =IF(E20=0,"","IMPORTO RATEIZZABILE") -> 
C21: Totale contributo di costruzione | E21: =SUM(E18:E20) -> 0
C23: D - MONETIZZAZIONI | E23: IMPORTO | F23: ANNOTAZIONI
C24: STANDARD | E24: =IF(K9=1,(IF(ISERROR('PROSPETTO DI RIEPILOGO'!P80)=TRUE,0,'PROSPETTO DI RIEPILOGO'!P85*'PROSPETTO DI RIEPILOGO'!R80)),0) -> 0 | F24: =IF((E24+E25)=0,"",IF((E24+E25)>E11,"IMPORTO RATEIZZABILE","IMPORTO NON RATEIZZABILE")) -> 
C25: PARCHEGGI | E25: =IF(K9=1,(IF(ISERROR('PROSPETTO DI RIEPILOGO'!P81)=TRUE,0,'PROSPETTO DI RIEPILOGO'!P85*'PROSPETTO DI RIEPILOGO'!R81)),0) -> 0 | F25: =IF((E24+E25)=0,"",IF((E24+E25)>E11,"IMPORTO RATEIZZABILE","IMPORTO NON RATEIZZABILE")) -> 
C26: Totale a standard | E26: =ROUND(SUM(E24:E25),0) -> 0
C28: E - CONTR. STRAORD. DI COSTRUZIONE | E28: IMPORTO | F28: ANNOTAZIONI
C29: Contributo Straordinario di Costr. | E29: =IF(K9=1,(IF(ISERROR('PROSPETTO DI RIEPILOGO'!P89)=TRUE,0,'PROSPETTO DI RIEPILOGO'!P89)),0) -> 0 | F29: =IF((E29)=0,"","IMPORTO RATEIZZABILE") -> 
C30: Totale contr. straordinario | E30: =ROUND(SUM(E29:E29),0) -> 0
C33: A - URBANIZZAZIONI PRIMARIE | D33: % | E33: IMPORTO | F33: ANNOTAZIONI
C34: =IF(E34=0,"",(IF(E35=0,"UNICA RATA","1 RATA"))) ->  | D34: =IFERROR(E34/(E18+E19),"") ->  | E34: =IF(K9=2,0,(IF((E18+E19)<E11,(ROUND(E18,3)+ROUND(0,3)),(IF((E18+E19)=0,"",(IF(K12=TRUE,E18,(IF((E18+E19)*40%>$E$11,ROUND(E18*40%,3),ROUND((E18/(E18+E19))*$E$11,3)))))+(IF(K12=TRUE,0,(IF((E18+E19)*40%>$E$11,ROUND(0*40%,3),0))))))))) -> 0 | F34: =IF(E34=0,"",(IF((E18+E19)=0,"","DA VERSARE CON SISTEMA PAGOPA PER POTER RITIRARE IL TITOLO EDILIZIO"))) -> 
C35: =IF(E35=0,"","2 RATA - polizza a garanzia") ->  | D35: =IFERROR(E35/(E18+E19),"") ->  | E35: =IF(E34=E18,0,(IF(K9=2,0,(ROUND((IF(K12=TRUE,"0",(IF((E18+E19)*40%>$E$11,E18*30%,(E18-(IF(K12=TRUE,E18,(IF((E18+E19)*40%>$E$11,E18*40%,(E18/(E18+E19))*$E$11)))))/2)))),3))))) -> 0 | F35: =IF(E35=0,"",("Da versare entro 1 anno da data di rilascio del Titolo Edilizio")) -> 
C36: =IF(E36=0,"","3 RATA - polizza a garanzia") ->  | D36: =IFERROR(E36/(E18+E19),"") ->  | E36: =IF(E34=E18,0,(IF(K9=2,0,(ROUND((IF(K12=TRUE,"0",(IF((E18+E19)*40%>$E$11,E18*30%,(E18-(IF(K12=TRUE,E18,(IF((E18+E19)*40%>$E$11,E18*40%,(E18/(E18+E19))*$E$11)))))/2)))),3))))) -> 0 | F36: =IF(E36=0,"",("Da versare entro 2 anni da data di rilascio del Tit. Ed. o entro la fine lavori se antecedente i 2 anni")) -> 
C37: Totale urbanizzazioni primarie | D37: =IF(E37=0,"",(IF(E37<>E18,"ATT.",""))) ->  | E37: =ROUND(SUM(E34:E36),2) -> 0 | F37: =IF(E37=0,"",(IF(E35=0,"IMPORTO NON RATEIZZATO","Importo rateizzato"))) -> 
C39: B - URBANIZZAZIONI SECONDARIE | D39: % | E39: IMPORTO | F39: ANNOTAZIONI
C40: =IF(E34=0,"",(IF(E35=0,"UNICA RATA","1 RATA"))) ->  | D40: =IFERROR(E40/(E18+E19),"") ->  | E40: =IF(K9=2,0,(IF((E18+E19)<E11,(0 + ROUND(E19,3)),(IF((E18+E19)=0,"",0+(IF(K12=TRUE,E19,(IF((E18+E19)*40%>$E$11,ROUND(E19*40%,3),ROUND((E19/(E18+E19))*$E$11,3)))))))))) -> 0 | F40: =IF(E40=0,"",(IF(E23=0,"","DA VERSARE CON SISTEMA PAGOPA PER POTER RITIRARE IL TITOLO EDILIZIO"))) -> 
C41: =IF(E35=0,"","2 RATA - polizza a garanzia") ->  | D41: =IFERROR(E41/(E18+E19),"") ->  | E41: =IF(E40=E19,0,(IF(K9=2,0,(ROUND(IF(K12=TRUE,"0",(IF(K12=TRUE,"0",(IF((E18+E19)*40%>$E$11,E19*30%,(E19-(IF(K12=TRUE,E19,(IF(E19*40%>$E$11,E19*40%,(E19/(E18+E19))*$E$11)))))/2))))),3))))) -> 0 | F41: =IF(E41=0,"",("Da versare entro 1 anno da data di rilascio del Titolo Edilizio")) -> 
C42: =IF(E36=0,"","3 RATA - polizza a garanzia") ->  | D42: =IFERROR(E42/(E18+E19),"") ->  | E42: =IF(E40=E19,0,(IF(K9=2,0,(ROUND(IF(K12=TRUE,"0",(IF(K12=TRUE,"0",(IF((E18+E19)*40%>$E$11,E19*30%,(E19-(IF(K12=TRUE,E19,(IF(E19*40%>$E$11,E19*40%,(E19/(E18+E19))*$E$11)))))/2))))),3))))) -> 0 | F42: =IF(E42=0,"",("Da versare entro 2 anni da data di rilascio del Tit. Ed. o entro la fine lavori se antecedente i 2 anni")) -> 
C43: Totale urbanizzazioni secondarie | D43: =IF(E43=0,"",(IF(E43<>E19,"ATT.",""))) ->  | E43: =ROUND(SUM(E40:E42),2) -> 0 | F43: =IF(E43=0,"",(IF(E41=0,"IMPORTO NON RATEIZZATO","Importo rateizzato"))) -> 
C45: C + E - COSTO DI COST + CONTR. | D45: % | E45: IMPORTO | F45: ANNOTAZIONI
C46: =IF(E46=0,"",(IF(E47=0,"UNICA RATA","1 RATA"))) ->  | D46: =IFERROR(E46/(E20+E30),"") ->  | E46: =IF(K9=2,0,(IF(K13=FALSE,(E20+E30)*20%,(E20+E30)))) -> 0 | F46: =IF(E46=0,"",(IF(E20=0,"","DA VERSARE CON SISTEMA PAGOPA PER POTER RITIRARE IL TITOLO EDILIZIO"))) -> 
C47: =IF(E47=0,"","2 RATA - polizza a garanzia") ->  | D47: =IFERROR(E47/(E20+E30),"") ->  | E47: =IF(K9=2,0,(IF(K13=FALSE,(E20+E30)*40%,0))) -> 0 | F47: =IF(E47=0,"","Da versare entro 1 anno da data di rilascio del Titolo Edilizio") -> 
C48: =IF(E48=0,"","3 RATA - polizza a garanzia") ->  | D48: =IFERROR(E48/(E20+E30),"") ->  | E48: =IF(K9=2,0,(IF(K13=FALSE,(E20+E30)*40%,0))) -> 0 | F48: =IF(E48=0,"","Da versare entro 2 anni da data di rilascio del Tit. Ed. o entro la fine lavori se antecedente i 2 anni") -> 
C49: Totale costo di costruzione | D49: =IF(E49=0,"",(IF(E49<>(E20+E30),"ATT.",""))) ->  | E49: =ROUND(SUM(E46:E48),2) -> 0 | F49: =IF(E49=0,"",(IF(E47=0,"IMPORTO NON RATEIZZATO","Importo rateizzato"))) -> 
C51: D1 - MONETIZZAZIONE STANDARD | D51: % | E51: IMPORTO | F51: ANNOTAZIONI
C52: =IF(E52=0,"",(IF(E53=0,"UNICA RATA","1 RATA"))) ->  | D52: =IFERROR(E52/E26,"") ->  | E52: =IF(K9=2,0,(IF(E26<E11,(ROUND(E24,2)+ROUND(0,2)),(IF(E26=0,"",(IF(K14=TRUE,E24,(IF(E26*40%>$E$11,ROUND(E24*40%,2),ROUND((E24/E26)*$E$11,2)))))+(IF(K14=TRUE,0,(IF(E26*40%>$E$11,ROUND(0*40%,2),0))))))))) -> 0 | F52: =IF(E52=0,"",(IF(E26=0,"","DA VERSARE CON SISTEMA PAGOPA PER POTER RITIRARE IL TITOLO EDILIZIO"))) ->  | K52: =IF(E52=0,"",(IF(E26<E11,("SU : "& ROUND(E24,2) &" € + SP : "& ROUND(E25,2)),(IF(E26=0,"","SU : "&(IF(K14=TRUE,E24,(IF(E26*40%>$E$11,ROUND(E24*40%,2),ROUND((E24/E26)*$E$11,2)))))&" € + SP : "&(IF(K14=TRUE,E25,(IF(E26*40%>$E$11,ROUND(E25*40%,2),ROUND((E25/E26)*$E$11,2)))))&" €"))))) -> 
C53: =IF(E53=0,"","2 RATA - polizza a garanzia") ->  | D53: =IFERROR(E53/E26,"") ->  | E53: =IF(E52=E24,0,(IF(K9=2,0,(ROUND((IF(K14=TRUE,"0",(IF(E26*40%>$E$11,E24*30%,(E24-(IF(K14=TRUE,E24,(IF(E26*40%>$E$11,E24*40%,(E24/E26)*$E$11)))))/2)))),2))))) -> 0 | F53: =IF(E53=0,"","Da versare entro 1 anno da data di rilascio del Titolo Edilizio") -> 
C54: =IF(E54=0,"","3 RATA - polizza a garanzia") ->  | D54: =IFERROR(E54/E26,"") ->  | E54: =IF(E52=E24,0,(IF(K9=2,0,(ROUND((IF(K14=TRUE,"0",(IF(E26*40%>$E$11,E24*30%,(E24-(IF(K14=TRUE,E24,(IF(E26*40%>$E$11,E24*40%,(E24/E26)*$E$11)))))/2)))),2))))) -> 0 | F54: =IF(E54=0,"","Da versare entro 2 anni da data di rilascio del Tit. Ed. o entro la fine lavori se antecedente i 2 anni") -> 
C55: Totale a standard | D55: =IF(E55=0,"",(IF(E55<>E24,"ATT.",""))) ->  | E55: =SUM(E52:E54) -> 0 | F55: =IF(E55=0,"",(IF(E53=0,"IMPORTO NON RATEIZZATO","Importo rateizzato"))) -> 
C57: D2 - MONETIZZAZIONE PARCHEGGI | D57: % | E57: IMPORTO | F57: ANNOTAZIONI
C58: =IF(E58=0,"",(IF(E59=0,"UNICA RATA","1 RATA"))) ->  | D58: =IFERROR(E58/E25,"") ->  | E58: =IF(K9=2,0,(IF(E26<E11,(0+ROUND(E25,2)),(IF(E26=0,"",0+(IF(K14=TRUE,E25,(IF(E26*40%>$E$11,ROUND(E25*40%,2),ROUND((E25/E26)*$E$11,2)))))))))) -> 0 | F58: =IF(E58=0,"",(IF(E25=0,"","DA VERSARE CON SISTEMA PAGOPA PER POTER RITIRARE IL TITOLO EDILIZIO"))) -> 
C59: =IF(E59=0,"","2 RATA - polizza a garanzia") ->  | D59: =IFERROR(E59/E25,"") ->  | E59: =IF(E58=E25,0,(IF(K9=2,0,(ROUND(IF(K14=TRUE,"0",(IF(K14=TRUE,"0",(IF(E26*40%>$E$11,E25*30%,(E25-(IF(K14=TRUE,E25,(IF(E25*40%>$E$11,E25*40%,(E25/E26)*$E$11)))))/2))))),2))))) -> 0 | F59: =IF(E59=0,"","Da versare entro 1 anno da data di rilascio del Titolo Edilizio") -> 
C60: =IF(E60=0,"","3 RATA - polizza a garanzia") ->  | D60: =IFERROR(E60/E25,"") ->  | E60: =IF(E58=E25,0,(IF(K9=2,0,(ROUND(IF(K14=TRUE,"0",(IF(K14=TRUE,"0",(IF(E26*40%>$E$11,E25*30%,(E25-(IF(K14=TRUE,E25,(IF(E25*40%>$E$11,E25*40%,(E25/E26)*$E$11)))))/2))))),2))))) -> 0 | F60: =IF(E60=0,"","Da versare entro 2 anni da data di rilascio del Tit. Ed. o entro la fine lavori se antecedente i 2 anni") -> 
C61: Totale parcheggi | D61: =IF(E61=0,"",(IF(E61<>E25,"ATT.",""))) ->  | E61: =SUM(E58:E60) -> 0 | F61: =IF(E61=0,"",(IF(E59=0,"IMPORTO NON RATEIZZATO","Importo rateizzato"))) -> 
C64: 1 - POLIZZA ONERI DI URBANIZZAZIONE | E64: IMPORTO | F64: ANNOTAZIONI
C65: 2 RATA - URB. PRIMARIE E SECONDARIE | E65: =E35+E41 -> 0 | F65: =IF(E35=0,"Nessuna rateizzazione","Da versare entro 1 anno da data di rilascio del Titolo Edilizio") -> Nessuna rateizzazione
C66: 3 RATA - URB. PRIMARIE E SECONDARIE | E66: =E36+E42 -> 0 | F66: =IF(E36=0,"Nessuna rateizzazione","Da versare entro 2 anni da data di rilascio del Tit. Ed. o entro la fine lavori se antecedente i 2 anni") -> Nessuna rateizzazione
C67: Incr. max penale oneri urbanizz. | D67: 0.4 | E67: =(E65+E66)*D67 -> 0 | F67: Rif. Art. 42 DPR 380/2001
C68: Somma totale da garantire con polizza | E68: =SUM(E65:E67) -> 0 | F68: Solo oneri di urbanizzazione
C70: 2 - POLIZZA PER COSTO DI COSTRUZIONE | E70: IMPORTO | F70: ANNOTAZIONI
C71: 2 RATA - COSTO DI COSTRUZIONE | E71: =E47 -> 0 | F71: =IF(E47=0,"Nessuna rateizzazione","Da versare entro 1 anno da data di rilascio del Titolo Edilizio") -> Nessuna rateizzazione
C72: 3 RATA - COSTO DI COSTRUZIONE | E72: =E48 -> 0 | F72: =IF(E48=0,"Nessuna rateizzazione","Da versare entro 2 anni da data di rilascio del Tit. Ed. o entro la fine lavori se antecedente i 2 anni") -> Nessuna rateizzazione
C73: Incr. max penale costo costr. | D73: 0.4 | E73: =(E71+E72)*D73 -> 0 | F73: Rif. Art. 42 DPR 380/2001
C74: Somma totale da garantire con polizza | E74: =SUM(E71:E73) -> 0 | F74: Solo costo di costruzione
C77: 1 + 2 - POLIZZA CONTR. DI COSTRUZIONE | E77: IMPORTO | F77: ANNOTAZIONI
C78: 2 RATA - ONERI URB. + COSTO COSTR. | E78: =IF(AND(E68>0,E74>0),(E35+E41+E47),0) -> 0 | F78: =IF(AND(E68=0,E74=0),"Nessuna rateizzazione","Da versare entro 1 anno da data di rilascio del Titolo Edilizio") -> Nessuna rateizzazione
C79: 3 RATA - ONERI URB. + COSTO COSTR. | E79: =IF(AND(E68>0,E74>0),(E36+E42+E48),0) -> 0 | F79: =IF(AND(E68=0,E74=0),"Nessuna rateizzazione","Da versare entro 2 anni da data di rilascio del Tit. Ed. o entro la fine lavori se antecedente i 2 anni") -> Nessuna rateizzazione
C80: Incr. max penale oneri urban. | D80: 0.4 | E80: =(E78+E79)*D80 -> 0 | F80: Rif. Art. 42 DPR 380/2001
C81: Somma totale da garantire con polizza | E81: =SUM(E78:E80) -> 0 | F81: Contributo di costruzione = oneri di urbanizzazione + costi di costruzione
C83: 3 - POLIZZA PER MONETIZZAZIONE | E83: IMPORTO | F83: ANNOTAZIONI
C84: 2 RATA - STANDARD + PARCHEGGI | E84: =E53+E59 -> 0 | F84: =IF(E55=0,"Nessuna rateizzazione","Da versare entro 1 anno da data di rilascio del Titolo Edilizio") -> Nessuna rateizzazione
C85: 3 RATA - STANDARD + PARCHEGGI | E85: =E54+E60 -> 0 | F85: =IF(E55=0,"Nessuna rateizzazione","Da versare entro 2 anni da data di rilascio del Tit. Ed. o entro la fine lavori se antecedente i 2 anni") -> Nessuna rateizzazione
C86: Incr. per event. interessi legali | D86: 0.05 | E86: =(E84+E85)*D86 -> 0 | F86: Incremento per tenere conto di eventuali interessi legali in caso di ritardo
C87: Somma totale da garantire con polizza | E87: =SUM(E84:E86) -> 0 | F87: Per standard urbanistici (*)
C89: (*) - Per la monetizzazione degli standard urbanistici occorre sempre fare una polizza specifica

Sheet PROSPETTO RATE NEW (hidden)
C2: PROSPETTO DI CALCOLO IMPORTI DA RATEIZZARE E DA GARANTIRE CON POLIZZE
C4: Titolo abilitativo | E4: ='INSERIMENTO DATI'!D4 -> 0
C6: Beneficiario | E6: =IF('INSERIMENTO DATI'!D6="","",'INSERIMENTO DATI'!D6) -> 
C9: SI VUOLE RATEIZZARE L'IMPORTO | K9: 1
C11: Importo minimo come soglia rateizzabile | E11: 26000 | F11: Per oneri di urbanizzazione e standard (rif. D.G. 53/2013 e D.G 291/2016) | H11: FALSE
C12: Non rateizzare oneri urbanizzazione | K12: FALSE
C13: Non rateizzare costo di costruzione | G13: Spuntare se non si vuole applicare la rateizzazione | K13: FALSE
C14: Non rateizzare Standard | K14: FALSE
C17: 1 - ONERI URBANIZZAZIONE | E17: IMPORTO | F17: ANNOTAZIONI
C18: PRIMARIE | E18: =IF(K9=1,(IF(ISERROR('PROSPETTO DI RIEPILOGO'!P38)=TRUE,0,'PROSPETTO DI RIEPILOGO'!P38)),0) -> 22
C19: SECONDARIE | E19: =IF(K9=1,(IF(ISERROR('PROSPETTO DI RIEPILOGO'!P58)=TRUE,0,'PROSPETTO DI RIEPILOGO'!P58)),0) -> 45
C20: Totale oneri urbanizzazione | E20: =SUM(E18:E19) -> 67 | F20: =IF(E20=0,"",IF(E20>E11,"IMPORTO RATEIZZABILE","IMPORTO NON RATEIZZABILE")) -> IMPORTO NON RATEIZZABILE
C22: 2 - COSTO DI COSTRUZIONE | E22: IMPORTO | F22: ANNOTAZIONI
C23: COSTRUZIONE | E23: =IF(K9=1,(IF(ISERROR('PROSPETTO DI RIEPILOGO'!P75)=TRUE,0,'PROSPETTO DI RIEPILOGO'!P75)),0) -> 35
C24: Totale costo di costruzione | E24: =E23 -> 35 | F24: =IF(E24=0,"","IMPORTO RATEIZZABILE") -> IMPORTO RATEIZZABILE
C26: 3 - ONERI PER STANDARD | E26: IMPORTO | F26: ANNOTAZIONI
C27: SUP. A STANDARD URBANISTICI | E27: =IF(K9=1,(IF(ISERROR('PROSPETTO DI RIEPILOGO'!P80)=TRUE,0,'PROSPETTO DI RIEPILOGO'!P80)),0) -> 0
C28: SUP. A PARCHEGGIO | E28: =IF(K9=1,(IF(ISERROR('PROSPETTO DI RIEPILOGO'!P81)=TRUE,0,'PROSPETTO DI RIEPILOGO'!P81)),0) -> 0
C29: Totale a standard | E29: =SUM(E27:E28) -> 0 | F29: =IF(E29=0,"",IF(E29>E11,"IMPORTO RATEIZZABILE","IMPORTO NON RATEIZZABILE")) -> 
C32: 1 - ONERI URBANIZZAZIONE | D32: % | E32: IMPORTO | F32: ANNOTAZIONI
C33: =IF(E33=0,"",(IF(E34=0,"UNICA RATA","1 RATA - polizza a garanzia"))) -> UNICA RATA | D33: =IFERROR(E33/E20,"") -> 1 | E33: =IF(K9=2,0,(IF(K12=FALSE,IF(E20>E11,IF(E20*40%>=E11,E20*40%,E11),E20),E20))) -> 67 | F33: =IF(C33="UNICA RATA","Da versare prima del rilascio del Titolo Edilizio",(IF(E33=0,"",(IF(E20=0,"","Da versare entro 180 gg dalla data rilascio del Tit.Ed."))))) -> Da versare prima del rilascio del Titolo Edilizio | H33: =IF(E33=0,"",(IF(E20<E11,("UP : "& ROUND(E18,2) &" € + US : "& ROUND(E19,2)),(IF(E20=0,"","UP : "&(IF(K12=TRUE,E18,(IF(E20*40%>$E$11,ROUND(E18*40%,2),ROUND((E18/E20)*$E$11,2)))))&" € + US : "&(IF(K12=TRUE,E19,(IF(E20*40%>$E$11,ROUND(E19*40%,2),ROUND((E19/E20)*$E$11,2)))))&" €"))))) -> UP : 22 € + US : 45
C34: =IF(E34=0,"","2 RATA - polizza a garanzia") ->  | D34: =IFERROR(E34/E20,"") -> 0 | E34: =IF(K9=2,0,(IF(K12=FALSE,IF(E20>E11,IF(E33<>E11,E20*30%,(E20-E33)/2),0),0))) -> 0 | F34: =IF(E34=0,"",("Da versare entro 1 anno dalla data di pag. 1 rata")) ->  | H34: =IF(E34=0,"",("UP : "&ROUND((IF(K12=TRUE,"0",(IF(E20*40%>$E$11,E18*30%,(E18-(IF(K12=TRUE,E18,(IF(E20*40%>$E$11,E18*40%,(E18/E20)*$E$11)))))/2)))),2)&" € + US :"&ROUND((IF(K12=TRUE,"0",(IF(E20*40%>$E$11,E19*30%,(E19-(IF(K12=TRUE,E19,(IF(E19*40%>$E$11,E19*40%,(E19/E20)*$E$11)))))/2)))),2)&" €")) -> 
C35: =IF(E35=0,"","3 RATA - polizza a garanzia") ->  | D35: =IFERROR(E35/E20,"") -> 0 | E35: =IF(K9=2,0,(IF(K12=FALSE,IF(E20>E11,IF(E33<>E11,E20*30%,(E20-E33)/2),0),0))) -> 0 | F35: =IF(E35=0,"",("Da versare entro 2 anni dalla data di pag. 1 rata")) ->  | H35: =IF(E34=0,"",("UP : "&ROUND((IF(K12=TRUE,"0",(IF(E20*40%>$E$11,E18*30%,(E18-(IF(K12=TRUE,E18,(IF(E20*40%>$E$11,E18*40%,(E18/E20)*$E$11)))))/2)))),2)&" € + US :"&ROUND((IF(K12=TRUE,"0",(IF(E20*40%>$E$11,E19*30%,(E19-(IF(K12=TRUE,E19,(IF(E19*40%>$E$11,E19*40%,(E19/E20)*$E$11)))))/2)))),2)&" €")) -> 
C36: Totale oneri urbanizzazione | D36: =IF(E36=0,"",(IF(E36<>E20,"ATT.",""))) ->  | E36: =SUM(E33:E35) -> 67 | F36: =IF(E36=0,"",(IF(E34=0,"Importo NON rateizzato","Importo rateizzato"))) -> Importo NON rateizzato
C38: 2 - COSTO DI COSTRUZIONE | D38: % | E38: IMPORTO | F38: ANNOTAZIONI
C39: =IF(E39=0,"",(IF(E40=0,"UNICA RATA","1 RATA - polizza a garanzia"))) -> 1 RATA - polizza a garanzia | D39: =IFERROR(E39/E24,"") -> 0.2 | E39: =IF(K9=2,0,(IF(K13=FALSE,E24*20%,E24))) -> 7 | F39: =IF(C39="UNICA RATA","Da versare prima del rilascio del Titolo Edilizio",(IF(E39=0,"",(IF(E24=0,"","Da versare entro 180 gg dalla data rilascio del Tit.Ed."))))) -> Da versare entro 180 gg dalla data rilascio del Tit.Ed.
C40: =IF(E40=0,"","2 RATA - polizza a garanzia") -> 2 RATA - polizza a garanzia | D40: =IFERROR(E40/E24,"") -> 0.4 | E40: =IF(K9=2,0,(IF(K13=FALSE,E24*40%,0))) -> 14 | F40: =IF(E40=0,"","Da versare entro 1 anno dalla data di pag. 1 rata") -> Da versare entro 1 anno dalla data di pag. 1 rata
C41: =IF(E41=0,"","3 RATA - polizza a garanzia") -> 3 RATA - polizza a garanzia | D41: =IFERROR(E41/E24,"") -> 0.4 | E41: =IF(K9=2,0,(IF(K13=FALSE,E24*40%,0))) -> 14 | F41: =IF(E41=0,"","Da versare entro 2 anni dalla data di pag. 1 rata") -> Da versare entro 2 anni dalla data di pag. 1 rata
C42: Totale costo di costruzione | D42: =IF(E42=0,"",(IF(E42<>E24,"ATT.",""))) ->  | E42: =SUM(E39:E41) -> 35 | F42: =IF(E42=0,"",(IF(E40=0,"Importo NON rateizzato","Importo rateizzato"))) -> Importo rateizzato
C44: 3 - STANDARD | D44: % | E44: IMPORTO | F44: ANNOTAZIONI
C45: =IF(E45=0,"",(IF(E46=0,"UNICA RATA","1 RATA - polizza a garanzia"))) ->  | D45: =IFERROR(E45/E29,"") ->  | E45: =IF(K9=2,0,(IF(K14=FALSE,IF(E29>E11,IF(E29*40%>=E11,E29*40%,E11),E29),E29))) -> 0 | F45: =IF(C45="UNICA RATA","Da versare prima del rilascio del Titolo Edilizio",(IF(E45=0,"",(IF(E29=0,"","Da versare entro 180 gg dalla data rilascio del Tit.Ed."))))) ->  | H45: =IF(E45=0,"",(IF(E29<E11,("SU : "& ROUND(E27,2) &" € + SP : "& ROUND(E28,2)),(IF(E29=0,"","SU : "&(IF(K14=TRUE,E27,(IF(E29*40%>$E$11,ROUND(E27*40%,2),ROUND((E27/E29)*$E$11,2)))))&" € + SP : "&(IF(K14=TRUE,E28,(IF(E29*40%>$E$11,ROUND(E28*40%,2),ROUND((E28/E29)*$E$11,2)))))&" €"))))) -> 
C46: =IF(E46=0,"","2 RATA - polizza a garanzia") ->  | D46: =IFERROR(E46/E29,"") ->  | E46: =IF(K9=2,0,(IF(K14=FALSE,IF(E29>E11,IF(E45<>E11,E29*30%,(E29-E45)/2),0),0))) -> 0 | F46: =IF(E46=0,"","Da versare entro 1 anno dalla data di pag. 1 rata") ->  | H46: =IF(E46=0,"",("SU : "&ROUND((IF(K14=TRUE,"0",(IF(E29*40%>$E$11,E27*30%,(E27-(IF(K14=TRUE,E27,(IF(E29*40%>$E$11,E27*40%,(E27/E29)*$E$11)))))/2)))),2)&" € + SP :"&ROUND((IF(K14=TRUE,"0",(IF(E29*40%>$E$11,E28*30%,(E28-(IF(K14=TRUE,E28,(IF(E28*40%>$E$11,E28*40%,(E28/E29)*$E$11)))))/2)))),2)&" €")) -> 
C47: =IF(E47=0,"","3 RATA - polizza a garanzia") ->  | D47: =IFERROR(E47/E29,"") ->  | E47: =IF(K9=2,0,(IF(K14=FALSE,IF(E29>E11,IF(E45<>E11,E29*30%,(E29-E45)/2),0),0))) -> 0 | F47: =IF(E47=0,"","Da versare entro 2 anni dalla data di pag. 1 rata") ->  | H47: =IF(E46=0,"",("SU : "&ROUND((IF(K14=TRUE,"0",(IF(E29*40%>$E$11,E27*30%,(E27-(IF(K14=TRUE,E27,(IF(E29*40%>$E$11,E27*40%,(E27/E29)*$E$11)))))/2)))),2)&" € + SP :"&ROUND((IF(K14=TRUE,"0",(IF(E29*40%>$E$11,E28*30%,(E28-(IF(K14=TRUE,E28,(IF(E28*40%>$E$11,E28*40%,(E28/E29)*$E$11)))))/2)))),2)&" €")) -> 
C48: Totale a standard | D48: =IF(E48=0,"",(IF(E48<>E29,"ATT.",""))) ->  | E48: =SUM(E45:E47) -> 0 | F48: =IF(E48=0,"",(IF(E46=0,"Importo NON rateizzato","Importo rateizzato"))) -> 
C50: =IF(E50<>0,"IMPORTO DA VERSARE","") -> IMPORTO DA VERSARE | E50: =IF(K9=2,E20+E24+E29,(SUMIF(C33:E47,"UNICA RATA",E33:E47))) -> 67 | F50: =IF(E50=0,"","Da versare prima del rilascio del Titolo Edilizio") -> Da versare prima del rilascio del Titolo Edilizio
C51: IMPORTO 1 RATA DA VERSARE | E51: =SUMIF(C33:E47,"1 RATA - polizza a garanzia",E33:E47) -> 7 | F51: =IF(E51=0,"Nessuna rateizzazione","Da versare entro 180 gg dalla data rilascio del Tit.Ed.") -> Da versare entro 180 gg dalla data rilascio del Tit.Ed.
C52: IMPORTO 2 RATA DA VERSARE | E52: =SUMIF(C33:E47,"2 RATA - polizza a garanzia",E33:E47) -> 14 | F52: =IF(E52=0,"Nessuna rateizzazione","Da versare entro 1 anno dalla data di pag. 1 rata") -> Da versare entro 1 anno dalla data di pag. 1 rata
C53: IMPORTO 3 RATA DA VERSARE | E53: =SUMIF(C33:E47,"3 RATA - polizza a garanzia",E33:E47) -> 14 | F53: =IF(E53=0,"Nessuna rateizzazione","Da versare entro 2 anni dalla data di pag. 1 rata") -> Da versare entro 2 anni dalla data di pag. 1 rata
C56: 1 - POLIZZA ONERI DI URBANIZZAZIONE | E56: IMPORTO | F56: ANNOTAZIONI
C57: 1 RATA - ONERI URBANIZZAZIONE | E57: =IF(C33="UNICA RATA",0,E33) -> 0 | F57: =IF(E57=0,"Nessuna rateizzazione","Da versare entro 180 gg dalla data rilascio del Tit.Ed.") -> Nessuna rateizzazione
C58: 2 RATA - ONERI URBANIZZAZIONE | E58: =E34 -> 0 | F58: =IF(E34=0,"Nessuna rateizzazione","Da versare entro 1 anno dalla data di pag. 1 rata") -> Nessuna rateizzazione
C59: 3 RATA - ONERI URBANIZZAZIONE | E59: =E35 -> 0 | F59: =IF(E35=0,"Nessuna rateizzazione","Da versare entro 2 anni dalla data di pag. 1 rata") -> Nessuna rateizzazione
C60: Incr. max penale oneri urban. | D60: 0.4 | E60: =(E57+E58+E59)*D60 -> 0 | F60: Rif. Art. 42 DPR 380/2001
C61: Somma totale da garantire con polizza | E61: =SUM(E57:E60) -> 0 | F61: Solo oneri di urbanizzazione
C63: 2 - POLIZZA PER COSTO DI COSTRUZIONE | E63: IMPORTO | F63: ANNOTAZIONI
C64: 1 RATA - COSTO DI COSTRUZIONE | E64: =IF(C39="UNICA RATA",0,E39) -> 7 | F64: =IF(E64=0,"Nessuna rateizzazione","Da versare entro 180 gg dalla data rilascio del Tit.Ed.") -> Da versare entro 180 gg dalla data rilascio del Tit.Ed.
C65: 2 RATA - COSTO DI COSTRUZIONE | E65: =E40 -> 14 | F65: =IF(E40=0,"Nessuna rateizzazione","Da versare entro 1 anno dalla data di pag. 1 rata") -> Da versare entro 1 anno dalla data di pag. 1 rata
C66: 3 RATA - COSTO DI COSTRUZIONE | E66: =E41 -> 14 | F66: =IF(E41=0,"Nessuna rateizzazione","Da versare entro 2 anni dalla data di pag. 1 rata") -> Da versare entro 2 anni dalla data di pag. 1 rata
C67: Incr. max penale costo costr. | D67: 0.4 | E67: =(E64+E65+E66)*D67 -> 14 | F67: Rif. Art. 42 DPR 380/2001
C68: Somma totale da garantire con polizza | E68: =SUM(E64:E67) -> 49 | F68: Solo costo di costruzione
C71: 1 + 2 - POLIZZA CONTR. DI COSTRUZIONE | E71: IMPORTO | F71: ANNOTAZIONI
C72: 1 RATA - ONERI URB. + COSTO COSTR. | E72: =IF(AND(E61>0,E68>0),(E33+E39),0) -> 0 | F72: =IF(AND(E61=0,E68=0),"Nessuna rateizzazione","Da versare entro 180 gg dalla data rilascio del Tit.Ed.") -> Da versare entro 180 gg dalla data rilascio del Tit.Ed.
C73: 2 RATA - ONERI URB. + COSTO COSTR. | E73: =IF(AND(E61>0,E68>0),(E34+E40),0) -> 0 | F73: =IF(AND(E61=0,E68=0),"Nessuna rateizzazione","Da versare entro 1 anno dalla data di pag. 1 rata") -> Da versare entro 1 anno dalla data di pag. 1 rata
C74: 3 RATA - ONERI URB. + COSTO COSTR. | E74: =IF(AND(E61>0,E68>0),(E35+E41),0) -> 0 | F74: =IF(AND(E61=0,E68=0),"Nessuna rateizzazione","Da versare entro 2 anni dalla data di pag. 1 rata") -> Da versare entro 2 anni dalla data di pag. 1 rata
C75: Incr. max penale oneri urban. | D75: 0.4 | E75: =(E72+E73+E74)*D75 -> 0 | F75: Rif. Art. 42 DPR 380/2001
C76: Somma totale da garantire con polizza | E76: =SUM(E72:E75) -> 0 | F76: Contributo di costruzione = oneri di urbanizzazione + costi di costruzione
C78: 3 - POLIZZA PER STANDARD URBANISTICI | E78: IMPORTO | F78: ANNOTAZIONI
C79: 1 RATA - ONERI PER STANDARD | E79: =IF(C45="UNICA RATA",0,E45) -> 0 | F79: =IF(E79=0,"Nessuna rateizzazione","Da versare entro 180 gg dalla data rilascio del Tit.Ed.") -> Nessuna rateizzazione
C80: 2 RATA - ONERI PER STANDARD | E80: =E46 -> 0 | F80: =IF(E80=0,"Nessuna rateizzazione","Da versare entro 1 anno dalla data di pag. 1 rata") -> Nessuna rateizzazione
C81: 3 RATA - ONERI PER STANDARD | E81: =E47 -> 0 | F81: =IF(E81=0,"Nessuna rateizzazione","Da versare entro 2 anni dalla data di pag. 1 rata") -> Nessuna rateizzazione
C82: Incr. per event. interessi legali | D82: 0.05 | E82: =(E79+E80+E81)*D82 -> 0 | F82: Incremento per tenere conto di eventuali interessi legali in caso di ritardo
C83: Somma totale da garantire con polizza | E83: =SUM(E79:E82) -> 0 | F83: Per standard urbanistici (*)
C85: (*) - Per gli standard urbanistici occorre sempre fare una polizza separata

Sheet INFO VERS. E MODIFICHE (hidden)
A1: MESE DI EMISSIONE | B1: ANNO EMISSIONE | C1: VERSIONE | D1: DISTRIBUITA | E1: PRINCIPALI MODIFCHE FATTE
A2: MARZO | B2: 2020 | C2: 01.03 | D2: 2020-03-06 | E2: -
A3: MARZO | B3: 2020 | C3: 02.03 | D3: 2020-03-24 | E3: Per il cambio d'uso è stata adoperata solo la superficie utile per calcolare il volume da adoperare negli standard escludendo la superficie accessoria.
A4: MARZO | B4: 2020 | C4: 03.03 | D4: - | E4: - Per il cambio d'uso per il calcolo del volume da adoperare negli standard è stato applicato un fattore maggiorativo del 30% per tenere conto delle murature esterne ed interne. - Alla superficie utile è stato aggiunta anche la superficie accessoria chiusa (escludendo solo logge e balconi). - E' stata modificata la scheda d'inserimento cambiando il font in Arial per una maggiore compatibilità. - Nel caso di zona di prg A1 ed A2 non considera il calcolo delle autorimesse non essendo previste da NTA.
A5: APRILE | B5: 2020 | C5: 01.04 | D5: 2020-04-08 | E5: - In caso di demolizione e ricostruzione per le urbanizzazioni primarie e secondarie applica la tariffa corretta di DR. - Inserito Flag in R28 (in manuale) per verificare che il calcolo dei parcheggi obbligatori della 122/89 sia applicata solo in caso di destinazione residenziale; - Inserito controllo nel caso di nuove costruzioni relativo all'inserimento di parcheggi di progetto (controllo in deactivate);
A6: APRILE | B6: 2020 | C6: 02.04 | D6: - | E6: - Nel caso di cambio d'uso per le urbanizzazioni primarie e per le secondarie adopera nel riepilogo la parte relativa alle ristrutturazioni solamente. Per un errore inseriva le superfici anche nella demolizione e ricostruzione.
A7: MAGGIO | B7: 2020 | C7: 01.05 | D7: 2020-05-04 | E7: - Implementato nuvo foglio con prospetto rateizzazione
A8: MAGGIO | B8: 2020 | C8: 02.05 | D8: 2020-05-15 | E8: - Quando la condizione e' verificata che [Sn+(60% Sa) < 25% Su utilizza sempre il costo di costruzione del residenziale e la tariffa del residenziale.
A9: MAGGIO | B9: 2020 | C9: 03.05 | D9: - | E9: - Modifica del calcolo dell'incremento volumetrico percentuale calcolato sul volume senza incremento. Modificata impaginazione del Riepilogo inserendo Su/Sn e Snr/Sa. Modifiche impaginazione e scritte sezione 6 foglio inserimento dati.
A10: GIUGNO | B10: 2020 | C10: 01.06 | D10: 2020-06-05 | E10: Nel caso di cambio d'uso è stato eliminato il calcolo degli standard nel caso di passaggio da residenza a terziario. Sistemata somma Sn nella parte commerciale, mancava l'ultimo rigo. In caso di inserimento di una zona di standard con tariffa nulla lo ripoirta nel prosp. di riepilogo senza che la moltiplicazione dia errore ed il controllo che lo standard non sia inserito funziona essendo il valore nella casella "Non mon." invece che 0. In caso di cambio d'uso inserito il fattore moltiplicativo per passare da netto a lordo da 1,3 a 1,2.
A11: GIUGNO | B11: 2020 | C11: 02.06 | D11: 2020-06-08 | E11: Inserito controllo di congruenza sulla superficie lorda inserita nella sezione 1 e nella sezione 5. In caso di difformità le celle si colorano di rosso per segnalare l'anomalia.
A12: GIUGNO | B12: 2020 | C12: 03.06 | D12: - | E12: Passati flag per cambio d'uso da varibili di tipo long a double. Per cambio d'uso inserita cella solo per dest. Residenziale per l'inserimento della superficie lorda dell'unità abitativa (da adoperare solo nel caso calcolo degli standard urbanistici). Modificato prospetto di riepilogo inserendo la possibilità di detrarre importi anche per standard e sanzioni. Inseriti vari controlli ed alert nel caso di dati inseriti mancanti o inseriti non corretti nel foglio "inserimento dati".Corretto errore #DIV/0 nel foglio "Tab calcolo magg. CC" nel caso sia inserita solo la superficie residenziale. Percui il calcolo della maggiorazione Snr/Su dia errore di divisione per 0.
A13: LUGLIO | B13: 2020 | C13: 07.01 | D13: 2020-07-01 | E13: Modifiche da rel. 03.06 non pubblicata
A14: LUGLIO | B14: 2020 | C14: 07.02 | E14: Modificata la detrazione dei parcheggi dal costo di costruzione in funzione della destinazione residenziale o commerciale. La legge 122/89 è suddivsa in funzione del volume del residenziale e del terziario
A15: AGOSTO | B15: 2020 | C15: 08.01 | D15: 2020-08-01 | E15: Aggiunto nel riepilogo totale complessivo contr. Costruzione + standard parcheggi + sanzioni
A16: AGOSTO | B16: 2020 | C16: 08.02 | D16: - | E16: Nel caso di demolizione e ricostruzione semplice le superfici sono state divise in esistenti e di progetto. Nel caso di strutture esistenti la tariffa oneri và in demolizione e ricostruzione nel caso di superfici nuove la tariffa oneri va in nuova costruzione.
A17: SETTEMBRE | B17: 2020 | C17: 09.01 | D17: 2020-08-31 | E17: Per DR. In piano casa, nel caso di cambio d'uso dell'intero fabbricato gli oneri vengono pagati sull'intera volumetria di progetto. Sistemata formula.
A18: SETTEMBRE | B18: 2020 | C18: 09.02 | D18: - | E18: In caso di cambio d'uso su struttura commerciale verifica che sia selezionato la tipolgia di attività e la zona. Abilita o disabilita la asella di check box per l'abattimento del 20% da art. 17 DPR 380/01 in funzione dell'intervento edilizio che viene selezionato. Modifica impaginazione in funzione di visualizzazione su scheda grafica. Riscritta completamente la formula nel foglio di riepilogo relativa alle detrazioni dei parcheggi in maniera che tenga conto del volume relativo alla destinazione d'uso per la verifica del parcheggio 122/89 da dterarre.
A19: OTTOBRE | B19: 2020 | C19: 10.01 | D19: 2020-10-01 | E19: Versione distribuita all'esterno
A20: OTTOBRE | B20: 2020 | C20: 10.02 | D20: 2020-10-14 | E20: Versione distribuita solo interno. Sistemata in caso di demolizione e ricostruzione superficie utile e snr non può essere maggiore di quella di progetto. In caso la superficie della demolizione sia superiore alla nuova superficie di progetto il limite è impostato sulla superficie di progetto. Eliminata possibilità che ci siano numerii negativi nelle superfici utili tra nuova costruzione e demolizione e ricostruzione. Sistemata parte degli standard residenziali con la possibilità di sommare la superficie in mq del lotto di pertinenza nel caso di zona di prg in area a servizi per la residenza ed a verde
A21: NOVEMBRE | B21: 2020 | C21: 11.01 | D21: 2020-11-01 | E21: Inserita possibilità nella sezione 6 di inserire il volume esistente oggetto del cambio di destinazione d'uso per calcolare gli standard. La possibilità è prevista solo per gli interventi in piano casa.
A22: APRILE | B22: 2021 | C22: 04.01 | D22: 2021-04-01 | E22: In funzione delle sentanza TAR su compensazione standard tra terziario e residenziale il quantitativo degli standard in caso di cambio d'uso o di calcolo per piano casa è stata modificata inserendo il valori "7" in compensazione per le zone B9 e il valore "0" per le zone a "Terziario Direzionale". Per gli edifici antecedenti il PRG del 76 è stato lasciato il calcolo con "20".

Sheet Elenchi (hidden)
A1: Destinazione di P.R.G. | C1: Distanza dal mare | E1: Incrementi per particolari caratteristiche (modificato e spostato alla fine) | G1: Classe protocollo Itaca | I1: Tipologia attività | K1: Tipo di attività/zona coeff. - ATTIVITA' TURISTICHE | L1: coeff. % | N1: Tipo di attività/zona coeff. - ATTIVITA' COMMERCIALI | O1: coeff. % | Q1: Tipo di attività/zona coeff. - ATTIVITA' TERZIARIE | R1: coeff. % | T1: Tipo insediamento | V1: Destinazione di P.R.G. | X1: Articoli NTA PUE ASI | Z1: Nr. dipendenti | AB1: Standard - Tipizzazione della zona a standard | AC1: ind | AD1: € | AF1: Recupero/Ristrutturazioni | AG1: flag | AI1: Incrementi per particolari caratteristiche
A2: Centro Storico A1 | B2: RESIDENZA | C2: < 500 m. | E2: 0 | G2: Inferiore a classe 3 -> Nessuna riduzione Oneri Urb. | I2: Attività turistiche | K2: a. Alberghi 5* | L2: 0.1 | N2: a. Es. commerciali in genere, negozi ingrosso e dettaglio, supermarket, depositi di merci | O2: 0.05 | Q2: a. Centro edificato coefficiente 5 | R2: 0.06 | T2: Industrie per il trasferimento di prodotti agricoli, zootecniche, artigianato | V2: Ampliamenti | X2: Articolo 9.1 | Z2: da 1 a 10 | AB2: Inserimento manuale tariffa (da usare nel caso di media di piu' zone) | AF2: Opere edili semplici | AG2: 1 | AI2: 1) più di un ascensore per ogni scala se questa serve meno di sei piani sopraelevati
A3: Interesse Ambientale A2 | B3: RESIDENZA | C3: < 2000 m. | E3: 1 | G3: Classe 3 -> Riduzione 10% Oneri Urb. Sec. | I3: Attività commerciali | K3: b. Alberghi 4* | L3: 0.08 | N3: b. Come al punto a. ma nel centro edificato coefficiente 5 | O3: 0.05 | Q3: b. Centro edificato coefficiente 6 | R3: 0.07 | T3: Industrie non comprese nella tabella B1 - Aree ferroviarie, portuali, aeroportuali | V3: Nuovi insediamenti | X3: Articolo 9.11 | Z3: da 11 a 50 | AB3: Centro Storico A1 | AF3: Senza opere edili | AG3: 2 | AI3: 2) scala di servizio non prescritta da leggi o regolamenti o imposta da necessità di prevenzione di infortuni o di incendi
A4: Completamento B1 | B4: RESIDENZA | C4: < 5000 m. | E4: 2 | G4: Classe 4/5 -> Riduzione 20% Oneri Urb. Sec. | I4: Attività terziario-direzionale | K4: c. Alberghi 3* | L4: 0.07 | N4: c. Come al punto a. ma nel centro edificato coefficiente 6 | O4: 0.06 | Q4: c. Centro edificato coefficiente 7 | R4: 0.08 | T4: Consorzi ASI - Insediamenti commerciali e direzionali | V4: Nuovi insediamenti PP | X4: Articolo 9.2 - 9.3 | Z4: da 51 a 200 | AB4: Interesse Ambientale A2 | AF4: Con opere edili complesse | AG4: 3 | AI4: 3) altezza libera netta di piano superiore a m 3,00 o a quella minima prescritta da norme regolamentari. Per ambienti con altezze diverse usare altezza media ponderale
A5: Completamento B2 | B5: RESIDENZA | C5: > 5000 m. | E5: 3 | K5: d. Alberghi 2* e pensioni | L5: 0.05 | N5: d. Come al punto a. ma nel centro edificato coefficiente 7 | O5: 0.07 | Q5: d. Centro edificato coefficiente 8 | R5: 0.09 | X5: Articolo 10.3 | Z5: da 201 a 1000 | AB5: Completamento B1 | AC5: 7 | AD5: 1750 | AI5: 4) piscina coperta o scoperta quando sia a servizio di uno o più edifici comprendenti meno di 15 unità immobiliari
A6: Completamento B3 | B6: RESIDENZA | E6: 4 | K6: e. Stabilimenti balneari | L6: 0.05 | N6: e. Come al punto a. ma nel centro edificato coefficiente 8 | O6: 0.08 | X6: Articolo 12 | AB6: Completamento B2 | AC6: 5 | AD6: 1162.5 | AI6: 5) alloggi di custodia a servizio di uno o più edifici comprendenti meno di 15 unità immobiliari
A7: Completamento B4 | B7: RESIDENZA | E7: 5 | K7: f. Camping posteggi roulotte | L7: 0.05 | N7: f. Cinema, Teatri, locali di pubblico spettacolo – entro il centro edificato | O7: 0.1 | AB7: Completamento B3 | AC7: 3 | AD7: 562.5
A8: Completamento B5 | B8: RESIDENZA | K8: g. Ristoranti entro esercizi alberghieri come i rispettivi alberghi | L8: 0.05 | N8: g. Cinema, Teatri, locali di pubblico spettacolo – fuori il centro edificato | O8: 0.06 | AB8: Completamento B4 | AC8: 2 | AD8: 375
A9: Rinnovamento urbano B6 | B9: RESIDENZA | K9: h. Ristoranti | L9: 0.07 | AB9: Completamento B5 | AC9: 0.5 | AD9: 93.75
A10: Rinnovamento urbano B7 | B10: RESIDENZA | K10: i. Trattorie e Pizzerie | L10: 0.05 | AB10: Rinnovamento urbano B6 | AC10: 5 | AD10: 775
A11: Rinnovamento urbano B8 | B11: RESIDENZA | AB11: Rinnovamento urbano B7 | AC11: 3 | AD11: 465
A12: Rinn. urbano terz./direz. B9 | AB12: Rinnovamento urbano B8 | AC12: 0.5 | AD12: 65
A13: Area di espansione C1 | B13: RESIDENZA | I13: Attività terziarie (OLD in det. Manca scritta direz) | AB13: Rinn. urbano terz./direz. B9 | AC13: 7 | AD13: 1085
A14: Area di espansione C2 | B14: RESIDENZA | AB14: Area di espansione C1 | AC14: 1.75 | AD14: 157.5
A15: Area di espansione C3 | B15: RESIDENZA | AB15: Area di espansione C2 | AC15: 1 | AD15: 90
A16: Terziario Direzionale TD | AB16: Area di espansione C3 | AC16: 0.5 | AD16: 45
A17: Zone attività primarie A e B | AB17: Area per attrezzature di servizio pubblico a carattere regionale o urbano - attrezzature sportive D/A | AC17: 0.5 | AD17: 22.5
A18: Servizi alla residenza | AB18: Area per attrezzature di servizio pubblico a carattere regionale o urbano - attrezzature scolastiche digrado superiore D/B | AC18: 2 | AD18: 90
A19: Verde ed attrezz. carattere urbano e regionale | AB19: Area per attrezzature di servizio pubblico a carattere regionale o urbano - attrezzature universitarie statali D/C | AC19: 2 | AD19: 90
A20: Zone produttive | AB20: Area per attrezzature di servizio pubblico a carattere regionale o urbano - attrezzature universitarie sanitarie e ospedaliere D/D | AC20: 3 | AD20: 135
A21: Viabilità di piano e rispetto | AB21: Area per attrezzature di servizio pubblico a carattere regionale o urbano - attrezzature a carattere fieristico D/E | AC21: 2 | AD21: 90
A22: Aree ferroviarie destinazione da PRG | AB22: Area per attrezzature di servizio pubblico a carattere regionale o urbano - attrezzature tecnologiche D/F | AD22: 0
A23: Aree ferroviarie altre destinazioni | AB23: Area per attrezzature diservizio pubblico a carattere regionale o urbano - aree cimiteriali D/G | AD23: 0
A24: Arenili e coste | AB24: Area per attrezzature di servizio pubblico a carattere regionale o urbano - aree di espansione e sviluppo servizi regionali D/H | AC24: 2 | AD24: 90
A25: Zone ASI | AB25: Area per attrezzature di servizio pubblico a carattere regionale o urbano - sedi ed attrezzature militari D/I | AD25: 0
A26: Area di rispetto | AB26: Area per attrezzature di servizio pubblico a carattere regionale o urbano - sedi ed attrezzature per il culto D/L | AC26: 2 | AD26: 90
AB27: Servizi per la residenza - asili nido, scuole materne e dell'obbligo D/M | AC27: 2 | AD27: 110
AB28: Servizi per la residenza - chiese ed opere parrocchiali - centri civici e sociali - sanitari - amministrativi per pubblici servizi D/N | AC28: 2 | AD28: 110
AB29: Attività secondarie tipo "A"- attività produttive industriali E/A | AD29: 86.25
AB30: Attività secondarie tipo "B" - artigianato, deposito, attività annonarie e simili E/B | AC30: 2.5 | AD30: 93.75
AB31: Attività secondarie tipo "C" - relative ad attività a carattere annonario E/C | AC31: 2 | AD31: 75
AB32: Zone per attività terziarie e livello urbano e metropolitano F | AC32: 5 | AD32: 625
